Workbook

Sheet Start11
A1: Kader | B1: Position | C1: Verein | D1: Marktwert | E1: Marktwertentwicklung | F1: Trend | H1: Datum | I1: Gesamte Marktwertentwicklung | N1: Data Validation Prep
B2: =_xlfn.XLOOKUP(A2,Alle_Spieler[Spieler],Alle_Spieler[Position],"") ->  | C2: =_xlfn.XLOOKUP($A2,Alle_Spieler[Spieler],Alle_Spieler[Verein],"") ->  | D2: =_xlfn.XLOOKUP($A2,Alle_Spieler[Spieler],Alle_Spieler[Marktwert],"") ->  | E2: =_xlfn.XLOOKUP($A2,Alle_Spieler[Spieler],Alle_Spieler[Differenz],"") ->  | F2: =IFERROR(Tabelle4[[#This Row],[Marktwertentwicklung]],"") ->  | H2: =TODAY() -> 2022-11-19 | I2: =SUM(Tabelle4[Marktwertentwicklung]) -> 304920 | N2: =TRANSPOSE(_xlfn._xlws.SORT(_xlfn._xlws.FILTER(Alle_Spieler[Spieler],ISNUMBER((SEARCH(A2,Alle_Spieler[Spieler],1))),"not found"))) -> Aarón | O2: Ádám Szalai | P2: Admir Mehmedi | Q2: Ajdin Hrustić | R2: Alassane Pléa | S2: Alessandro Schöpf | T2: Alexander Hack | U2: Alexander Schwolow | V2: Alfreð Finnbogason | W2: Almamy Touré | X2: Alphonso Davies | Y2: Amadou Haidara | Z2: Amine Adli | AA2: Amos Pieper | AB2: Anderson Lucoqui | AC2: Andi Zeqiri | AD2: André Hahn | AE2: André Silva | AF2: Andreas Luthe | AG2: Andreas Voglsammer | AH2: Andrej Kramarić | AI2: Angeliño | AJ2: Angelo Stiller | AK2: Ansgar Knauff | AL2: Anthony Losilla | AM2: Anthony Modeste | AN2: Anton Stach | AO2: Armel Bella-Kotchap | AP2: Arne Maier | AQ2: Aster Vranckx | AR2: Atakan Karazor | AS2: Axel Witsel | AT2: Aymen Barkok | AU2: Benjamin Henrichs | AV2: Benjamin Hübner | AW2: Benjamin Pavard | AX2: Benno Schmitz | AY2: Borna Sosa | AZ2: Bouna Sarr | BA2: Branimir Hrgota | BB2: Breel Embolo | BC2: Brian Brobbey | BD2: Bryan Lasme | BE2: Carlos Gruezo | BF2: Cédric Brunner | BG2: Cedric Itten | BH2: Cedric Teuchert | BI2: Charles Aránguiz | BJ2: Chris Führich | BK2: Chris Richards | BL2: Christian Günter | BM2: Christoph Baumgartner | BN2: Christoph Kramer | BO2: Christopher Antwi-Adjei | BP2: Christopher Lenz | BQ2: Christopher Nkunku | BR2: Christopher Trimmel | BS2: Clinton Mola | BT2: Corentin Tolisso | BU2: Cristian Gamboa | BV2: Daichi Kamada | BW2: Daley Sinkgraven | BX2: Dan-Axel Zagadou | BY2: Dani Olmo | BZ2: Daniel Brosinski | CA2: Daniel Caligiuri | CB2: Daniel Didavi | CC2: Danilo Soares | CD2: Danny da Costa | CE2: David Raum | CF2: Davie Selke | CG2: Dayot Upamecano | CH2: Dedryck Boyata | CI2: Dejan Ljubičić | CJ2: Denis Zakaria | CK2: Dennis Geiger | CL2: Dennis Jastrzembski | CM2: Deyovaisio Zeefuik | CN2: Diadié Samassékou | CO2: Dickson Abiama | CP2: Djibril Sow | CQ2: Dodi Lukébakio | CR2: Dominik Kohr | CS2: Dominik Szoboszlai | CT2: Dominique Heintz | CU2: Donyell Malen | CV2: E. Choupo-Moting | CW2: Edimilson Fernandes | CX2: Edmond Tapsoba | CY2: Eduard Löwen | CZ2: Ellyes Skhiri | DA2: Elvis Rexhbeçaj | DB2: Emil Forsberg | DC2: Emre Can | DD2: Erhan Mašović | DE2: Erik Durm | DF2: Erik Thommy | DG2: Erling Braut Haaland | DH2: Ermedin Demirović | DI2: Evan N'Dicka | DJ2: Exequiel Palacios | DK2: Fabian Bredlow | DL2: Fabian Klos | DM2: Fabian Kunze | DN2: Felix Nmecha | DO2: Felix Passlack | DP2: Felix Uduokhai | DQ2: Filip Kostić | DR2: Florian Grillitsch | DS2: Florian Kainz | DT2: Florian Müller | DU2: Florian Neuhaus | DV2: Florian Niederlechner | DW2: Florian Schock | DX2: Florian Wirtz | DY2: Genki Haraguchi | DZ2: Georginio Rutter | EA2: Gerrit Holtmann | EB2: Giovanni Reyna | EC2: Gonçalo Paciência | ED2: Gregor Kobel | EE2: Grischa Prömel | EF2: Hamadi Al Ghaddioui | EG2: Hannes Wolf | EH2: Hans Nunoo Sarpei | EI2: Håvard Nielsen | EJ2: Hiroki Ito | EK2: Iago | EL2: Ihlas Bebou | EM2: Ilaix Moriba | EN2: Ishak Belfodil | EO2: Jacob Bruun Larsen | EP2: Jacob Laursen | EQ2: Jae-sung Lee | ER2: Jamal Musiala | ES2: Jan Thielmann | ET2: Janik Haberer | EU2: Janni Serra | EV2: Jean-Paul Boëtius | EW2: Jeffrey Gouweleeuw | EX2: Jens Petter Hauge | EY2: Jeremiah St. Juste | EZ2: Jeremie Frimpong | FA2: Jeremy Dudziak | FB2: Jérôme Roussillon | FC2: Jesper Lindstrøm | FD2: Jetro Willems | FE2: Joakim Nilsson | FF2: Joe Scally | FG2: John Anthony Brooks | FH2: Jonas Hector | FI2: Jonas Hofmann | FJ2: Jonathan Burkardt | FK2: Jonathan Schmid | FL2: Jonathan Tah | FM2: Jordan Beyer | FN2: Jordan Torunarigha | FO2: Jorge Meré | FP2: Joshua Kimmich | FQ2: Josip Stanišić | FR2: Joško Gvardiol | FS2: Josuha Guilavogui | FT2: Jude Bellingham | FU2: Julian Brandt | FV2: Julian Green | FW2: Julian Ryerson | FX2: Jurgen Ekkelenkamp | FY2: Justin Hoogma | FZ2: Karim Bellarabi | GA2: Karim Onisiwo | GB2: Kerem Demirbay | GC2: Keven Schlotterbeck | GD2: Kevin Akpoguma | GE2: Kevin Behrens | GF2: Kevin Kampl | GG2: Kevin Mbabu | GH2: Kevin Möhwald | GI2: Kevin Schade | GJ2: Kevin Stöger | GK2: Kevin Trapp | GL2: Kevin Vogt | GM2: Kevin-Prince Boateng | GN2: Kiliann Sildillia | GO2: Kingsley Coman | GP2: Kingsley Ehizibue | GQ2: Kingsley Schindler | GR2: Koen Casteels | GS2: Konrad Laimer | GT2: Konstantinos Mavropanos | GU2: Konstantinos Stafylidis | GV2: Kristijan Jakić | GW2: Krzysztof Piątek | GX2: Lars Stindl | GY2: László Bénes | GZ2: Leandro Barreiro | HA2: Lennart Czyborra | HB2: Leon Goretzka | HC2: Leroy Sané | HD2: Levin Öztunali | HE2: Linus Gechter | HF2: Louis Schaub | HG2: Luca Kilian | HH2: Luca Netz | HI2: Luca Waldschmidt | HJ2: Lucas Alario | HK2: Lucas Hernández | HL2: Lucas Höler | HM2: Lucas Tousart | HN2: Lukáš Hrádecký | HO2: Lukas Klostermann | HP2: Lukas Kübler | HQ2: Lukas Nmecha | HR2: Mads Pedersen | HS2: Mahmoud Dahoud | HT2: Makoto Hasebe | HU2: Manu Koné | HV2: Manuel Akanji | HW2: Manuel Gulde | HX2: Manuel Neuer | HY2: Manuel Prietl | HZ2: Manuel Riemann | IA2: Marc Oliver Kempf | IB2: Marcel Halstenberg | IC2: Marcel Sabitzer | ID2: Marco Meyerhöfer | IE2: Marco Reus | IF2: Marco Richter | IG2: Marcus Ingvartsen | IH2: Marcus Thuram | II2: Marin Pongračić | IJ2: Marius Funk | IK2: Marius Wolf | IL2: Mark Flekken | IM2: Mark Uth | IN2: Martin Hinteregger | IO2: Márton Dárdai | IP2: Marvin Friedrich | IQ2: Marvin Plattenhardt | IR2: Masaya Okugawa | IS2: Mateo Klimowicz | IT2: Mateu Morey | IU2: Mats Hummels | IV2: Matthias Ginter | IW2: Max Kruse | IX2: Maxence Lacroix | IY2: Maxim Leitsch | IZ2: Maximilian Arnold | JA2: Maximilian Bauer | JB2: Maximilian Eggestein | JC2: Maximilian Mittelstädt | JD2: Maximilian Philipp | JE2: Mijat Gaćinović | JF2: Miloš Pantović | JG2: Mitchel Bakker | JH2: Mohamed Simakan | JI2: Moussa Diaby | JJ2: Moussa Niakhaté | JK2: Munas Dabbur | JL2: Myziane Maolida | JM2: Nadiem Amiri | JN2: Nick Viergever | JO2: Nico Elvedi | JP2: Nico Schlotterbeck | JQ2: Nico Schulz | JR2: Nicolas Höfler | JS2: Niklas Dorsch | JT2: Niklas Stark | JU2: Niklas Süle | JV2: Niklas Tauer | JW2: Niko Gießelmann | JX2: Nikolas Nartey | JY2: Nils Petersen | JZ2: Noah Weißhaupt | KA2: Nordi Mukiele | KB2: Odilon Kossounou | KC2: Oliver Baumann | KD2: Omar Marmoush | KE2: Omar Richards | KF2: Ömer Faruk Beyaz | KG2: Ondrej Duda | KH2: Orel Mangala | KI2: Pascal Stenzel | KJ2: Patrick Herrmann | KK2: Patrick Wimmer | KL2: Patrik Schick | KM2: Paul Jaeckel | KN2: Paul Seguin | KO2: Paulinho | KP2: Paulo Otávio | KQ2: Pavel Kadeřábek | KR2: Péter Gulácsi | KS2: Peter Pekarík | KT2: Philipp Förster | KU2: Philipp Klement | KV2: Philipp Lienhart | KW2: Piero Hincapié | KX2: Rafael Czichos | KY2: Rafael Santos Borré | KZ2: Rafał Gikiewicz | LA2: Ragnar Ache | LB2: Ramy Bensebaini | LC2: Rani Khedira | LD2: Raphael Framberger | LE2: Raphaël Guerreiro | LF2: Reece Oxford | LG2: Reinier | LH2: Renato Steffen | LI2: Ridle Baku | LJ2: Robert Andrich | LK2: Robert Gumny | LL2: Robert Lewandowski | LM2: Robert Skov | LN2: Roberto Massimo | LO2: Robin Hack | LP2: Robin Knoche | LQ2: Robin Zentner | LR2: Roland Sallai | LS2: Ruben Vargas | LT2: Salih Özcan | LU2: Sam Lammers | LV2: Santiago Ascacibar | LW2: Sargis Adamyan | LX2: Saša Kalajdžić | LY2: Sascha Burchert | LZ2: Sebastiaan Bornauw | MA2: Sebastian Andersson | MB2: Sebastian Griesbeck | MC2: Sebastian Polter | MD2: Sebastian Rode | ME2: Sebastian Rudy | MF2: Sebastian Vasiliadis | MG2: Serge Gnabry | MH2: Sergio Córdova | MI2: Sheraldo Becker | MJ2: Silas | MK2: Silvan Widmer | ML2: Simon Zoller | MM2: Stefan Bell | MN2: Stefan Ilsanker | MO2: Stefan Lainer | MP2: Stefan Ortega Moreno | MQ2: Stefan Posch | MR2: Steffen Tigges | MS2: Stevan Jovetić | MT2: Suat Serdar | MU2: Taiwo Awoniyi | MV2: Tanguy Coulibaly | MW2: Tanguy Nianzou | MX2: Thomas Meunier | MY2: Thomas Müller | MZ2: Thorgan Hazard | NA2: Tim Lemperle | NB2: Timo Baumgartl | NC2: Timo Horn | ND2: Timo Hübers | NE2: Timothy Chandler | NF2: Timothy Fosu-Mensah | NG2: Timothy Tillman | NH2: Tobias Strobl | NI2: Tomas Ostrak | NJ2: Tony Jantschke | NK2: Tuta | NL2: Tyler Adams | NM2: Vasilios Lampropoulos | NN2: Vincenzo Grifo | NO2: Vladimír Darida | NP2: Wahid Faghir | NQ2: Waldemar Anton | NR2: Wataru Endo | NS2: Willi Orbán | NT2: Woo-yeong Jeong | NU2: Wout Weghorst | NV2: Xaver Schlager | NW2: Yann Sommer | NX2: Yannick Gerhardt | NY2: Yannik Keitel | NZ2: Youssoufa Moukoko | OA2: Yussuf Poulsen
B3: =_xlfn.XLOOKUP(A3,Alle_Spieler[Spieler],Alle_Spieler[Position],"") ->  | C3: =_xlfn.XLOOKUP($A3,Alle_Spieler[Spieler],Alle_Spieler[Verein],"") ->  | D3: =_xlfn.XLOOKUP($A3,Alle_Spieler[Spieler],Alle_Spieler[Marktwert],"") ->  | E3: =_xlfn.XLOOKUP($A3,Alle_Spieler[Spieler],Alle_Spieler[Differenz],"") ->  | F3: =Tabelle4[[#This Row],[Marktwertentwicklung]] ->  | N3: =TRANSPOSE(_xlfn._xlws.SORT(_xlfn._xlws.FILTER(Alle_Spieler[Spieler],ISNUMBER((SEARCH(A3,Alle_Spieler[Spieler],1))),"not found"))) -> Aarón | O3: Ádám Szalai | P3: Admir Mehmedi | Q3: Ajdin Hrustić | R3: Alassane Pléa | S3: Alessandro Schöpf | T3: Alexander Hack | U3: Alexander Schwolow | V3: Alfreð Finnbogason | W3: Almamy Touré | X3: Alphonso Davies | Y3: Amadou Haidara | Z3: Amine Adli | AA3: Amos Pieper | AB3: Anderson Lucoqui | AC3: Andi Zeqiri | AD3: André Hahn | AE3: André Silva | AF3: Andreas Luthe | AG3: Andreas Voglsammer | AH3: Andrej Kramarić | AI3: Angeliño | AJ3: Angelo Stiller | AK3: Ansgar Knauff | AL3: Anthony Losilla | AM3: Anthony Modeste | AN3: Anton Stach | AO3: Armel Bella-Kotchap | AP3: Arne Maier | AQ3: Aster Vranckx | AR3: Atakan Karazor | AS3: Axel Witsel | AT3: Aymen Barkok | AU3: Benjamin Henrichs | AV3: Benjamin Hübner | AW3: Benjamin Pavard | AX3: Benno Schmitz | AY3: Borna Sosa | AZ3: Bouna Sarr | BA3: Branimir Hrgota | BB3: Breel Embolo | BC3: Brian Brobbey | BD3: Bryan Lasme | BE3: Carlos Gruezo | BF3: Cédric Brunner | BG3: Cedric Itten | BH3: Cedric Teuchert | BI3: Charles Aránguiz | BJ3: Chris Führich | BK3: Chris Richards | BL3: Christian Günter | BM3: Christoph Baumgartner | BN3: Christoph Kramer | BO3: Christopher Antwi-Adjei | BP3: Christopher Lenz | BQ3: Christopher Nkunku | BR3: Christopher Trimmel | BS3: Clinton Mola | BT3: Corentin Tolisso | BU3: Cristian Gamboa | BV3: Daichi Kamada | BW3: Daley Sinkgraven | BX3: Dan-Axel Zagadou | BY3: Dani Olmo | BZ3: Daniel Brosinski | CA3: Daniel Caligiuri | CB3: Daniel Didavi | CC3: Danilo Soares | CD3: Danny da Costa | CE3: David Raum | CF3: Davie Selke | CG3: Dayot Upamecano | CH3: Dedryck Boyata | CI3: Dejan Ljubičić | CJ3: Denis Zakaria | CK3: Dennis Geiger | CL3: Dennis Jastrzembski | CM3: Deyovaisio Zeefuik | CN3: Diadié Samassékou | CO3: Dickson Abiama | CP3: Djibril Sow | CQ3: Dodi Lukébakio | CR3: Dominik Kohr | CS3: Dominik Szoboszlai | CT3: Dominique Heintz | CU3: Donyell Malen | CV3: E. Choupo-Moting | CW3: Edimilson Fernandes | CX3: Edmond Tapsoba | CY3: Eduard Löwen | CZ3: Ellyes Skhiri | DA3: Elvis Rexhbeçaj | DB3: Emil Forsberg | DC3: Emre Can | DD3: Erhan Mašović | DE3: Erik Durm | DF3: Erik Thommy | DG3: Erling Braut Haaland | DH3: Ermedin Demirović | DI3: Evan N'Dicka | DJ3: Exequiel Palacios | DK3: Fabian Bredlow | DL3: Fabian Klos | DM3: Fabian Kunze | DN3: Felix Nmecha | DO3: Felix Passlack | DP3: Felix Uduokhai | DQ3: Filip Kostić | DR3: Florian Grillitsch | DS3: Florian Kainz | DT3: Florian Müller | DU3: Florian Neuhaus | DV3: Florian Niederlechner | DW3: Florian Schock | DX3: Florian Wirtz | DY3: Genki Haraguchi | DZ3: Georginio Rutter | EA3: Gerrit Holtmann | EB3: Giovanni Reyna | EC3: Gonçalo Paciência | ED3: Gregor Kobel | EE3: Grischa Prömel | EF3: Hamadi Al Ghaddioui | EG3: Hannes Wolf | EH3: Hans Nunoo Sarpei | EI3: Håvard Nielsen | EJ3: Hiroki Ito | EK3: Iago | EL3: Ihlas Bebou | EM3: Ilaix Moriba | EN3: Ishak Belfodil | EO3: Jacob Bruun Larsen | EP3: Jacob Laursen | EQ3: Jae-sung Lee | ER3: Jamal Musiala | ES3: Jan Thielmann | ET3: Janik Haberer | EU3: Janni Serra | EV3: Jean-Paul Boëtius | EW3: Jeffrey Gouweleeuw | EX3: Jens Petter Hauge | EY3: Jeremiah St. Juste | EZ3: Jeremie Frimpong | FA3: Jeremy Dudziak | FB3: Jérôme Roussillon | FC3: Jesper Lindstrøm | FD3: Jetro Willems | FE3: Joakim Nilsson | FF3: Joe Scally | FG3: John Anthony Brooks | FH3: Jonas Hector | FI3: Jonas Hofmann | FJ3: Jonathan Burkardt | FK3: Jonathan Schmid | FL3: Jonathan Tah | FM3: Jordan Beyer | FN3: Jordan Torunarigha | FO3: Jorge Meré | FP3: Joshua Kimmich | FQ3: Josip Stanišić | FR3: Joško Gvardiol | FS3: Josuha Guilavogui | FT3: Jude Bellingham | FU3: Julian Brandt | FV3: Julian Green | FW3: Julian Ryerson | FX3: Jurgen Ekkelenkamp | FY3: Justin Hoogma | FZ3: Karim Bellarabi | GA3: Karim Onisiwo | GB3: Kerem Demirbay | GC3: Keven Schlotterbeck | GD3: Kevin Akpoguma | GE3: Kevin Behrens | GF3: Kevin Kampl | GG3: Kevin Mbabu | GH3: Kevin Möhwald | GI3: Kevin Schade | GJ3: Kevin Stöger | GK3: Kevin Trapp | GL3: Kevin Vogt | GM3: Kevin-Prince Boateng | GN3: Kiliann Sildillia | GO3: Kingsley Coman | GP3: Kingsley Ehizibue | GQ3: Kingsley Schindler | GR3: Koen Casteels | GS3: Konrad Laimer | GT3: Konstantinos Mavropanos | GU3: Konstantinos Stafylidis | GV3: Kristijan Jakić | GW3: Krzysztof Piątek | GX3: Lars Stindl | GY3: László Bénes | GZ3: Leandro Barreiro | HA3: Lennart Czyborra | HB3: Leon Goretzka | HC3: Leroy Sané | HD3: Levin Öztunali | HE3: Linus Gechter | HF3: Louis Schaub | HG3: Luca Kilian | HH3: Luca Netz | HI3: Luca Waldschmidt | HJ3: Lucas Alario | HK3: Lucas Hernández | HL3: Lucas Höler | HM3: Lucas Tousart | HN3: Lukáš Hrádecký | HO3: Lukas Klostermann | HP3: Lukas Kübler | HQ3: Lukas Nmecha | HR3: Mads Pedersen | HS3: Mahmoud Dahoud | HT3: Makoto Hasebe | HU3: Manu Koné | HV3: Manuel Akanji | HW3: Manuel Gulde | HX3: Manuel Neuer | HY3: Manuel Prietl | HZ3: Manuel Riemann | IA3: Marc Oliver Kempf | IB3: Marcel Halstenberg | IC3: Marcel Sabitzer | ID3: Marco Meyerhöfer | IE3: Marco Reus | IF3: Marco Richter | IG3: Marcus Ingvartsen | IH3: Marcus Thuram | II3: Marin Pongračić | IJ3: Marius Funk | IK3: Marius Wolf | IL3: Mark Flekken | IM3: Mark Uth | IN3: Martin Hinteregger | IO3: Márton Dárdai | IP3: Marvin Friedrich | IQ3: Marvin Plattenhardt | IR3: Masaya Okugawa | IS3: Mateo Klimowicz | IT3: Mateu Morey | IU3: Mats Hummels | IV3: Matthias Ginter | IW3: Max Kruse | IX3: Maxence Lacroix | IY3: Maxim Leitsch | IZ3: Maximilian Arnold | JA3: Maximilian Bauer | JB3: Maximilian Eggestein | JC3: Maximilian Mittelstädt | JD3: Maximilian Philipp | JE3: Mijat Gaćinović | JF3: Miloš Pantović | JG3: Mitchel Bakker | JH3: Mohamed Simakan | JI3: Moussa Diaby | JJ3: Moussa Niakhaté | JK3: Munas Dabbur | JL3: Myziane Maolida | JM3: Nadiem Amiri | JN3: Nick Viergever | JO3: Nico Elvedi | JP3: Nico Schlotterbeck | JQ3: Nico Schulz | JR3: Nicolas Höfler | JS3: Niklas Dorsch | JT3: Niklas Stark | JU3: Niklas Süle | JV3: Niklas Tauer | JW3: Niko Gießelmann | JX3: Nikolas Nartey | JY3: Nils Petersen | JZ3: Noah Weißhaupt | KA3: Nordi Mukiele | KB3: Odilon Kossounou | KC3: Oliver Baumann | KD3: Omar Marmoush | KE3: Omar Richards | KF3: Ömer Faruk Beyaz | KG3: Ondrej Duda | KH3: Orel Mangala | KI3: Pascal Stenzel | KJ3: Patrick Herrmann | KK3: Patrick Wimmer | KL3: Patrik Schick | KM3: Paul Jaeckel | KN3: Paul Seguin | KO3: Paulinho | KP3: Paulo Otávio | KQ3: Pavel Kadeřábek | KR3: Péter Gulácsi | KS3: Peter Pekarík | KT3: Philipp Förster | KU3: Philipp Klement | KV3: Philipp Lienhart | KW3: Piero Hincapié | KX3: Rafael Czichos | KY3: Rafael Santos Borré | KZ3: Rafał Gikiewicz | LA3: Ragnar Ache | LB3: Ramy Bensebaini | LC3: Rani Khedira | LD3: Raphael Framberger | LE3: Raphaël Guerreiro | LF3: Reece Oxford | LG3: Reinier | LH3: Renato Steffen | LI3: Ridle Baku | LJ3: Robert Andrich | LK3: Robert Gumny | LL3: Robert Lewandowski | LM3: Robert Skov | LN3: Roberto Massimo | LO3: Robin Hack | LP3: Robin Knoche | LQ3: Robin Zentner | LR3: Roland Sallai | LS3: Ruben Vargas | LT3: Salih Özcan | LU3: Sam Lammers | LV3: Santiago Ascacibar | LW3: Sargis Adamyan | LX3: Saša Kalajdžić | LY3: Sascha Burchert | LZ3: Sebastiaan Bornauw | MA3: Sebastian Andersson | MB3: Sebastian Griesbeck | MC3: Sebastian Polter | MD3: Sebastian Rode | ME3: Sebastian Rudy | MF3: Sebastian Vasiliadis | MG3: Serge Gnabry | MH3: Sergio Córdova | MI3: Sheraldo Becker | MJ3: Silas | MK3: Silvan Widmer | ML3: Simon Zoller | MM3: Stefan Bell | MN3: Stefan Ilsanker | MO3: Stefan Lainer | MP3: Stefan Ortega Moreno | MQ3: Stefan Posch | MR3: Steffen Tigges | MS3: Stevan Jovetić | MT3: Suat Serdar | MU3: Taiwo Awoniyi | MV3: Tanguy Coulibaly | MW3: Tanguy Nianzou | MX3: Thomas Meunier | MY3: Thomas Müller | MZ3: Thorgan Hazard | NA3: Tim Lemperle | NB3: Timo Baumgartl | NC3: Timo Horn | ND3: Timo Hübers | NE3: Timothy Chandler | NF3: Timothy Fosu-Mensah | NG3: Timothy Tillman | NH3: Tobias Strobl | NI3: Tomas Ostrak | NJ3: Tony Jantschke | NK3: Tuta | NL3: Tyler Adams | NM3: Vasilios Lampropoulos | NN3: Vincenzo Grifo | NO3: Vladimír Darida | NP3: Wahid Faghir | NQ3: Waldemar Anton | NR3: Wataru Endo | NS3: Willi Orbán | NT3: Woo-yeong Jeong | NU3: Wout Weghorst | NV3: Xaver Schlager | NW3: Yann Sommer | NX3: Yannick Gerhardt | NY3: Yannik Keitel | NZ3: Youssoufa Moukoko | OA3: Yussuf Poulsen
B4: =_xlfn.XLOOKUP(A4,Alle_Spieler[Spieler],Alle_Spieler[Position],"") ->  | C4: =_xlfn.XLOOKUP($A4,Alle_Spieler[Spieler],Alle_Spieler[Verein],"") ->  | D4: =_xlfn.XLOOKUP($A4,Alle_Spieler[Spieler],Alle_Spieler[Marktwert],"") ->  | E4: =_xlfn.XLOOKUP($A4,Alle_Spieler[Spieler],Alle_Spieler[Differenz],"") ->  | F4: =Tabelle4[[#This Row],[Marktwertentwicklung]] ->  | H4: Datum | I4: Gesamte Marktwertentwicklung | N4: =TRANSPOSE(_xlfn._xlws.SORT(_xlfn._xlws.FILTER(Alle_Spieler[Spieler],ISNUMBER((SEARCH(A4,Alle_Spieler[Spieler],1))),"not found"))) -> Aarón | O4: Ádám Szalai | P4: Admir Mehmedi | Q4: Ajdin Hrustić | R4: Alassane Pléa | S4: Alessandro Schöpf | T4: Alexander Hack | U4: Alexander Schwolow | V4: Alfreð Finnbogason | W4: Almamy Touré | X4: Alphonso Davies | Y4: Amadou Haidara | Z4: Amine Adli | AA4: Amos Pieper | AB4: Anderson Lucoqui | AC4: Andi Zeqiri | AD4: André Hahn | AE4: André Silva | AF4: Andreas Luthe | AG4: Andreas Voglsammer | AH4: Andrej Kramarić | AI4: Angeliño | AJ4: Angelo Stiller | AK4: Ansgar Knauff | AL4: Anthony Losilla | AM4: Anthony Modeste | AN4: Anton Stach | AO4: Armel Bella-Kotchap | AP4: Arne Maier | AQ4: Aster Vranckx | AR4: Atakan Karazor | AS4: Axel Witsel | AT4: Aymen Barkok | AU4: Benjamin Henrichs | AV4: Benjamin Hübner | AW4: Benjamin Pavard | AX4: Benno Schmitz | AY4: Borna Sosa | AZ4: Bouna Sarr | BA4: Branimir Hrgota | BB4: Breel Embolo | BC4: Brian Brobbey | BD4: Bryan Lasme | BE4: Carlos Gruezo | BF4: Cédric Brunner | BG4: Cedric Itten | BH4: Cedric Teuchert | BI4: Charles Aránguiz | BJ4: Chris Führich | BK4: Chris Richards | BL4: Christian Günter | BM4: Christoph Baumgartner | BN4: Christoph Kramer | BO4: Christopher Antwi-Adjei | BP4: Christopher Lenz | BQ4: Christopher Nkunku | BR4: Christopher Trimmel | BS4: Clinton Mola | BT4: Corentin Tolisso | BU4: Cristian Gamboa | BV4: Daichi Kamada | BW4: Daley Sinkgraven | BX4: Dan-Axel Zagadou | BY4: Dani Olmo | BZ4: Daniel Brosinski | CA4: Daniel Caligiuri | CB4: Daniel Didavi | CC4: Danilo Soares | CD4: Danny da Costa | CE4: David Raum | CF4: Davie Selke | CG4: Dayot Upamecano | CH4: Dedryck Boyata | CI4: Dejan Ljubičić | CJ4: Denis Zakaria | CK4: Dennis Geiger | CL4: Dennis Jastrzembski | CM4: Deyovaisio Zeefuik | CN4: Diadié Samassékou | CO4: Dickson Abiama | CP4: Djibril Sow | CQ4: Dodi Lukébakio | CR4: Dominik Kohr | CS4: Dominik Szoboszlai | CT4: Dominique Heintz | CU4: Donyell Malen | CV4: E. Choupo-Moting | CW4: Edimilson Fernandes | CX4: Edmond Tapsoba | CY4: Eduard Löwen | CZ4: Ellyes Skhiri | DA4: Elvis Rexhbeçaj | DB4: Emil Forsberg | DC4: Emre Can | DD4: Erhan Mašović | DE4: Erik Durm | DF4: Erik Thommy | DG4: Erling Braut Haaland | DH4: Ermedin Demirović | DI4: Evan N'Dicka | DJ4: Exequiel Palacios | DK4: Fabian Bredlow | DL4: Fabian Klos | DM4: Fabian Kunze | DN4: Felix Nmecha | DO4: Felix Passlack | DP4: Felix Uduokhai | DQ4: Filip Kostić | DR4: Florian Grillitsch | DS4: Florian Kainz | DT4: Florian Müller | DU4: Florian Neuhaus | DV4: Florian Niederlechner | DW4: Florian Schock | DX4: Florian Wirtz | DY4: Genki Haraguchi | DZ4: Georginio Rutter | EA4: Gerrit Holtmann | EB4: Giovanni Reyna | EC4: Gonçalo Paciência | ED4: Gregor Kobel | EE4: Grischa Prömel | EF4: Hamadi Al Ghaddioui | EG4: Hannes Wolf | EH4: Hans Nunoo Sarpei | EI4: Håvard Nielsen | EJ4: Hiroki Ito | EK4: Iago | EL4: Ihlas Bebou | EM4: Ilaix Moriba | EN4: Ishak Belfodil | EO4: Jacob Bruun Larsen | EP4: Jacob Laursen | EQ4: Jae-sung Lee | ER4: Jamal Musiala | ES4: Jan Thielmann | ET4: Janik Haberer | EU4: Janni Serra | EV4: Jean-Paul Boëtius | EW4: Jeffrey Gouweleeuw | EX4: Jens Petter Hauge | EY4: Jeremiah St. Juste | EZ4: Jeremie Frimpong | FA4: Jeremy Dudziak | FB4: Jérôme Roussillon | FC4: Jesper Lindstrøm | FD4: Jetro Willems | FE4: Joakim Nilsson | FF4: Joe Scally | FG4: John Anthony Brooks | FH4: Jonas Hector | FI4: Jonas Hofmann | FJ4: Jonathan Burkardt | FK4: Jonathan Schmid | FL4: Jonathan Tah | FM4: Jordan Beyer | FN4: Jordan Torunarigha | FO4: Jorge Meré | FP4: Joshua Kimmich | FQ4: Josip Stanišić | FR4: Joško Gvardiol | FS4: Josuha Guilavogui | FT4: Jude Bellingham | FU4: Julian Brandt | FV4: Julian Green | FW4: Julian Ryerson | FX4: Jurgen Ekkelenkamp | FY4: Justin Hoogma | FZ4: Karim Bellarabi | GA4: Karim Onisiwo | GB4: Kerem Demirbay | GC4: Keven Schlotterbeck | GD4: Kevin Akpoguma | GE4: Kevin Behrens | GF4: Kevin Kampl | GG4: Kevin Mbabu | GH4: Kevin Möhwald | GI4: Kevin Schade | GJ4: Kevin Stöger | GK4: Kevin Trapp | GL4: Kevin Vogt | GM4: Kevin-Prince Boateng | GN4: Kiliann Sildillia | GO4: Kingsley Coman | GP4: Kingsley Ehizibue | GQ4: Kingsley Schindler | GR4: Koen Casteels | GS4: Konrad Laimer | GT4: Konstantinos Mavropanos | GU4: Konstantinos Stafylidis | GV4: Kristijan Jakić | GW4: Krzysztof Piątek | GX4: Lars Stindl | GY4: László Bénes | GZ4: Leandro Barreiro | HA4: Lennart Czyborra | HB4: Leon Goretzka | HC4: Leroy Sané | HD4: Levin Öztunali | HE4: Linus Gechter | HF4: Louis Schaub | HG4: Luca Kilian | HH4: Luca Netz | HI4: Luca Waldschmidt | HJ4: Lucas Alario | HK4: Lucas Hernández | HL4: Lucas Höler | HM4: Lucas Tousart | HN4: Lukáš Hrádecký | HO4: Lukas Klostermann | HP4: Lukas Kübler | HQ4: Lukas Nmecha | HR4: Mads Pedersen | HS4: Mahmoud Dahoud | HT4: Makoto Hasebe | HU4: Manu Koné | HV4: Manuel Akanji | HW4: Manuel Gulde | HX4: Manuel Neuer | HY4: Manuel Prietl | HZ4: Manuel Riemann | IA4: Marc Oliver Kempf | IB4: Marcel Halstenberg | IC4: Marcel Sabitzer | ID4: Marco Meyerhöfer | IE4: Marco Reus | IF4: Marco Richter | IG4: Marcus Ingvartsen | IH4: Marcus Thuram | II4: Marin Pongračić | IJ4: Marius Funk | IK4: Marius Wolf | IL4: Mark Flekken | IM4: Mark Uth | IN4: Martin Hinteregger | IO4: Márton Dárdai | IP4: Marvin Friedrich | IQ4: Marvin Plattenhardt | IR4: Masaya Okugawa | IS4: Mateo Klimowicz | IT4: Mateu Morey | IU4: Mats Hummels | IV4: Matthias Ginter | IW4: Max Kruse | IX4: Maxence Lacroix | IY4: Maxim Leitsch | IZ4: Maximilian Arnold | JA4: Maximilian Bauer | JB4: Maximilian Eggestein | JC4: Maximilian Mittelstädt | JD4: Maximilian Philipp | JE4: Mijat Gaćinović | JF4: Miloš Pantović | JG4: Mitchel Bakker | JH4: Mohamed Simakan | JI4: Moussa Diaby | JJ4: Moussa Niakhaté | JK4: Munas Dabbur | JL4: Myziane Maolida | JM4: Nadiem Amiri | JN4: Nick Viergever | JO4: Nico Elvedi | JP4: Nico Schlotterbeck | JQ4: Nico Schulz | JR4: Nicolas Höfler | JS4: Niklas Dorsch | JT4: Niklas Stark | JU4: Niklas Süle | JV4: Niklas Tauer | JW4: Niko Gießelmann | JX4: Nikolas Nartey | JY4: Nils Petersen | JZ4: Noah Weißhaupt | KA4: Nordi Mukiele | KB4: Odilon Kossounou | KC4: Oliver Baumann | KD4: Omar Marmoush | KE4: Omar Richards | KF4: Ömer Faruk Beyaz | KG4: Ondrej Duda | KH4: Orel Mangala | KI4: Pascal Stenzel | KJ4: Patrick Herrmann | KK4: Patrick Wimmer | KL4: Patrik Schick | KM4: Paul Jaeckel | KN4: Paul Seguin | KO4: Paulinho | KP4: Paulo Otávio | KQ4: Pavel Kadeřábek | KR4: Péter Gulácsi | KS4: Peter Pekarík | KT4: Philipp Förster | KU4: Philipp Klement | KV4: Philipp Lienhart | KW4: Piero Hincapié | KX4: Rafael Czichos | KY4: Rafael Santos Borré | KZ4: Rafał Gikiewicz | LA4: Ragnar Ache | LB4: Ramy Bensebaini | LC4: Rani Khedira | LD4: Raphael Framberger | LE4: Raphaël Guerreiro | LF4: Reece Oxford | LG4: Reinier | LH4: Renato Steffen | LI4: Ridle Baku | LJ4: Robert Andrich | LK4: Robert Gumny | LL4: Robert Lewandowski | LM4: Robert Skov | LN4: Roberto Massimo | LO4: Robin Hack | LP4: Robin Knoche | LQ4: Robin Zentner | LR4: Roland Sallai | LS4: Ruben Vargas | LT4: Salih Özcan | LU4: Sam Lammers | LV4: Santiago Ascacibar | LW4: Sargis Adamyan | LX4: Saša Kalajdžić | LY4: Sascha Burchert | LZ4: Sebastiaan Bornauw | MA4: Sebastian Andersson | MB4: Sebastian Griesbeck | MC4: Sebastian Polter | MD4: Sebastian Rode | ME4: Sebastian Rudy | MF4: Sebastian Vasiliadis | MG4: Serge Gnabry | MH4: Sergio Córdova | MI4: Sheraldo Becker | MJ4: Silas | MK4: Silvan Widmer | ML4: Simon Zoller | MM4: Stefan Bell | MN4: Stefan Ilsanker | MO4: Stefan Lainer | MP4: Stefan Ortega Moreno | MQ4: Stefan Posch | MR4: Steffen Tigges | MS4: Stevan Jovetić | MT4: Suat Serdar | MU4: Taiwo Awoniyi | MV4: Tanguy Coulibaly | MW4: Tanguy Nianzou | MX4: Thomas Meunier | MY4: Thomas Müller | MZ4: Thorgan Hazard | NA4: Tim Lemperle | NB4: Timo Baumgartl | NC4: Timo Horn | ND4: Timo Hübers | NE4: Timothy Chandler | NF4: Timothy Fosu-Mensah | NG4: Timothy Tillman | NH4: Tobias Strobl | NI4: Tomas Ostrak | NJ4: Tony Jantschke | NK4: Tuta | NL4: Tyler Adams | NM4: Vasilios Lampropoulos | NN4: Vincenzo Grifo | NO4: Vladimír Darida | NP4: Wahid Faghir | NQ4: Waldemar Anton | NR4: Wataru Endo | NS4: Willi Orbán | NT4: Woo-yeong Jeong | NU4: Wout Weghorst | NV4: Xaver Schlager | NW4: Yann Sommer | NX4: Yannick Gerhardt | NY4: Yannik Keitel | NZ4: Youssoufa Moukoko | OA4: Yussuf Poulsen
B5: =_xlfn.XLOOKUP(A5,Alle_Spieler[Spieler],Alle_Spieler[Position],"") ->  | C5: =_xlfn.XLOOKUP($A5,Alle_Spieler[Spieler],Alle_Spieler[Verein],"") ->  | D5: =_xlfn.XLOOKUP($A5,Alle_Spieler[Spieler],Alle_Spieler[Marktwert],"") ->  | E5: =_xlfn.XLOOKUP($A5,Alle_Spieler[Spieler],Alle_Spieler[Differenz],"") ->  | F5: =IFERROR(Tabelle4[[#This Row],[Marktwertentwicklung]],"") ->  | N5: =TRANSPOSE(_xlfn._xlws.SORT(_xlfn._xlws.FILTER(Alle_Spieler[Spieler],ISNUMBER((SEARCH(A5,Alle_Spieler[Spieler],1))),"not found"))) -> Aarón | O5: Ádám Szalai | P5: Admir Mehmedi | Q5: Ajdin Hrustić | R5: Alassane Pléa | S5: Alessandro Schöpf | T5: Alexander Hack | U5: Alexander Schwolow | V5: Alfreð Finnbogason | W5: Almamy Touré | X5: Alphonso Davies | Y5: Amadou Haidara | Z5: Amine Adli | AA5: Amos Pieper | AB5: Anderson Lucoqui | AC5: Andi Zeqiri | AD5: André Hahn | AE5: André Silva | AF5: Andreas Luthe | AG5: Andreas Voglsammer | AH5: Andrej Kramarić | AI5: Angeliño | AJ5: Angelo Stiller | AK5: Ansgar Knauff | AL5: Anthony Losilla | AM5: Anthony Modeste | AN5: Anton Stach | AO5: Armel Bella-Kotchap | AP5: Arne Maier | AQ5: Aster Vranckx | AR5: Atakan Karazor | AS5: Axel Witsel | AT5: Aymen Barkok | AU5: Benjamin Henrichs | AV5: Benjamin Hübner | AW5: Benjamin Pavard | AX5: Benno Schmitz | AY5: Borna Sosa | AZ5: Bouna Sarr | BA5: Branimir Hrgota | BB5: Breel Embolo | BC5: Brian Brobbey | BD5: Bryan Lasme | BE5: Carlos Gruezo | BF5: Cédric Brunner | BG5: Cedric Itten | BH5: Cedric Teuchert | BI5: Charles Aránguiz | BJ5: Chris Führich | BK5: Chris Richards | BL5: Christian Günter | BM5: Christoph Baumgartner | BN5: Christoph Kramer | BO5: Christopher Antwi-Adjei | BP5: Christopher Lenz | BQ5: Christopher Nkunku | BR5: Christopher Trimmel | BS5: Clinton Mola | BT5: Corentin Tolisso | BU5: Cristian Gamboa | BV5: Daichi Kamada | BW5: Daley Sinkgraven | BX5: Dan-Axel Zagadou | BY5: Dani Olmo | BZ5: Daniel Brosinski | CA5: Daniel Caligiuri | CB5: Daniel Didavi | CC5: Danilo Soares | CD5: Danny da Costa | CE5: David Raum | CF5: Davie Selke | CG5: Dayot Upamecano | CH5: Dedryck Boyata | CI5: Dejan Ljubičić | CJ5: Denis Zakaria | CK5: Dennis Geiger | CL5: Dennis Jastrzembski | CM5: Deyovaisio Zeefuik | CN5: Diadié Samassékou | CO5: Dickson Abiama | CP5: Djibril Sow | CQ5: Dodi Lukébakio | CR5: Dominik Kohr | CS5: Dominik Szoboszlai | CT5: Dominique Heintz | CU5: Donyell Malen | CV5: E. Choupo-Moting | CW5: Edimilson Fernandes | CX5: Edmond Tapsoba | CY5: Eduard Löwen | CZ5: Ellyes Skhiri | DA5: Elvis Rexhbeçaj | DB5: Emil Forsberg | DC5: Emre Can | DD5: Erhan Mašović | DE5: Erik Durm | DF5: Erik Thommy | DG5: Erling Braut Haaland | DH5: Ermedin Demirović | DI5: Evan N'Dicka | DJ5: Exequiel Palacios | DK5: Fabian Bredlow | DL5: Fabian Klos | DM5: Fabian Kunze | DN5: Felix Nmecha | DO5: Felix Passlack | DP5: Felix Uduokhai | DQ5: Filip Kostić | DR5: Florian Grillitsch | DS5: Florian Kainz | DT5: Florian Müller | DU5: Florian Neuhaus | DV5: Florian Niederlechner | DW5: Florian Schock | DX5: Florian Wirtz | DY5: Genki Haraguchi | DZ5: Georginio Rutter | EA5: Gerrit Holtmann | EB5: Giovanni Reyna | EC5: Gonçalo Paciência | ED5: Gregor Kobel | EE5: Grischa Prömel | EF5: Hamadi Al Ghaddioui | EG5: Hannes Wolf | EH5: Hans Nunoo Sarpei | EI5: Håvard Nielsen | EJ5: Hiroki Ito | EK5: Iago | EL5: Ihlas Bebou | EM5: Ilaix Moriba | EN5: Ishak Belfodil | EO5: Jacob Bruun Larsen | EP5: Jacob Laursen | EQ5: Jae-sung Lee | ER5: Jamal Musiala | ES5: Jan Thielmann | ET5: Janik Haberer | EU5: Janni Serra | EV5: Jean-Paul Boëtius | EW5: Jeffrey Gouweleeuw | EX5: Jens Petter Hauge | EY5: Jeremiah St. Juste | EZ5: Jeremie Frimpong | FA5: Jeremy Dudziak | FB5: Jérôme Roussillon | FC5: Jesper Lindstrøm | FD5: Jetro Willems | FE5: Joakim Nilsson | FF5: Joe Scally | FG5: John Anthony Brooks | FH5: Jonas Hector | FI5: Jonas Hofmann | FJ5: Jonathan Burkardt | FK5: Jonathan Schmid | FL5: Jonathan Tah | FM5: Jordan Beyer | FN5: Jordan Torunarigha | FO5: Jorge Meré | FP5: Joshua Kimmich | FQ5: Josip Stanišić | FR5: Joško Gvardiol | FS5: Josuha Guilavogui | FT5: Jude Bellingham | FU5: Julian Brandt | FV5: Julian Green | FW5: Julian Ryerson | FX5: Jurgen Ekkelenkamp | FY5: Justin Hoogma | FZ5: Karim Bellarabi | GA5: Karim Onisiwo | GB5: Kerem Demirbay | GC5: Keven Schlotterbeck | GD5: Kevin Akpoguma | GE5: Kevin Behrens | GF5: Kevin Kampl | GG5: Kevin Mbabu | GH5: Kevin Möhwald | GI5: Kevin Schade | GJ5: Kevin Stöger | GK5: Kevin Trapp | GL5: Kevin Vogt | GM5: Kevin-Prince Boateng | GN5: Kiliann Sildillia | GO5: Kingsley Coman | GP5: Kingsley Ehizibue | GQ5: Kingsley Schindler | GR5: Koen Casteels | GS5: Konrad Laimer | GT5: Konstantinos Mavropanos | GU5: Konstantinos Stafylidis | GV5: Kristijan Jakić | GW5: Krzysztof Piątek | GX5: Lars Stindl | GY5: László Bénes | GZ5: Leandro Barreiro | HA5: Lennart Czyborra | HB5: Leon Goretzka | HC5: Leroy Sané | HD5: Levin Öztunali | HE5: Linus Gechter | HF5: Louis Schaub | HG5: Luca Kilian | HH5: Luca Netz | HI5: Luca Waldschmidt | HJ5: Lucas Alario | HK5: Lucas Hernández | HL5: Lucas Höler | HM5: Lucas Tousart | HN5: Lukáš Hrádecký | HO5: Lukas Klostermann | HP5: Lukas Kübler | HQ5: Lukas Nmecha | HR5: Mads Pedersen | HS5: Mahmoud Dahoud | HT5: Makoto Hasebe | HU5: Manu Koné | HV5: Manuel Akanji | HW5: Manuel Gulde | HX5: Manuel Neuer | HY5: Manuel Prietl | HZ5: Manuel Riemann | IA5: Marc Oliver Kempf | IB5: Marcel Halstenberg | IC5: Marcel Sabitzer | ID5: Marco Meyerhöfer | IE5: Marco Reus | IF5: Marco Richter | IG5: Marcus Ingvartsen | IH5: Marcus Thuram | II5: Marin Pongračić | IJ5: Marius Funk | IK5: Marius Wolf | IL5: Mark Flekken | IM5: Mark Uth | IN5: Martin Hinteregger | IO5: Márton Dárdai | IP5: Marvin Friedrich | IQ5: Marvin Plattenhardt | IR5: Masaya Okugawa | IS5: Mateo Klimowicz | IT5: Mateu Morey | IU5: Mats Hummels | IV5: Matthias Ginter | IW5: Max Kruse | IX5: Maxence Lacroix | IY5: Maxim Leitsch | IZ5: Maximilian Arnold | JA5: Maximilian Bauer | JB5: Maximilian Eggestein | JC5: Maximilian Mittelstädt | JD5: Maximilian Philipp | JE5: Mijat Gaćinović | JF5: Miloš Pantović | JG5: Mitchel Bakker | JH5: Mohamed Simakan | JI5: Moussa Diaby | JJ5: Moussa Niakhaté | JK5: Munas Dabbur | JL5: Myziane Maolida | JM5: Nadiem Amiri | JN5: Nick Viergever | JO5: Nico Elvedi | JP5: Nico Schlotterbeck | JQ5: Nico Schulz | JR5: Nicolas Höfler | JS5: Niklas Dorsch | JT5: Niklas Stark | JU5: Niklas Süle | JV5: Niklas Tauer | JW5: Niko Gießelmann | JX5: Nikolas Nartey | JY5: Nils Petersen | JZ5: Noah Weißhaupt | KA5: Nordi Mukiele | KB5: Odilon Kossounou | KC5: Oliver Baumann | KD5: Omar Marmoush | KE5: Omar Richards | KF5: Ömer Faruk Beyaz | KG5: Ondrej Duda | KH5: Orel Mangala | KI5: Pascal Stenzel | KJ5: Patrick Herrmann | KK5: Patrick Wimmer | KL5: Patrik Schick | KM5: Paul Jaeckel | KN5: Paul Seguin | KO5: Paulinho | KP5: Paulo Otávio | KQ5: Pavel Kadeřábek | KR5: Péter Gulácsi | KS5: Peter Pekarík | KT5: Philipp Förster | KU5: Philipp Klement | KV5: Philipp Lienhart | KW5: Piero Hincapié | KX5: Rafael Czichos | KY5: Rafael Santos Borré | KZ5: Rafał Gikiewicz | LA5: Ragnar Ache | LB5: Ramy Bensebaini | LC5: Rani Khedira | LD5: Raphael Framberger | LE5: Raphaël Guerreiro | LF5: Reece Oxford | LG5: Reinier | LH5: Renato Steffen | LI5: Ridle Baku | LJ5: Robert Andrich | LK5: Robert Gumny | LL5: Robert Lewandowski | LM5: Robert Skov | LN5: Roberto Massimo | LO5: Robin Hack | LP5: Robin Knoche | LQ5: Robin Zentner | LR5: Roland Sallai | LS5: Ruben Vargas | LT5: Salih Özcan | LU5: Sam Lammers | LV5: Santiago Ascacibar | LW5: Sargis Adamyan | LX5: Saša Kalajdžić | LY5: Sascha Burchert | LZ5: Sebastiaan Bornauw | MA5: Sebastian Andersson | MB5: Sebastian Griesbeck | MC5: Sebastian Polter | MD5: Sebastian Rode | ME5: Sebastian Rudy | MF5: Sebastian Vasiliadis | MG5: Serge Gnabry | MH5: Sergio Córdova | MI5: Sheraldo Becker | MJ5: Silas | MK5: Silvan Widmer | ML5: Simon Zoller | MM5: Stefan Bell | MN5: Stefan Ilsanker | MO5: Stefan Lainer | MP5: Stefan Ortega Moreno | MQ5: Stefan Posch | MR5: Steffen Tigges | MS5: Stevan Jovetić | MT5: Suat Serdar | MU5: Taiwo Awoniyi | MV5: Tanguy Coulibaly | MW5: Tanguy Nianzou | MX5: Thomas Meunier | MY5: Thomas Müller | MZ5: Thorgan Hazard | NA5: Tim Lemperle | NB5: Timo Baumgartl | NC5: Timo Horn | ND5: Timo Hübers | NE5: Timothy Chandler | NF5: Timothy Fosu-Mensah | NG5: Timothy Tillman | NH5: Tobias Strobl | NI5: Tomas Ostrak | NJ5: Tony Jantschke | NK5: Tuta | NL5: Tyler Adams | NM5: Vasilios Lampropoulos | NN5: Vincenzo Grifo | NO5: Vladimír Darida | NP5: Wahid Faghir | NQ5: Waldemar Anton | NR5: Wataru Endo | NS5: Willi Orbán | NT5: Woo-yeong Jeong | NU5: Wout Weghorst | NV5: Xaver Schlager | NW5: Yann Sommer | NX5: Yannick Gerhardt | NY5: Yannik Keitel | NZ5: Youssoufa Moukoko | OA5: Yussuf Poulsen
B6: =_xlfn.XLOOKUP(A6,Alle_Spieler[Spieler],Alle_Spieler[Position],"") ->  | C6: =_xlfn.XLOOKUP($A6,Alle_Spieler[Spieler],Alle_Spieler[Verein],"") ->  | D6: =_xlfn.XLOOKUP($A6,Alle_Spieler[Spieler],Alle_Spieler[Marktwert],"") ->  | E6: =_xlfn.XLOOKUP($A6,Alle_Spieler[Spieler],Alle_Spieler[Differenz],"") ->  | F6: =IFERROR(Tabelle4[[#This Row],[Marktwertentwicklung]],"") ->  | N6: =TRANSPOSE(_xlfn._xlws.SORT(_xlfn._xlws.FILTER(Alle_Spieler[Spieler],ISNUMBER((SEARCH(A6,Alle_Spieler[Spieler],1))),"not found"))) -> Aarón | O6: Ádám Szalai | P6: Admir Mehmedi | Q6: Ajdin Hrustić | R6: Alassane Pléa | S6: Alessandro Schöpf | T6: Alexander Hack | U6: Alexander Schwolow | V6: Alfreð Finnbogason | W6: Almamy Touré | X6: Alphonso Davies | Y6: Amadou Haidara | Z6: Amine Adli | AA6: Amos Pieper | AB6: Anderson Lucoqui | AC6: Andi Zeqiri | AD6: André Hahn | AE6: André Silva | AF6: Andreas Luthe | AG6: Andreas Voglsammer | AH6: Andrej Kramarić | AI6: Angeliño | AJ6: Angelo Stiller | AK6: Ansgar Knauff | AL6: Anthony Losilla | AM6: Anthony Modeste | AN6: Anton Stach | AO6: Armel Bella-Kotchap | AP6: Arne Maier | AQ6: Aster Vranckx | AR6: Atakan Karazor | AS6: Axel Witsel | AT6: Aymen Barkok | AU6: Benjamin Henrichs | AV6: Benjamin Hübner | AW6: Benjamin Pavard | AX6: Benno Schmitz | AY6: Borna Sosa | AZ6: Bouna Sarr | BA6: Branimir Hrgota | BB6: Breel Embolo | BC6: Brian Brobbey | BD6: Bryan Lasme | BE6: Carlos Gruezo | BF6: Cédric Brunner | BG6: Cedric Itten | BH6: Cedric Teuchert | BI6: Charles Aránguiz | BJ6: Chris Führich | BK6: Chris Richards | BL6: Christian Günter | BM6: Christoph Baumgartner | BN6: Christoph Kramer | BO6: Christopher Antwi-Adjei | BP6: Christopher Lenz | BQ6: Christopher Nkunku | BR6: Christopher Trimmel | BS6: Clinton Mola | BT6: Corentin Tolisso | BU6: Cristian Gamboa | BV6: Daichi Kamada | BW6: Daley Sinkgraven | BX6: Dan-Axel Zagadou | BY6: Dani Olmo | BZ6: Daniel Brosinski | CA6: Daniel Caligiuri | CB6: Daniel Didavi | CC6: Danilo Soares | CD6: Danny da Costa | CE6: David Raum | CF6: Davie Selke | CG6: Dayot Upamecano | CH6: Dedryck Boyata | CI6: Dejan Ljubičić | CJ6: Denis Zakaria | CK6: Dennis Geiger | CL6: Dennis Jastrzembski | CM6: Deyovaisio Zeefuik | CN6: Diadié Samassékou | CO6: Dickson Abiama | CP6: Djibril Sow | CQ6: Dodi Lukébakio | CR6: Dominik Kohr | CS6: Dominik Szoboszlai | CT6: Dominique Heintz | CU6: Donyell Malen | CV6: E. Choupo-Moting | CW6: Edimilson Fernandes | CX6: Edmond Tapsoba | CY6: Eduard Löwen | CZ6: Ellyes Skhiri | DA6: Elvis Rexhbeçaj | DB6: Emil Forsberg | DC6: Emre Can | DD6: Erhan Mašović | DE6: Erik Durm | DF6: Erik Thommy | DG6: Erling Braut Haaland | DH6: Ermedin Demirović | DI6: Evan N'Dicka | DJ6: Exequiel Palacios | DK6: Fabian Bredlow | DL6: Fabian Klos | DM6: Fabian Kunze | DN6: Felix Nmecha | DO6: Felix Passlack | DP6: Felix Uduokhai | DQ6: Filip Kostić | DR6: Florian Grillitsch | DS6: Florian Kainz | DT6: Florian Müller | DU6: Florian Neuhaus | DV6: Florian Niederlechner | DW6: Florian Schock | DX6: Florian Wirtz | DY6: Genki Haraguchi | DZ6: Georginio Rutter | EA6: Gerrit Holtmann | EB6: Giovanni Reyna | EC6: Gonçalo Paciência | ED6: Gregor Kobel | EE6: Grischa Prömel | EF6: Hamadi Al Ghaddioui | EG6: Hannes Wolf | EH6: Hans Nunoo Sarpei | EI6: Håvard Nielsen | EJ6: Hiroki Ito | EK6: Iago | EL6: Ihlas Bebou | EM6: Ilaix Moriba | EN6: Ishak Belfodil | EO6: Jacob Bruun Larsen | EP6: Jacob Laursen | EQ6: Jae-sung Lee | ER6: Jamal Musiala | ES6: Jan Thielmann | ET6: Janik Haberer | EU6: Janni Serra | EV6: Jean-Paul Boëtius | EW6: Jeffrey Gouweleeuw | EX6: Jens Petter Hauge | EY6: Jeremiah St. Juste | EZ6: Jeremie Frimpong | FA6: Jeremy Dudziak | FB6: Jérôme Roussillon | FC6: Jesper Lindstrøm | FD6: Jetro Willems | FE6: Joakim Nilsson | FF6: Joe Scally | FG6: John Anthony Brooks | FH6: Jonas Hector | FI6: Jonas Hofmann | FJ6: Jonathan Burkardt | FK6: Jonathan Schmid | FL6: Jonathan Tah | FM6: Jordan Beyer | FN6: Jordan Torunarigha | FO6: Jorge Meré | FP6: Joshua Kimmich | FQ6: Josip Stanišić | FR6: Joško Gvardiol | FS6: Josuha Guilavogui | FT6: Jude Bellingham | FU6: Julian Brandt | FV6: Julian Green | FW6: Julian Ryerson | FX6: Jurgen Ekkelenkamp | FY6: Justin Hoogma | FZ6: Karim Bellarabi | GA6: Karim Onisiwo | GB6: Kerem Demirbay | GC6: Keven Schlotterbeck | GD6: Kevin Akpoguma | GE6: Kevin Behrens | GF6: Kevin Kampl | GG6: Kevin Mbabu | GH6: Kevin Möhwald | GI6: Kevin Schade | GJ6: Kevin Stöger | GK6: Kevin Trapp | GL6: Kevin Vogt | GM6: Kevin-Prince Boateng | GN6: Kiliann Sildillia | GO6: Kingsley Coman | GP6: Kingsley Ehizibue | GQ6: Kingsley Schindler | GR6: Koen Casteels | GS6: Konrad Laimer | GT6: Konstantinos Mavropanos | GU6: Konstantinos Stafylidis | GV6: Kristijan Jakić | GW6: Krzysztof Piątek | GX6: Lars Stindl | GY6: László Bénes | GZ6: Leandro Barreiro | HA6: Lennart Czyborra | HB6: Leon Goretzka | HC6: Leroy Sané | HD6: Levin Öztunali | HE6: Linus Gechter | HF6: Louis Schaub | HG6: Luca Kilian | HH6: Luca Netz | HI6: Luca Waldschmidt | HJ6: Lucas Alario | HK6: Lucas Hernández | HL6: Lucas Höler | HM6: Lucas Tousart | HN6: Lukáš Hrádecký | HO6: Lukas Klostermann | HP6: Lukas Kübler | HQ6: Lukas Nmecha | HR6: Mads Pedersen | HS6: Mahmoud Dahoud | HT6: Makoto Hasebe | HU6: Manu Koné | HV6: Manuel Akanji | HW6: Manuel Gulde | HX6: Manuel Neuer | HY6: Manuel Prietl | HZ6: Manuel Riemann | IA6: Marc Oliver Kempf | IB6: Marcel Halstenberg | IC6: Marcel Sabitzer | ID6: Marco Meyerhöfer | IE6: Marco Reus | IF6: Marco Richter | IG6: Marcus Ingvartsen | IH6: Marcus Thuram | II6: Marin Pongračić | IJ6: Marius Funk | IK6: Marius Wolf | IL6: Mark Flekken | IM6: Mark Uth | IN6: Martin Hinteregger | IO6: Márton Dárdai | IP6: Marvin Friedrich | IQ6: Marvin Plattenhardt | IR6: Masaya Okugawa | IS6: Mateo Klimowicz | IT6: Mateu Morey | IU6: Mats Hummels | IV6: Matthias Ginter | IW6: Max Kruse | IX6: Maxence Lacroix | IY6: Maxim Leitsch | IZ6: Maximilian Arnold | JA6: Maximilian Bauer | JB6: Maximilian Eggestein | JC6: Maximilian Mittelstädt | JD6: Maximilian Philipp | JE6: Mijat Gaćinović | JF6: Miloš Pantović | JG6: Mitchel Bakker | JH6: Mohamed Simakan | JI6: Moussa Diaby | JJ6: Moussa Niakhaté | JK6: Munas Dabbur | JL6: Myziane Maolida | JM6: Nadiem Amiri | JN6: Nick Viergever | JO6: Nico Elvedi | JP6: Nico Schlotterbeck | JQ6: Nico Schulz | JR6: Nicolas Höfler | JS6: Niklas Dorsch | JT6: Niklas Stark | JU6: Niklas Süle | JV6: Niklas Tauer | JW6: Niko Gießelmann | JX6: Nikolas Nartey | JY6: Nils Petersen | JZ6: Noah Weißhaupt | KA6: Nordi Mukiele | KB6: Odilon Kossounou | KC6: Oliver Baumann | KD6: Omar Marmoush | KE6: Omar Richards | KF6: Ömer Faruk Beyaz | KG6: Ondrej Duda | KH6: Orel Mangala | KI6: Pascal Stenzel | KJ6: Patrick Herrmann | KK6: Patrick Wimmer | KL6: Patrik Schick | KM6: Paul Jaeckel | KN6: Paul Seguin | KO6: Paulinho | KP6: Paulo Otávio | KQ6: Pavel Kadeřábek | KR6: Péter Gulácsi | KS6: Peter Pekarík | KT6: Philipp Förster | KU6: Philipp Klement | KV6: Philipp Lienhart | KW6: Piero Hincapié | KX6: Rafael Czichos | KY6: Rafael Santos Borré | KZ6: Rafał Gikiewicz | LA6: Ragnar Ache | LB6: Ramy Bensebaini | LC6: Rani Khedira | LD6: Raphael Framberger | LE6: Raphaël Guerreiro | LF6: Reece Oxford | LG6: Reinier | LH6: Renato Steffen | LI6: Ridle Baku | LJ6: Robert Andrich | LK6: Robert Gumny | LL6: Robert Lewandowski | LM6: Robert Skov | LN6: Roberto Massimo | LO6: Robin Hack | LP6: Robin Knoche | LQ6: Robin Zentner | LR6: Roland Sallai | LS6: Ruben Vargas | LT6: Salih Özcan | LU6: Sam Lammers | LV6: Santiago Ascacibar | LW6: Sargis Adamyan | LX6: Saša Kalajdžić | LY6: Sascha Burchert | LZ6: Sebastiaan Bornauw | MA6: Sebastian Andersson | MB6: Sebastian Griesbeck | MC6: Sebastian Polter | MD6: Sebastian Rode | ME6: Sebastian Rudy | MF6: Sebastian Vasiliadis | MG6: Serge Gnabry | MH6: Sergio Córdova | MI6: Sheraldo Becker | MJ6: Silas | MK6: Silvan Widmer | ML6: Simon Zoller | MM6: Stefan Bell | MN6: Stefan Ilsanker | MO6: Stefan Lainer | MP6: Stefan Ortega Moreno | MQ6: Stefan Posch | MR6: Steffen Tigges | MS6: Stevan Jovetić | MT6: Suat Serdar | MU6: Taiwo Awoniyi | MV6: Tanguy Coulibaly | MW6: Tanguy Nianzou | MX6: Thomas Meunier | MY6: Thomas Müller | MZ6: Thorgan Hazard | NA6: Tim Lemperle | NB6: Timo Baumgartl | NC6: Timo Horn | ND6: Timo Hübers | NE6: Timothy Chandler | NF6: Timothy Fosu-Mensah | NG6: Timothy Tillman | NH6: Tobias Strobl | NI6: Tomas Ostrak | NJ6: Tony Jantschke | NK6: Tuta | NL6: Tyler Adams | NM6: Vasilios Lampropoulos | NN6: Vincenzo Grifo | NO6: Vladimír Darida | NP6: Wahid Faghir | NQ6: Waldemar Anton | NR6: Wataru Endo | NS6: Willi Orbán | NT6: Woo-yeong Jeong | NU6: Wout Weghorst | NV6: Xaver Schlager | NW6: Yann Sommer | NX6: Yannick Gerhardt | NY6: Yannik Keitel | NZ6: Youssoufa Moukoko | OA6: Yussuf Poulsen
B7: =_xlfn.XLOOKUP(A7,Alle_Spieler[Spieler],Alle_Spieler[Position],"") ->  | C7: =_xlfn.XLOOKUP($A7,Alle_Spieler[Spieler],Alle_Spieler[Verein],"") ->  | D7: =_xlfn.XLOOKUP($A7,Alle_Spieler[Spieler],Alle_Spieler[Marktwert],"") ->  | E7: =_xlfn.XLOOKUP($A7,Alle_Spieler[Spieler],Alle_Spieler[Differenz],"") ->  | F7: =Tabelle4[[#This Row],[Marktwertentwicklung]] ->  | N7: =TRANSPOSE(_xlfn._xlws.SORT(_xlfn._xlws.FILTER(Alle_Spieler[Spieler],ISNUMBER((SEARCH(A7,Alle_Spieler[Spieler],1))),"not found"))) -> Aarón | O7: Ádám Szalai | P7: Admir Mehmedi | Q7: Ajdin Hrustić | R7: Alassane Pléa | S7: Alessandro Schöpf | T7: Alexander Hack | U7: Alexander Schwolow | V7: Alfreð Finnbogason | W7: Almamy Touré | X7: Alphonso Davies | Y7: Amadou Haidara | Z7: Amine Adli | AA7: Amos Pieper | AB7: Anderson Lucoqui | AC7: Andi Zeqiri | AD7: André Hahn | AE7: André Silva | AF7: Andreas Luthe | AG7: Andreas Voglsammer | AH7: Andrej Kramarić | AI7: Angeliño | AJ7: Angelo Stiller | AK7: Ansgar Knauff | AL7: Anthony Losilla | AM7: Anthony Modeste | AN7: Anton Stach | AO7: Armel Bella-Kotchap | AP7: Arne Maier | AQ7: Aster Vranckx | AR7: Atakan Karazor | AS7: Axel Witsel | AT7: Aymen Barkok | AU7: Benjamin Henrichs | AV7: Benjamin Hübner | AW7: Benjamin Pavard | AX7: Benno Schmitz | AY7: Borna Sosa | AZ7: Bouna Sarr | BA7: Branimir Hrgota | BB7: Breel Embolo | BC7: Brian Brobbey | BD7: Bryan Lasme | BE7: Carlos Gruezo | BF7: Cédric Brunner | BG7: Cedric Itten | BH7: Cedric Teuchert | BI7: Charles Aránguiz | BJ7: Chris Führich | BK7: Chris Richards | BL7: Christian Günter | BM7: Christoph Baumgartner | BN7: Christoph Kramer | BO7: Christopher Antwi-Adjei | BP7: Christopher Lenz | BQ7: Christopher Nkunku | BR7: Christopher Trimmel | BS7: Clinton Mola | BT7: Corentin Tolisso | BU7: Cristian Gamboa | BV7: Daichi Kamada | BW7: Daley Sinkgraven | BX7: Dan-Axel Zagadou | BY7: Dani Olmo | BZ7: Daniel Brosinski | CA7: Daniel Caligiuri | CB7: Daniel Didavi | CC7: Danilo Soares | CD7: Danny da Costa | CE7: David Raum | CF7: Davie Selke | CG7: Dayot Upamecano | CH7: Dedryck Boyata | CI7: Dejan Ljubičić | CJ7: Denis Zakaria | CK7: Dennis Geiger | CL7: Dennis Jastrzembski | CM7: Deyovaisio Zeefuik | CN7: Diadié Samassékou | CO7: Dickson Abiama | CP7: Djibril Sow | CQ7: Dodi Lukébakio | CR7: Dominik Kohr | CS7: Dominik Szoboszlai | CT7: Dominique Heintz | CU7: Donyell Malen | CV7: E. Choupo-Moting | CW7: Edimilson Fernandes | CX7: Edmond Tapsoba | CY7: Eduard Löwen | CZ7: Ellyes Skhiri | DA7: Elvis Rexhbeçaj | DB7: Emil Forsberg | DC7: Emre Can | DD7: Erhan Mašović | DE7: Erik Durm | DF7: Erik Thommy | DG7: Erling Braut Haaland | DH7: Ermedin Demirović | DI7: Evan N'Dicka | DJ7: Exequiel Palacios | DK7: Fabian Bredlow | DL7: Fabian Klos | DM7: Fabian Kunze | DN7: Felix Nmecha | DO7: Felix Passlack | DP7: Felix Uduokhai | DQ7: Filip Kostić | DR7: Florian Grillitsch | DS7: Florian Kainz | DT7: Florian Müller | DU7: Florian Neuhaus | DV7: Florian Niederlechner | DW7: Florian Schock | DX7: Florian Wirtz | DY7: Genki Haraguchi | DZ7: Georginio Rutter | EA7: Gerrit Holtmann | EB7: Giovanni Reyna | EC7: Gonçalo Paciência | ED7: Gregor Kobel | EE7: Grischa Prömel | EF7: Hamadi Al Ghaddioui | EG7: Hannes Wolf | EH7: Hans Nunoo Sarpei | EI7: Håvard Nielsen | EJ7: Hiroki Ito | EK7: Iago | EL7: Ihlas Bebou | EM7: Ilaix Moriba | EN7: Ishak Belfodil | EO7: Jacob Bruun Larsen | EP7: Jacob Laursen | EQ7: Jae-sung Lee | ER7: Jamal Musiala | ES7: Jan Thielmann | ET7: Janik Haberer | EU7: Janni Serra | EV7: Jean-Paul Boëtius | EW7: Jeffrey Gouweleeuw | EX7: Jens Petter Hauge | EY7: Jeremiah St. Juste | EZ7: Jeremie Frimpong | FA7: Jeremy Dudziak | FB7: Jérôme Roussillon | FC7: Jesper Lindstrøm | FD7: Jetro Willems | FE7: Joakim Nilsson | FF7: Joe Scally | FG7: John Anthony Brooks | FH7: Jonas Hector | FI7: Jonas Hofmann | FJ7: Jonathan Burkardt | FK7: Jonathan Schmid | FL7: Jonathan Tah | FM7: Jordan Beyer | FN7: Jordan Torunarigha | FO7: Jorge Meré | FP7: Joshua Kimmich | FQ7: Josip Stanišić | FR7: Joško Gvardiol | FS7: Josuha Guilavogui | FT7: Jude Bellingham | FU7: Julian Brandt | FV7: Julian Green | FW7: Julian Ryerson | FX7: Jurgen Ekkelenkamp | FY7: Justin Hoogma | FZ7: Karim Bellarabi | GA7: Karim Onisiwo | GB7: Kerem Demirbay | GC7: Keven Schlotterbeck | GD7: Kevin Akpoguma | GE7: Kevin Behrens | GF7: Kevin Kampl | GG7: Kevin Mbabu | GH7: Kevin Möhwald | GI7: Kevin Schade | GJ7: Kevin Stöger | GK7: Kevin Trapp | GL7: Kevin Vogt | GM7: Kevin-Prince Boateng | GN7: Kiliann Sildillia | GO7: Kingsley Coman | GP7: Kingsley Ehizibue | GQ7: Kingsley Schindler | GR7: Koen Casteels | GS7: Konrad Laimer | GT7: Konstantinos Mavropanos | GU7: Konstantinos Stafylidis | GV7: Kristijan Jakić | GW7: Krzysztof Piątek | GX7: Lars Stindl | GY7: László Bénes | GZ7: Leandro Barreiro | HA7: Lennart Czyborra | HB7: Leon Goretzka | HC7: Leroy Sané | HD7: Levin Öztunali | HE7: Linus Gechter | HF7: Louis Schaub | HG7: Luca Kilian | HH7: Luca Netz | HI7: Luca Waldschmidt | HJ7: Lucas Alario | HK7: Lucas Hernández | HL7: Lucas Höler | HM7: Lucas Tousart | HN7: Lukáš Hrádecký | HO7: Lukas Klostermann | HP7: Lukas Kübler | HQ7: Lukas Nmecha | HR7: Mads Pedersen | HS7: Mahmoud Dahoud | HT7: Makoto Hasebe | HU7: Manu Koné | HV7: Manuel Akanji | HW7: Manuel Gulde | HX7: Manuel Neuer | HY7: Manuel Prietl | HZ7: Manuel Riemann | IA7: Marc Oliver Kempf | IB7: Marcel Halstenberg | IC7: Marcel Sabitzer | ID7: Marco Meyerhöfer | IE7: Marco Reus | IF7: Marco Richter | IG7: Marcus Ingvartsen | IH7: Marcus Thuram | II7: Marin Pongračić | IJ7: Marius Funk | IK7: Marius Wolf | IL7: Mark Flekken | IM7: Mark Uth | IN7: Martin Hinteregger | IO7: Márton Dárdai | IP7: Marvin Friedrich | IQ7: Marvin Plattenhardt | IR7: Masaya Okugawa | IS7: Mateo Klimowicz | IT7: Mateu Morey | IU7: Mats Hummels | IV7: Matthias Ginter | IW7: Max Kruse | IX7: Maxence Lacroix | IY7: Maxim Leitsch | IZ7: Maximilian Arnold | JA7: Maximilian Bauer | JB7: Maximilian Eggestein | JC7: Maximilian Mittelstädt | JD7: Maximilian Philipp | JE7: Mijat Gaćinović | JF7: Miloš Pantović | JG7: Mitchel Bakker | JH7: Mohamed Simakan | JI7: Moussa Diaby | JJ7: Moussa Niakhaté | JK7: Munas Dabbur | JL7: Myziane Maolida | JM7: Nadiem Amiri | JN7: Nick Viergever | JO7: Nico Elvedi | JP7: Nico Schlotterbeck | JQ7: Nico Schulz | JR7: Nicolas Höfler | JS7: Niklas Dorsch | JT7: Niklas Stark | JU7: Niklas Süle | JV7: Niklas Tauer | JW7: Niko Gießelmann | JX7: Nikolas Nartey | JY7: Nils Petersen | JZ7: Noah Weißhaupt | KA7: Nordi Mukiele | KB7: Odilon Kossounou | KC7: Oliver Baumann | KD7: Omar Marmoush | KE7: Omar Richards | KF7: Ömer Faruk Beyaz | KG7: Ondrej Duda | KH7: Orel Mangala | KI7: Pascal Stenzel | KJ7: Patrick Herrmann | KK7: Patrick Wimmer | KL7: Patrik Schick | KM7: Paul Jaeckel | KN7: Paul Seguin | KO7: Paulinho | KP7: Paulo Otávio | KQ7: Pavel Kadeřábek | KR7: Péter Gulácsi | KS7: Peter Pekarík | KT7: Philipp Förster | KU7: Philipp Klement | KV7: Philipp Lienhart | KW7: Piero Hincapié | KX7: Rafael Czichos | KY7: Rafael Santos Borré | KZ7: Rafał Gikiewicz | LA7: Ragnar Ache | LB7: Ramy Bensebaini | LC7: Rani Khedira | LD7: Raphael Framberger | LE7: Raphaël Guerreiro | LF7: Reece Oxford | LG7: Reinier | LH7: Renato Steffen | LI7: Ridle Baku | LJ7: Robert Andrich | LK7: Robert Gumny | LL7: Robert Lewandowski | LM7: Robert Skov | LN7: Roberto Massimo | LO7: Robin Hack | LP7: Robin Knoche | LQ7: Robin Zentner | LR7: Roland Sallai | LS7: Ruben Vargas | LT7: Salih Özcan | LU7: Sam Lammers | LV7: Santiago Ascacibar | LW7: Sargis Adamyan | LX7: Saša Kalajdžić | LY7: Sascha Burchert | LZ7: Sebastiaan Bornauw | MA7: Sebastian Andersson | MB7: Sebastian Griesbeck | MC7: Sebastian Polter | MD7: Sebastian Rode | ME7: Sebastian Rudy | MF7: Sebastian Vasiliadis | MG7: Serge Gnabry | MH7: Sergio Córdova | MI7: Sheraldo Becker | MJ7: Silas | MK7: Silvan Widmer | ML7: Simon Zoller | MM7: Stefan Bell | MN7: Stefan Ilsanker | MO7: Stefan Lainer | MP7: Stefan Ortega Moreno | MQ7: Stefan Posch | MR7: Steffen Tigges | MS7: Stevan Jovetić | MT7: Suat Serdar | MU7: Taiwo Awoniyi | MV7: Tanguy Coulibaly | MW7: Tanguy Nianzou | MX7: Thomas Meunier | MY7: Thomas Müller | MZ7: Thorgan Hazard | NA7: Tim Lemperle | NB7: Timo Baumgartl | NC7: Timo Horn | ND7: Timo Hübers | NE7: Timothy Chandler | NF7: Timothy Fosu-Mensah | NG7: Timothy Tillman | NH7: Tobias Strobl | NI7: Tomas Ostrak | NJ7: Tony Jantschke | NK7: Tuta | NL7: Tyler Adams | NM7: Vasilios Lampropoulos | NN7: Vincenzo Grifo | NO7: Vladimír Darida | NP7: Wahid Faghir | NQ7: Waldemar Anton | NR7: Wataru Endo | NS7: Willi Orbán | NT7: Woo-yeong Jeong | NU7: Wout Weghorst | NV7: Xaver Schlager | NW7: Yann Sommer | NX7: Yannick Gerhardt | NY7: Yannik Keitel | NZ7: Youssoufa Moukoko | OA7: Yussuf Poulsen
B8: =_xlfn.XLOOKUP(A8,Alle_Spieler[Spieler],Alle_Spieler[Position],"") ->  | C8: =_xlfn.XLOOKUP($A8,Alle_Spieler[Spieler],Alle_Spieler[Verein],"") ->  | D8: =_xlfn.XLOOKUP($A8,Alle_Spieler[Spieler],Alle_Spieler[Marktwert],"") ->  | E8: =_xlfn.XLOOKUP($A8,Alle_Spieler[Spieler],Alle_Spieler[Differenz],"") ->  | F8: =Tabelle4[[#This Row],[Marktwertentwicklung]] ->  | N8: =TRANSPOSE(_xlfn._xlws.SORT(_xlfn._xlws.FILTER(Alle_Spieler[Spieler],ISNUMBER((SEARCH(A8,Alle_Spieler[Spieler],1))),"not found"))) -> Aarón | O8: Ádám Szalai | P8: Admir Mehmedi | Q8: Ajdin Hrustić | R8: Alassane Pléa | S8: Alessandro Schöpf | T8: Alexander Hack | U8: Alexander Schwolow | V8: Alfreð Finnbogason | W8: Almamy Touré | X8: Alphonso Davies | Y8: Amadou Haidara | Z8: Amine Adli | AA8: Amos Pieper | AB8: Anderson Lucoqui | AC8: Andi Zeqiri | AD8: André Hahn | AE8: André Silva | AF8: Andreas Luthe | AG8: Andreas Voglsammer | AH8: Andrej Kramarić | AI8: Angeliño | AJ8: Angelo Stiller | AK8: Ansgar Knauff | AL8: Anthony Losilla | AM8: Anthony Modeste | AN8: Anton Stach | AO8: Armel Bella-Kotchap | AP8: Arne Maier | AQ8: Aster Vranckx | AR8: Atakan Karazor | AS8: Axel Witsel | AT8: Aymen Barkok | AU8: Benjamin Henrichs | AV8: Benjamin Hübner | AW8: Benjamin Pavard | AX8: Benno Schmitz | AY8: Borna Sosa | AZ8: Bouna Sarr | BA8: Branimir Hrgota | BB8: Breel Embolo | BC8: Brian Brobbey | BD8: Bryan Lasme | BE8: Carlos Gruezo | BF8: Cédric Brunner | BG8: Cedric Itten | BH8: Cedric Teuchert | BI8: Charles Aránguiz | BJ8: Chris Führich | BK8: Chris Richards | BL8: Christian Günter | BM8: Christoph Baumgartner | BN8: Christoph Kramer | BO8: Christopher Antwi-Adjei | BP8: Christopher Lenz | BQ8: Christopher Nkunku | BR8: Christopher Trimmel | BS8: Clinton Mola | BT8: Corentin Tolisso | BU8: Cristian Gamboa | BV8: Daichi Kamada | BW8: Daley Sinkgraven | BX8: Dan-Axel Zagadou | BY8: Dani Olmo | BZ8: Daniel Brosinski | CA8: Daniel Caligiuri | CB8: Daniel Didavi | CC8: Danilo Soares | CD8: Danny da Costa | CE8: David Raum | CF8: Davie Selke | CG8: Dayot Upamecano | CH8: Dedryck Boyata | CI8: Dejan Ljubičić | CJ8: Denis Zakaria | CK8: Dennis Geiger | CL8: Dennis Jastrzembski | CM8: Deyovaisio Zeefuik | CN8: Diadié Samassékou | CO8: Dickson Abiama | CP8: Djibril Sow | CQ8: Dodi Lukébakio | CR8: Dominik Kohr | CS8: Dominik Szoboszlai | CT8: Dominique Heintz | CU8: Donyell Malen | CV8: E. Choupo-Moting | CW8: Edimilson Fernandes | CX8: Edmond Tapsoba | CY8: Eduard Löwen | CZ8: Ellyes Skhiri | DA8: Elvis Rexhbeçaj | DB8: Emil Forsberg | DC8: Emre Can | DD8: Erhan Mašović | DE8: Erik Durm | DF8: Erik Thommy | DG8: Erling Braut Haaland | DH8: Ermedin Demirović | DI8: Evan N'Dicka | DJ8: Exequiel Palacios | DK8: Fabian Bredlow | DL8: Fabian Klos | DM8: Fabian Kunze | DN8: Felix Nmecha | DO8: Felix Passlack | DP8: Felix Uduokhai | DQ8: Filip Kostić | DR8: Florian Grillitsch | DS8: Florian Kainz | DT8: Florian Müller | DU8: Florian Neuhaus | DV8: Florian Niederlechner | DW8: Florian Schock | DX8: Florian Wirtz | DY8: Genki Haraguchi | DZ8: Georginio Rutter | EA8: Gerrit Holtmann | EB8: Giovanni Reyna | EC8: Gonçalo Paciência | ED8: Gregor Kobel | EE8: Grischa Prömel | EF8: Hamadi Al Ghaddioui | EG8: Hannes Wolf | EH8: Hans Nunoo Sarpei | EI8: Håvard Nielsen | EJ8: Hiroki Ito | EK8: Iago | EL8: Ihlas Bebou | EM8: Ilaix Moriba | EN8: Ishak Belfodil | EO8: Jacob Bruun Larsen | EP8: Jacob Laursen | EQ8: Jae-sung Lee | ER8: Jamal Musiala | ES8: Jan Thielmann | ET8: Janik Haberer | EU8: Janni Serra | EV8: Jean-Paul Boëtius | EW8: Jeffrey Gouweleeuw | EX8: Jens Petter Hauge | EY8: Jeremiah St. Juste | EZ8: Jeremie Frimpong | FA8: Jeremy Dudziak | FB8: Jérôme Roussillon | FC8: Jesper Lindstrøm | FD8: Jetro Willems | FE8: Joakim Nilsson | FF8: Joe Scally | FG8: John Anthony Brooks | FH8: Jonas Hector | FI8: Jonas Hofmann | FJ8: Jonathan Burkardt | FK8: Jonathan Schmid | FL8: Jonathan Tah | FM8: Jordan Beyer | FN8: Jordan Torunarigha | FO8: Jorge Meré | FP8: Joshua Kimmich | FQ8: Josip Stanišić | FR8: Joško Gvardiol | FS8: Josuha Guilavogui | FT8: Jude Bellingham | FU8: Julian Brandt | FV8: Julian Green | FW8: Julian Ryerson | FX8: Jurgen Ekkelenkamp | FY8: Justin Hoogma | FZ8: Karim Bellarabi | GA8: Karim Onisiwo | GB8: Kerem Demirbay | GC8: Keven Schlotterbeck | GD8: Kevin Akpoguma | GE8: Kevin Behrens | GF8: Kevin Kampl | GG8: Kevin Mbabu | GH8: Kevin Möhwald | GI8: Kevin Schade | GJ8: Kevin Stöger | GK8: Kevin Trapp | GL8: Kevin Vogt | GM8: Kevin-Prince Boateng | GN8: Kiliann Sildillia | GO8: Kingsley Coman | GP8: Kingsley Ehizibue | GQ8: Kingsley Schindler | GR8: Koen Casteels | GS8: Konrad Laimer | GT8: Konstantinos Mavropanos | GU8: Konstantinos Stafylidis | GV8: Kristijan Jakić | GW8: Krzysztof Piątek | GX8: Lars Stindl | GY8: László Bénes | GZ8: Leandro Barreiro | HA8: Lennart Czyborra | HB8: Leon Goretzka | HC8: Leroy Sané | HD8: Levin Öztunali | HE8: Linus Gechter | HF8: Louis Schaub | HG8: Luca Kilian | HH8: Luca Netz | HI8: Luca Waldschmidt | HJ8: Lucas Alario | HK8: Lucas Hernández | HL8: Lucas Höler | HM8: Lucas Tousart | HN8: Lukáš Hrádecký | HO8: Lukas Klostermann | HP8: Lukas Kübler | HQ8: Lukas Nmecha | HR8: Mads Pedersen | HS8: Mahmoud Dahoud | HT8: Makoto Hasebe | HU8: Manu Koné | HV8: Manuel Akanji | HW8: Manuel Gulde | HX8: Manuel Neuer | HY8: Manuel Prietl | HZ8: Manuel Riemann | IA8: Marc Oliver Kempf | IB8: Marcel Halstenberg | IC8: Marcel Sabitzer | ID8: Marco Meyerhöfer | IE8: Marco Reus | IF8: Marco Richter | IG8: Marcus Ingvartsen | IH8: Marcus Thuram | II8: Marin Pongračić | IJ8: Marius Funk | IK8: Marius Wolf | IL8: Mark Flekken | IM8: Mark Uth | IN8: Martin Hinteregger | IO8: Márton Dárdai | IP8: Marvin Friedrich | IQ8: Marvin Plattenhardt | IR8: Masaya Okugawa | IS8: Mateo Klimowicz | IT8: Mateu Morey | IU8: Mats Hummels | IV8: Matthias Ginter | IW8: Max Kruse | IX8: Maxence Lacroix | IY8: Maxim Leitsch | IZ8: Maximilian Arnold | JA8: Maximilian Bauer | JB8: Maximilian Eggestein | JC8: Maximilian Mittelstädt | JD8: Maximilian Philipp | JE8: Mijat Gaćinović | JF8: Miloš Pantović | JG8: Mitchel Bakker | JH8: Mohamed Simakan | JI8: Moussa Diaby | JJ8: Moussa Niakhaté | JK8: Munas Dabbur | JL8: Myziane Maolida | JM8: Nadiem Amiri | JN8: Nick Viergever | JO8: Nico Elvedi | JP8: Nico Schlotterbeck | JQ8: Nico Schulz | JR8: Nicolas Höfler | JS8: Niklas Dorsch | JT8: Niklas Stark | JU8: Niklas Süle | JV8: Niklas Tauer | JW8: Niko Gießelmann | JX8: Nikolas Nartey | JY8: Nils Petersen | JZ8: Noah Weißhaupt | KA8: Nordi Mukiele | KB8: Odilon Kossounou | KC8: Oliver Baumann | KD8: Omar Marmoush | KE8: Omar Richards | KF8: Ömer Faruk Beyaz | KG8: Ondrej Duda | KH8: Orel Mangala | KI8: Pascal Stenzel | KJ8: Patrick Herrmann | KK8: Patrick Wimmer | KL8: Patrik Schick | KM8: Paul Jaeckel | KN8: Paul Seguin | KO8: Paulinho | KP8: Paulo Otávio | KQ8: Pavel Kadeřábek | KR8: Péter Gulácsi | KS8: Peter Pekarík | KT8: Philipp Förster | KU8: Philipp Klement | KV8: Philipp Lienhart | KW8: Piero Hincapié | KX8: Rafael Czichos | KY8: Rafael Santos Borré | KZ8: Rafał Gikiewicz | LA8: Ragnar Ache | LB8: Ramy Bensebaini | LC8: Rani Khedira | LD8: Raphael Framberger | LE8: Raphaël Guerreiro | LF8: Reece Oxford | LG8: Reinier | LH8: Renato Steffen | LI8: Ridle Baku | LJ8: Robert Andrich | LK8: Robert Gumny | LL8: Robert Lewandowski | LM8: Robert Skov | LN8: Roberto Massimo | LO8: Robin Hack | LP8: Robin Knoche | LQ8: Robin Zentner | LR8: Roland Sallai | LS8: Ruben Vargas | LT8: Salih Özcan | LU8: Sam Lammers | LV8: Santiago Ascacibar | LW8: Sargis Adamyan | LX8: Saša Kalajdžić | LY8: Sascha Burchert | LZ8: Sebastiaan Bornauw | MA8: Sebastian Andersson | MB8: Sebastian Griesbeck | MC8: Sebastian Polter | MD8: Sebastian Rode | ME8: Sebastian Rudy | MF8: Sebastian Vasiliadis | MG8: Serge Gnabry | MH8: Sergio Córdova | MI8: Sheraldo Becker | MJ8: Silas | MK8: Silvan Widmer | ML8: Simon Zoller | MM8: Stefan Bell | MN8: Stefan Ilsanker | MO8: Stefan Lainer | MP8: Stefan Ortega Moreno | MQ8: Stefan Posch | MR8: Steffen Tigges | MS8: Stevan Jovetić | MT8: Suat Serdar | MU8: Taiwo Awoniyi | MV8: Tanguy Coulibaly | MW8: Tanguy Nianzou | MX8: Thomas Meunier | MY8: Thomas Müller | MZ8: Thorgan Hazard | NA8: Tim Lemperle | NB8: Timo Baumgartl | NC8: Timo Horn | ND8: Timo Hübers | NE8: Timothy Chandler | NF8: Timothy Fosu-Mensah | NG8: Timothy Tillman | NH8: Tobias Strobl | NI8: Tomas Ostrak | NJ8: Tony Jantschke | NK8: Tuta | NL8: Tyler Adams | NM8: Vasilios Lampropoulos | NN8: Vincenzo Grifo | NO8: Vladimír Darida | NP8: Wahid Faghir | NQ8: Waldemar Anton | NR8: Wataru Endo | NS8: Willi Orbán | NT8: Woo-yeong Jeong | NU8: Wout Weghorst | NV8: Xaver Schlager | NW8: Yann Sommer | NX8: Yannick Gerhardt | NY8: Yannik Keitel | NZ8: Youssoufa Moukoko | OA8: Yussuf Poulsen
B9: =_xlfn.XLOOKUP(A9,Alle_Spieler[Spieler],Alle_Spieler[Position],"") ->  | C9: =_xlfn.XLOOKUP($A9,Alle_Spieler[Spieler],Alle_Spieler[Verein],"") ->  | D9: =_xlfn.XLOOKUP($A9,Alle_Spieler[Spieler],Alle_Spieler[Marktwert],"") ->  | E9: =_xlfn.XLOOKUP($A9,Alle_Spieler[Spieler],Alle_Spieler[Differenz],"") ->  | F9: =Tabelle4[[#This Row],[Marktwertentwicklung]] ->  | N9: =TRANSPOSE(_xlfn._xlws.SORT(_xlfn._xlws.FILTER(Alle_Spieler[Spieler],ISNUMBER((SEARCH(A9,Alle_Spieler[Spieler],1))),"not found"))) -> Aarón | O9: Ádám Szalai | P9: Admir Mehmedi | Q9: Ajdin Hrustić | R9: Alassane Pléa | S9: Alessandro Schöpf | T9: Alexander Hack | U9: Alexander Schwolow | V9: Alfreð Finnbogason | W9: Almamy Touré | X9: Alphonso Davies | Y9: Amadou Haidara | Z9: Amine Adli | AA9: Amos Pieper | AB9: Anderson Lucoqui | AC9: Andi Zeqiri | AD9: André Hahn | AE9: André Silva | AF9: Andreas Luthe | AG9: Andreas Voglsammer | AH9: Andrej Kramarić | AI9: Angeliño | AJ9: Angelo Stiller | AK9: Ansgar Knauff | AL9: Anthony Losilla | AM9: Anthony Modeste | AN9: Anton Stach | AO9: Armel Bella-Kotchap | AP9: Arne Maier | AQ9: Aster Vranckx | AR9: Atakan Karazor | AS9: Axel Witsel | AT9: Aymen Barkok | AU9: Benjamin Henrichs | AV9: Benjamin Hübner | AW9: Benjamin Pavard | AX9: Benno Schmitz | AY9: Borna Sosa | AZ9: Bouna Sarr | BA9: Branimir Hrgota | BB9: Breel Embolo | BC9: Brian Brobbey | BD9: Bryan Lasme | BE9: Carlos Gruezo | BF9: Cédric Brunner | BG9: Cedric Itten | BH9: Cedric Teuchert | BI9: Charles Aránguiz | BJ9: Chris Führich | BK9: Chris Richards | BL9: Christian Günter | BM9: Christoph Baumgartner | BN9: Christoph Kramer | BO9: Christopher Antwi-Adjei | BP9: Christopher Lenz | BQ9: Christopher Nkunku | BR9: Christopher Trimmel | BS9: Clinton Mola | BT9: Corentin Tolisso | BU9: Cristian Gamboa | BV9: Daichi Kamada | BW9: Daley Sinkgraven | BX9: Dan-Axel Zagadou | BY9: Dani Olmo | BZ9: Daniel Brosinski | CA9: Daniel Caligiuri | CB9: Daniel Didavi | CC9: Danilo Soares | CD9: Danny da Costa | CE9: David Raum | CF9: Davie Selke | CG9: Dayot Upamecano | CH9: Dedryck Boyata | CI9: Dejan Ljubičić | CJ9: Denis Zakaria | CK9: Dennis Geiger | CL9: Dennis Jastrzembski | CM9: Deyovaisio Zeefuik | CN9: Diadié Samassékou | CO9: Dickson Abiama | CP9: Djibril Sow | CQ9: Dodi Lukébakio | CR9: Dominik Kohr | CS9: Dominik Szoboszlai | CT9: Dominique Heintz | CU9: Donyell Malen | CV9: E. Choupo-Moting | CW9: Edimilson Fernandes | CX9: Edmond Tapsoba | CY9: Eduard Löwen | CZ9: Ellyes Skhiri | DA9: Elvis Rexhbeçaj | DB9: Emil Forsberg | DC9: Emre Can | DD9: Erhan Mašović | DE9: Erik Durm | DF9: Erik Thommy | DG9: Erling Braut Haaland | DH9: Ermedin Demirović | DI9: Evan N'Dicka | DJ9: Exequiel Palacios | DK9: Fabian Bredlow | DL9: Fabian Klos | DM9: Fabian Kunze | DN9: Felix Nmecha | DO9: Felix Passlack | DP9: Felix Uduokhai | DQ9: Filip Kostić | DR9: Florian Grillitsch | DS9: Florian Kainz | DT9: Florian Müller | DU9: Florian Neuhaus | DV9: Florian Niederlechner | DW9: Florian Schock | DX9: Florian Wirtz | DY9: Genki Haraguchi | DZ9: Georginio Rutter | EA9: Gerrit Holtmann | EB9: Giovanni Reyna | EC9: Gonçalo Paciência | ED9: Gregor Kobel | EE9: Grischa Prömel | EF9: Hamadi Al Ghaddioui | EG9: Hannes Wolf | EH9: Hans Nunoo Sarpei | EI9: Håvard Nielsen | EJ9: Hiroki Ito | EK9: Iago | EL9: Ihlas Bebou | EM9: Ilaix Moriba | EN9: Ishak Belfodil | EO9: Jacob Bruun Larsen | EP9: Jacob Laursen | EQ9: Jae-sung Lee | ER9: Jamal Musiala | ES9: Jan Thielmann | ET9: Janik Haberer | EU9: Janni Serra | EV9: Jean-Paul Boëtius | EW9: Jeffrey Gouweleeuw | EX9: Jens Petter Hauge | EY9: Jeremiah St. Juste | EZ9: Jeremie Frimpong | FA9: Jeremy Dudziak | FB9: Jérôme Roussillon | FC9: Jesper Lindstrøm | FD9: Jetro Willems | FE9: Joakim Nilsson | FF9: Joe Scally | FG9: John Anthony Brooks | FH9: Jonas Hector | FI9: Jonas Hofmann | FJ9: Jonathan Burkardt | FK9: Jonathan Schmid | FL9: Jonathan Tah | FM9: Jordan Beyer | FN9: Jordan Torunarigha | FO9: Jorge Meré | FP9: Joshua Kimmich | FQ9: Josip Stanišić | FR9: Joško Gvardiol | FS9: Josuha Guilavogui | FT9: Jude Bellingham | FU9: Julian Brandt | FV9: Julian Green | FW9: Julian Ryerson | FX9: Jurgen Ekkelenkamp | FY9: Justin Hoogma | FZ9: Karim Bellarabi | GA9: Karim Onisiwo | GB9: Kerem Demirbay | GC9: Keven Schlotterbeck | GD9: Kevin Akpoguma | GE9: Kevin Behrens | GF9: Kevin Kampl | GG9: Kevin Mbabu | GH9: Kevin Möhwald | GI9: Kevin Schade | GJ9: Kevin Stöger | GK9: Kevin Trapp | GL9: Kevin Vogt | GM9: Kevin-Prince Boateng | GN9: Kiliann Sildillia | GO9: Kingsley Coman | GP9: Kingsley Ehizibue | GQ9: Kingsley Schindler | GR9: Koen Casteels | GS9: Konrad Laimer | GT9: Konstantinos Mavropanos | GU9: Konstantinos Stafylidis | GV9: Kristijan Jakić | GW9: Krzysztof Piątek | GX9: Lars Stindl | GY9: László Bénes | GZ9: Leandro Barreiro | HA9: Lennart Czyborra | HB9: Leon Goretzka | HC9: Leroy Sané | HD9: Levin Öztunali | HE9: Linus Gechter | HF9: Louis Schaub | HG9: Luca Kilian | HH9: Luca Netz | HI9: Luca Waldschmidt | HJ9: Lucas Alario | HK9: Lucas Hernández | HL9: Lucas Höler | HM9: Lucas Tousart | HN9: Lukáš Hrádecký | HO9: Lukas Klostermann | HP9: Lukas Kübler | HQ9: Lukas Nmecha | HR9: Mads Pedersen | HS9: Mahmoud Dahoud | HT9: Makoto Hasebe | HU9: Manu Koné | HV9: Manuel Akanji | HW9: Manuel Gulde | HX9: Manuel Neuer | HY9: Manuel Prietl | HZ9: Manuel Riemann | IA9: Marc Oliver Kempf | IB9: Marcel Halstenberg | IC9: Marcel Sabitzer | ID9: Marco Meyerhöfer | IE9: Marco Reus | IF9: Marco Richter | IG9: Marcus Ingvartsen | IH9: Marcus Thuram | II9: Marin Pongračić | IJ9: Marius Funk | IK9: Marius Wolf | IL9: Mark Flekken | IM9: Mark Uth | IN9: Martin Hinteregger | IO9: Márton Dárdai | IP9: Marvin Friedrich | IQ9: Marvin Plattenhardt | IR9: Masaya Okugawa | IS9: Mateo Klimowicz | IT9: Mateu Morey | IU9: Mats Hummels | IV9: Matthias Ginter | IW9: Max Kruse | IX9: Maxence Lacroix | IY9: Maxim Leitsch | IZ9: Maximilian Arnold | JA9: Maximilian Bauer | JB9: Maximilian Eggestein | JC9: Maximilian Mittelstädt | JD9: Maximilian Philipp | JE9: Mijat Gaćinović | JF9: Miloš Pantović | JG9: Mitchel Bakker | JH9: Mohamed Simakan | JI9: Moussa Diaby | JJ9: Moussa Niakhaté | JK9: Munas Dabbur | JL9: Myziane Maolida | JM9: Nadiem Amiri | JN9: Nick Viergever | JO9: Nico Elvedi | JP9: Nico Schlotterbeck | JQ9: Nico Schulz | JR9: Nicolas Höfler | JS9: Niklas Dorsch | JT9: Niklas Stark | JU9: Niklas Süle | JV9: Niklas Tauer | JW9: Niko Gießelmann | JX9: Nikolas Nartey | JY9: Nils Petersen | JZ9: Noah Weißhaupt | KA9: Nordi Mukiele | KB9: Odilon Kossounou | KC9: Oliver Baumann | KD9: Omar Marmoush | KE9: Omar Richards | KF9: Ömer Faruk Beyaz | KG9: Ondrej Duda | KH9: Orel Mangala | KI9: Pascal Stenzel | KJ9: Patrick Herrmann | KK9: Patrick Wimmer | KL9: Patrik Schick | KM9: Paul Jaeckel | KN9: Paul Seguin | KO9: Paulinho | KP9: Paulo Otávio | KQ9: Pavel Kadeřábek | KR9: Péter Gulácsi | KS9: Peter Pekarík | KT9: Philipp Förster | KU9: Philipp Klement | KV9: Philipp Lienhart | KW9: Piero Hincapié | KX9: Rafael Czichos | KY9: Rafael Santos Borré | KZ9: Rafał Gikiewicz | LA9: Ragnar Ache | LB9: Ramy Bensebaini | LC9: Rani Khedira | LD9: Raphael Framberger | LE9: Raphaël Guerreiro | LF9: Reece Oxford | LG9: Reinier | LH9: Renato Steffen | LI9: Ridle Baku | LJ9: Robert Andrich | LK9: Robert Gumny | LL9: Robert Lewandowski | LM9: Robert Skov | LN9: Roberto Massimo | LO9: Robin Hack | LP9: Robin Knoche | LQ9: Robin Zentner | LR9: Roland Sallai | LS9: Ruben Vargas | LT9: Salih Özcan | LU9: Sam Lammers | LV9: Santiago Ascacibar | LW9: Sargis Adamyan | LX9: Saša Kalajdžić | LY9: Sascha Burchert | LZ9: Sebastiaan Bornauw | MA9: Sebastian Andersson | MB9: Sebastian Griesbeck | MC9: Sebastian Polter | MD9: Sebastian Rode | ME9: Sebastian Rudy | MF9: Sebastian Vasiliadis | MG9: Serge Gnabry | MH9: Sergio Córdova | MI9: Sheraldo Becker | MJ9: Silas | MK9: Silvan Widmer | ML9: Simon Zoller | MM9: Stefan Bell | MN9: Stefan Ilsanker | MO9: Stefan Lainer | MP9: Stefan Ortega Moreno | MQ9: Stefan Posch | MR9: Steffen Tigges | MS9: Stevan Jovetić | MT9: Suat Serdar | MU9: Taiwo Awoniyi | MV9: Tanguy Coulibaly | MW9: Tanguy Nianzou | MX9: Thomas Meunier | MY9: Thomas Müller | MZ9: Thorgan Hazard | NA9: Tim Lemperle | NB9: Timo Baumgartl | NC9: Timo Horn | ND9: Timo Hübers | NE9: Timothy Chandler | NF9: Timothy Fosu-Mensah | NG9: Timothy Tillman | NH9: Tobias Strobl | NI9: Tomas Ostrak | NJ9: Tony Jantschke | NK9: Tuta | NL9: Tyler Adams | NM9: Vasilios Lampropoulos | NN9: Vincenzo Grifo | NO9: Vladimír Darida | NP9: Wahid Faghir | NQ9: Waldemar Anton | NR9: Wataru Endo | NS9: Willi Orbán | NT9: Woo-yeong Jeong | NU9: Wout Weghorst | NV9: Xaver Schlager | NW9: Yann Sommer | NX9: Yannick Gerhardt | NY9: Yannik Keitel | NZ9: Youssoufa Moukoko | OA9: Yussuf Poulsen
B10: =_xlfn.XLOOKUP(A10,Alle_Spieler[Spieler],Alle_Spieler[Position],"") ->  | C10: =_xlfn.XLOOKUP($A10,Alle_Spieler[Spieler],Alle_Spieler[Verein],"") ->  | D10: =_xlfn.XLOOKUP($A10,Alle_Spieler[Spieler],Alle_Spieler[Marktwert],"") ->  | E10: =_xlfn.XLOOKUP($A10,Alle_Spieler[Spieler],Alle_Spieler[Differenz],"") ->  | F10: =IFERROR(Tabelle4[[#This Row],[Marktwertentwicklung]],"") ->  | N10: =TRANSPOSE(_xlfn._xlws.SORT(_xlfn._xlws.FILTER(Alle_Spieler[Spieler],ISNUMBER((SEARCH(A10,Alle_Spieler[Spieler],1))),"not found"))) -> Aarón | O10: Ádám Szalai | P10: Admir Mehmedi | Q10: Ajdin Hrustić | R10: Alassane Pléa | S10: Alessandro Schöpf | T10: Alexander Hack | U10: Alexander Schwolow | V10: Alfreð Finnbogason | W10: Almamy Touré | X10: Alphonso Davies | Y10: Amadou Haidara | Z10: Amine Adli | AA10: Amos Pieper | AB10: Anderson Lucoqui | AC10: Andi Zeqiri | AD10: André Hahn | AE10: André Silva | AF10: Andreas Luthe | AG10: Andreas Voglsammer | AH10: Andrej Kramarić | AI10: Angeliño | AJ10: Angelo Stiller | AK10: Ansgar Knauff | AL10: Anthony Losilla | AM10: Anthony Modeste | AN10: Anton Stach | AO10: Armel Bella-Kotchap | AP10: Arne Maier | AQ10: Aster Vranckx | AR10: Atakan Karazor | AS10: Axel Witsel | AT10: Aymen Barkok | AU10: Benjamin Henrichs | AV10: Benjamin Hübner | AW10: Benjamin Pavard | AX10: Benno Schmitz | AY10: Borna Sosa | AZ10: Bouna Sarr | BA10: Branimir Hrgota | BB10: Breel Embolo | BC10: Brian Brobbey | BD10: Bryan Lasme | BE10: Carlos Gruezo | BF10: Cédric Brunner | BG10: Cedric Itten | BH10: Cedric Teuchert | BI10: Charles Aránguiz | BJ10: Chris Führich | BK10: Chris Richards | BL10: Christian Günter | BM10: Christoph Baumgartner | BN10: Christoph Kramer | BO10: Christopher Antwi-Adjei | BP10: Christopher Lenz | BQ10: Christopher Nkunku | BR10: Christopher Trimmel | BS10: Clinton Mola | BT10: Corentin Tolisso | BU10: Cristian Gamboa | BV10: Daichi Kamada | BW10: Daley Sinkgraven | BX10: Dan-Axel Zagadou | BY10: Dani Olmo | BZ10: Daniel Brosinski | CA10: Daniel Caligiuri | CB10: Daniel Didavi | CC10: Danilo Soares | CD10: Danny da Costa | CE10: David Raum | CF10: Davie Selke | CG10: Dayot Upamecano | CH10: Dedryck Boyata | CI10: Dejan Ljubičić | CJ10: Denis Zakaria | CK10: Dennis Geiger | CL10: Dennis Jastrzembski | CM10: Deyovaisio Zeefuik | CN10: Diadié Samassékou | CO10: Dickson Abiama | CP10: Djibril Sow | CQ10: Dodi Lukébakio | CR10: Dominik Kohr | CS10: Dominik Szoboszlai | CT10: Dominique Heintz | CU10: Donyell Malen | CV10: E. Choupo-Moting | CW10: Edimilson Fernandes | CX10: Edmond Tapsoba | CY10: Eduard Löwen | CZ10: Ellyes Skhiri | DA10: Elvis Rexhbeçaj | DB10: Emil Forsberg | DC10: Emre Can | DD10: Erhan Mašović | DE10: Erik Durm | DF10: Erik Thommy | DG10: Erling Braut Haaland | DH10: Ermedin Demirović | DI10: Evan N'Dicka | DJ10: Exequiel Palacios | DK10: Fabian Bredlow | DL10: Fabian Klos | DM10: Fabian Kunze | DN10: Felix Nmecha | DO10: Felix Passlack | DP10: Felix Uduokhai | DQ10: Filip Kostić | DR10: Florian Grillitsch | DS10: Florian Kainz | DT10: Florian Müller | DU10: Florian Neuhaus | DV10: Florian Niederlechner | DW10: Florian Schock | DX10: Florian Wirtz | DY10: Genki Haraguchi | DZ10: Georginio Rutter | EA10: Gerrit Holtmann | EB10: Giovanni Reyna | EC10: Gonçalo Paciência | ED10: Gregor Kobel | EE10: Grischa Prömel | EF10: Hamadi Al Ghaddioui | EG10: Hannes Wolf | EH10: Hans Nunoo Sarpei | EI10: Håvard Nielsen | EJ10: Hiroki Ito | EK10: Iago | EL10: Ihlas Bebou | EM10: Ilaix Moriba | EN10: Ishak Belfodil | EO10: Jacob Bruun Larsen | EP10: Jacob Laursen | EQ10: Jae-sung Lee | ER10: Jamal Musiala | ES10: Jan Thielmann | ET10: Janik Haberer | EU10: Janni Serra | EV10: Jean-Paul Boëtius | EW10: Jeffrey Gouweleeuw | EX10: Jens Petter Hauge | EY10: Jeremiah St. Juste | EZ10: Jeremie Frimpong | FA10: Jeremy Dudziak | FB10: Jérôme Roussillon | FC10: Jesper Lindstrøm | FD10: Jetro Willems | FE10: Joakim Nilsson | FF10: Joe Scally | FG10: John Anthony Brooks | FH10: Jonas Hector | FI10: Jonas Hofmann | FJ10: Jonathan Burkardt | FK10: Jonathan Schmid | FL10: Jonathan Tah | FM10: Jordan Beyer | FN10: Jordan Torunarigha | FO10: Jorge Meré | FP10: Joshua Kimmich | FQ10: Josip Stanišić | FR10: Joško Gvardiol | FS10: Josuha Guilavogui | FT10: Jude Bellingham | FU10: Julian Brandt | FV10: Julian Green | FW10: Julian Ryerson | FX10: Jurgen Ekkelenkamp | FY10: Justin Hoogma | FZ10: Karim Bellarabi | GA10: Karim Onisiwo | GB10: Kerem Demirbay | GC10: Keven Schlotterbeck | GD10: Kevin Akpoguma | GE10: Kevin Behrens | GF10: Kevin Kampl | GG10: Kevin Mbabu | GH10: Kevin Möhwald | GI10: Kevin Schade | GJ10: Kevin Stöger | GK10: Kevin Trapp | GL10: Kevin Vogt | GM10: Kevin-Prince Boateng | GN10: Kiliann Sildillia | GO10: Kingsley Coman | GP10: Kingsley Ehizibue | GQ10: Kingsley Schindler | GR10: Koen Casteels | GS10: Konrad Laimer | GT10: Konstantinos Mavropanos | GU10: Konstantinos Stafylidis | GV10: Kristijan Jakić | GW10: Krzysztof Piątek | GX10: Lars Stindl | GY10: László Bénes | GZ10: Leandro Barreiro | HA10: Lennart Czyborra | HB10: Leon Goretzka | HC10: Leroy Sané | HD10: Levin Öztunali | HE10: Linus Gechter | HF10: Louis Schaub | HG10: Luca Kilian | HH10: Luca Netz | HI10: Luca Waldschmidt | HJ10: Lucas Alario | HK10: Lucas Hernández | HL10: Lucas Höler | HM10: Lucas Tousart | HN10: Lukáš Hrádecký | HO10: Lukas Klostermann | HP10: Lukas Kübler | HQ10: Lukas Nmecha | HR10: Mads Pedersen | HS10: Mahmoud Dahoud | HT10: Makoto Hasebe | HU10: Manu Koné | HV10: Manuel Akanji | HW10: Manuel Gulde | HX10: Manuel Neuer | HY10: Manuel Prietl | HZ10: Manuel Riemann | IA10: Marc Oliver Kempf | IB10: Marcel Halstenberg | IC10: Marcel Sabitzer | ID10: Marco Meyerhöfer | IE10: Marco Reus | IF10: Marco Richter | IG10: Marcus Ingvartsen | IH10: Marcus Thuram | II10: Marin Pongračić | IJ10: Marius Funk | IK10: Marius Wolf | IL10: Mark Flekken | IM10: Mark Uth | IN10: Martin Hinteregger | IO10: Márton Dárdai | IP10: Marvin Friedrich | IQ10: Marvin Plattenhardt | IR10: Masaya Okugawa | IS10: Mateo Klimowicz | IT10: Mateu Morey | IU10: Mats Hummels | IV10: Matthias Ginter | IW10: Max Kruse | IX10: Maxence Lacroix | IY10: Maxim Leitsch | IZ10: Maximilian Arnold | JA10: Maximilian Bauer | JB10: Maximilian Eggestein | JC10: Maximilian Mittelstädt | JD10: Maximilian Philipp | JE10: Mijat Gaćinović | JF10: Miloš Pantović | JG10: Mitchel Bakker | JH10: Mohamed Simakan | JI10: Moussa Diaby | JJ10: Moussa Niakhaté | JK10: Munas Dabbur | JL10: Myziane Maolida | JM10: Nadiem Amiri | JN10: Nick Viergever | JO10: Nico Elvedi | JP10: Nico Schlotterbeck | JQ10: Nico Schulz | JR10: Nicolas Höfler | JS10: Niklas Dorsch | JT10: Niklas Stark | JU10: Niklas Süle | JV10: Niklas Tauer | JW10: Niko Gießelmann | JX10: Nikolas Nartey | JY10: Nils Petersen | JZ10: Noah Weißhaupt | KA10: Nordi Mukiele | KB10: Odilon Kossounou | KC10: Oliver Baumann | KD10: Omar Marmoush | KE10: Omar Richards | KF10: Ömer Faruk Beyaz | KG10: Ondrej Duda | KH10: Orel Mangala | KI10: Pascal Stenzel | KJ10: Patrick Herrmann | KK10: Patrick Wimmer | KL10: Patrik Schick | KM10: Paul Jaeckel | KN10: Paul Seguin | KO10: Paulinho | KP10: Paulo Otávio | KQ10: Pavel Kadeřábek | KR10: Péter Gulácsi | KS10: Peter Pekarík | KT10: Philipp Förster | KU10: Philipp Klement | KV10: Philipp Lienhart | KW10: Piero Hincapié | KX10: Rafael Czichos | KY10: Rafael Santos Borré | KZ10: Rafał Gikiewicz | LA10: Ragnar Ache | LB10: Ramy Bensebaini | LC10: Rani Khedira | LD10: Raphael Framberger | LE10: Raphaël Guerreiro | LF10: Reece Oxford | LG10: Reinier | LH10: Renato Steffen | LI10: Ridle Baku | LJ10: Robert Andrich | LK10: Robert Gumny | LL10: Robert Lewandowski | LM10: Robert Skov | LN10: Roberto Massimo | LO10: Robin Hack | LP10: Robin Knoche | LQ10: Robin Zentner | LR10: Roland Sallai | LS10: Ruben Vargas | LT10: Salih Özcan | LU10: Sam Lammers | LV10: Santiago Ascacibar | LW10: Sargis Adamyan | LX10: Saša Kalajdžić | LY10: Sascha Burchert | LZ10: Sebastiaan Bornauw | MA10: Sebastian Andersson | MB10: Sebastian Griesbeck | MC10: Sebastian Polter | MD10: Sebastian Rode | ME10: Sebastian Rudy | MF10: Sebastian Vasiliadis | MG10: Serge Gnabry | MH10: Sergio Córdova | MI10: Sheraldo Becker | MJ10: Silas | MK10: Silvan Widmer | ML10: Simon Zoller | MM10: Stefan Bell | MN10: Stefan Ilsanker | MO10: Stefan Lainer | MP10: Stefan Ortega Moreno | MQ10: Stefan Posch | MR10: Steffen Tigges | MS10: Stevan Jovetić | MT10: Suat Serdar | MU10: Taiwo Awoniyi | MV10: Tanguy Coulibaly | MW10: Tanguy Nianzou | MX10: Thomas Meunier | MY10: Thomas Müller | MZ10: Thorgan Hazard | NA10: Tim Lemperle | NB10: Timo Baumgartl | NC10: Timo Horn | ND10: Timo Hübers | NE10: Timothy Chandler | NF10: Timothy Fosu-Mensah | NG10: Timothy Tillman | NH10: Tobias Strobl | NI10: Tomas Ostrak | NJ10: Tony Jantschke | NK10: Tuta | NL10: Tyler Adams | NM10: Vasilios Lampropoulos | NN10: Vincenzo Grifo | NO10: Vladimír Darida | NP10: Wahid Faghir | NQ10: Waldemar Anton | NR10: Wataru Endo | NS10: Willi Orbán | NT10: Woo-yeong Jeong | NU10: Wout Weghorst | NV10: Xaver Schlager | NW10: Yann Sommer | NX10: Yannick Gerhardt | NY10: Yannik Keitel | NZ10: Youssoufa Moukoko | OA10: Yussuf Poulsen
B11: =_xlfn.XLOOKUP(A11,Alle_Spieler[Spieler],Alle_Spieler[Position],"") ->  | C11: =_xlfn.XLOOKUP($A11,Alle_Spieler[Spieler],Alle_Spieler[Verein],"") ->  | D11: =_xlfn.XLOOKUP($A11,Alle_Spieler[Spieler],Alle_Spieler[Marktwert],"") ->  | E11: =_xlfn.XLOOKUP($A11,Alle_Spieler[Spieler],Alle_Spieler[Differenz],"") ->  | F11: =Tabelle4[[#This Row],[Marktwertentwicklung]] ->  | N11: =TRANSPOSE(_xlfn._xlws.SORT(_xlfn._xlws.FILTER(Alle_Spieler[Spieler],ISNUMBER((SEARCH(A11,Alle_Spieler[Spieler],1))),"not found"))) -> Aarón | O11: Ádám Szalai | P11: Admir Mehmedi | Q11: Ajdin Hrustić | R11: Alassane Pléa | S11: Alessandro Schöpf | T11: Alexander Hack | U11: Alexander Schwolow | V11: Alfreð Finnbogason | W11: Almamy Touré | X11: Alphonso Davies | Y11: Amadou Haidara | Z11: Amine Adli | AA11: Amos Pieper | AB11: Anderson Lucoqui | AC11: Andi Zeqiri | AD11: André Hahn | AE11: André Silva | AF11: Andreas Luthe | AG11: Andreas Voglsammer | AH11: Andrej Kramarić | AI11: Angeliño | AJ11: Angelo Stiller | AK11: Ansgar Knauff | AL11: Anthony Losilla | AM11: Anthony Modeste | AN11: Anton Stach | AO11: Armel Bella-Kotchap | AP11: Arne Maier | AQ11: Aster Vranckx | AR11: Atakan Karazor | AS11: Axel Witsel | AT11: Aymen Barkok | AU11: Benjamin Henrichs | AV11: Benjamin Hübner | AW11: Benjamin Pavard | AX11: Benno Schmitz | AY11: Borna Sosa | AZ11: Bouna Sarr | BA11: Branimir Hrgota | BB11: Breel Embolo | BC11: Brian Brobbey | BD11: Bryan Lasme | BE11: Carlos Gruezo | BF11: Cédric Brunner | BG11: Cedric Itten | BH11: Cedric Teuchert | BI11: Charles Aránguiz | BJ11: Chris Führich | BK11: Chris Richards | BL11: Christian Günter | BM11: Christoph Baumgartner | BN11: Christoph Kramer | BO11: Christopher Antwi-Adjei | BP11: Christopher Lenz | BQ11: Christopher Nkunku | BR11: Christopher Trimmel | BS11: Clinton Mola | BT11: Corentin Tolisso | BU11: Cristian Gamboa | BV11: Daichi Kamada | BW11: Daley Sinkgraven | BX11: Dan-Axel Zagadou | BY11: Dani Olmo | BZ11: Daniel Brosinski | CA11: Daniel Caligiuri | CB11: Daniel Didavi | CC11: Danilo Soares | CD11: Danny da Costa | CE11: David Raum | CF11: Davie Selke | CG11: Dayot Upamecano | CH11: Dedryck Boyata | CI11: Dejan Ljubičić | CJ11: Denis Zakaria | CK11: Dennis Geiger | CL11: Dennis Jastrzembski | CM11: Deyovaisio Zeefuik | CN11: Diadié Samassékou | CO11: Dickson Abiama | CP11: Djibril Sow | CQ11: Dodi Lukébakio | CR11: Dominik Kohr | CS11: Dominik Szoboszlai | CT11: Dominique Heintz | CU11: Donyell Malen | CV11: E. Choupo-Moting | CW11: Edimilson Fernandes | CX11: Edmond Tapsoba | CY11: Eduard Löwen | CZ11: Ellyes Skhiri | DA11: Elvis Rexhbeçaj | DB11: Emil Forsberg | DC11: Emre Can | DD11: Erhan Mašović | DE11: Erik Durm | DF11: Erik Thommy | DG11: Erling Braut Haaland | DH11: Ermedin Demirović | DI11: Evan N'Dicka | DJ11: Exequiel Palacios | DK11: Fabian Bredlow | DL11: Fabian Klos | DM11: Fabian Kunze | DN11: Felix Nmecha | DO11: Felix Passlack | DP11: Felix Uduokhai | DQ11: Filip Kostić | DR11: Florian Grillitsch | DS11: Florian Kainz | DT11: Florian Müller | DU11: Florian Neuhaus | DV11: Florian Niederlechner | DW11: Florian Schock | DX11: Florian Wirtz | DY11: Genki Haraguchi | DZ11: Georginio Rutter | EA11: Gerrit Holtmann | EB11: Giovanni Reyna | EC11: Gonçalo Paciência | ED11: Gregor Kobel | EE11: Grischa Prömel | EF11: Hamadi Al Ghaddioui | EG11: Hannes Wolf | EH11: Hans Nunoo Sarpei | EI11: Håvard Nielsen | EJ11: Hiroki Ito | EK11: Iago | EL11: Ihlas Bebou | EM11: Ilaix Moriba | EN11: Ishak Belfodil | EO11: Jacob Bruun Larsen | EP11: Jacob Laursen | EQ11: Jae-sung Lee | ER11: Jamal Musiala | ES11: Jan Thielmann | ET11: Janik Haberer | EU11: Janni Serra | EV11: Jean-Paul Boëtius | EW11: Jeffrey Gouweleeuw | EX11: Jens Petter Hauge | EY11: Jeremiah St. Juste | EZ11: Jeremie Frimpong | FA11: Jeremy Dudziak | FB11: Jérôme Roussillon | FC11: Jesper Lindstrøm | FD11: Jetro Willems | FE11: Joakim Nilsson | FF11: Joe Scally | FG11: John Anthony Brooks | FH11: Jonas Hector | FI11: Jonas Hofmann | FJ11: Jonathan Burkardt | FK11: Jonathan Schmid | FL11: Jonathan Tah | FM11: Jordan Beyer | FN11: Jordan Torunarigha | FO11: Jorge Meré | FP11: Joshua Kimmich | FQ11: Josip Stanišić | FR11: Joško Gvardiol | FS11: Josuha Guilavogui | FT11: Jude Bellingham | FU11: Julian Brandt | FV11: Julian Green | FW11: Julian Ryerson | FX11: Jurgen Ekkelenkamp | FY11: Justin Hoogma | FZ11: Karim Bellarabi | GA11: Karim Onisiwo | GB11: Kerem Demirbay | GC11: Keven Schlotterbeck | GD11: Kevin Akpoguma | GE11: Kevin Behrens | GF11: Kevin Kampl | GG11: Kevin Mbabu | GH11: Kevin Möhwald | GI11: Kevin Schade | GJ11: Kevin Stöger | GK11: Kevin Trapp | GL11: Kevin Vogt | GM11: Kevin-Prince Boateng | GN11: Kiliann Sildillia | GO11: Kingsley Coman | GP11: Kingsley Ehizibue | GQ11: Kingsley Schindler | GR11: Koen Casteels | GS11: Konrad Laimer | GT11: Konstantinos Mavropanos | GU11: Konstantinos Stafylidis | GV11: Kristijan Jakić | GW11: Krzysztof Piątek | GX11: Lars Stindl | GY11: László Bénes | GZ11: Leandro Barreiro | HA11: Lennart Czyborra | HB11: Leon Goretzka | HC11: Leroy Sané | HD11: Levin Öztunali | HE11: Linus Gechter | HF11: Louis Schaub | HG11: Luca Kilian | HH11: Luca Netz | HI11: Luca Waldschmidt | HJ11: Lucas Alario | HK11: Lucas Hernández | HL11: Lucas Höler | HM11: Lucas Tousart | HN11: Lukáš Hrádecký | HO11: Lukas Klostermann | HP11: Lukas Kübler | HQ11: Lukas Nmecha | HR11: Mads Pedersen | HS11: Mahmoud Dahoud | HT11: Makoto Hasebe | HU11: Manu Koné | HV11: Manuel Akanji | HW11: Manuel Gulde | HX11: Manuel Neuer | HY11: Manuel Prietl | HZ11: Manuel Riemann | IA11: Marc Oliver Kempf | IB11: Marcel Halstenberg | IC11: Marcel Sabitzer | ID11: Marco Meyerhöfer | IE11: Marco Reus | IF11: Marco Richter | IG11: Marcus Ingvartsen | IH11: Marcus Thuram | II11: Marin Pongračić | IJ11: Marius Funk | IK11: Marius Wolf | IL11: Mark Flekken | IM11: Mark Uth | IN11: Martin Hinteregger | IO11: Márton Dárdai | IP11: Marvin Friedrich | IQ11: Marvin Plattenhardt | IR11: Masaya Okugawa | IS11: Mateo Klimowicz | IT11: Mateu Morey | IU11: Mats Hummels | IV11: Matthias Ginter | IW11: Max Kruse | IX11: Maxence Lacroix | IY11: Maxim Leitsch | IZ11: Maximilian Arnold | JA11: Maximilian Bauer | JB11: Maximilian Eggestein | JC11: Maximilian Mittelstädt | JD11: Maximilian Philipp | JE11: Mijat Gaćinović | JF11: Miloš Pantović | JG11: Mitchel Bakker | JH11: Mohamed Simakan | JI11: Moussa Diaby | JJ11: Moussa Niakhaté | JK11: Munas Dabbur | JL11: Myziane Maolida | JM11: Nadiem Amiri | JN11: Nick Viergever | JO11: Nico Elvedi | JP11: Nico Schlotterbeck | JQ11: Nico Schulz | JR11: Nicolas Höfler | JS11: Niklas Dorsch | JT11: Niklas Stark | JU11: Niklas Süle | JV11: Niklas Tauer | JW11: Niko Gießelmann | JX11: Nikolas Nartey | JY11: Nils Petersen | JZ11: Noah Weißhaupt | KA11: Nordi Mukiele | KB11: Odilon Kossounou | KC11: Oliver Baumann | KD11: Omar Marmoush | KE11: Omar Richards | KF11: Ömer Faruk Beyaz | KG11: Ondrej Duda | KH11: Orel Mangala | KI11: Pascal Stenzel | KJ11: Patrick Herrmann | KK11: Patrick Wimmer | KL11: Patrik Schick | KM11: Paul Jaeckel | KN11: Paul Seguin | KO11: Paulinho | KP11: Paulo Otávio | KQ11: Pavel Kadeřábek | KR11: Péter Gulácsi | KS11: Peter Pekarík | KT11: Philipp Förster | KU11: Philipp Klement | KV11: Philipp Lienhart | KW11: Piero Hincapié | KX11: Rafael Czichos | KY11: Rafael Santos Borré | KZ11: Rafał Gikiewicz | LA11: Ragnar Ache | LB11: Ramy Bensebaini | LC11: Rani Khedira | LD11: Raphael Framberger | LE11: Raphaël Guerreiro | LF11: Reece Oxford | LG11: Reinier | LH11: Renato Steffen | LI11: Ridle Baku | LJ11: Robert Andrich | LK11: Robert Gumny | LL11: Robert Lewandowski | LM11: Robert Skov | LN11: Roberto Massimo | LO11: Robin Hack | LP11: Robin Knoche | LQ11: Robin Zentner | LR11: Roland Sallai | LS11: Ruben Vargas | LT11: Salih Özcan | LU11: Sam Lammers | LV11: Santiago Ascacibar | LW11: Sargis Adamyan | LX11: Saša Kalajdžić | LY11: Sascha Burchert | LZ11: Sebastiaan Bornauw | MA11: Sebastian Andersson | MB11: Sebastian Griesbeck | MC11: Sebastian Polter | MD11: Sebastian Rode | ME11: Sebastian Rudy | MF11: Sebastian Vasiliadis | MG11: Serge Gnabry | MH11: Sergio Córdova | MI11: Sheraldo Becker | MJ11: Silas | MK11: Silvan Widmer | ML11: Simon Zoller | MM11: Stefan Bell | MN11: Stefan Ilsanker | MO11: Stefan Lainer | MP11: Stefan Ortega Moreno | MQ11: Stefan Posch | MR11: Steffen Tigges | MS11: Stevan Jovetić | MT11: Suat Serdar | MU11: Taiwo Awoniyi | MV11: Tanguy Coulibaly | MW11: Tanguy Nianzou | MX11: Thomas Meunier | MY11: Thomas Müller | MZ11: Thorgan Hazard | NA11: Tim Lemperle | NB11: Timo Baumgartl | NC11: Timo Horn | ND11: Timo Hübers | NE11: Timothy Chandler | NF11: Timothy Fosu-Mensah | NG11: Timothy Tillman | NH11: Tobias Strobl | NI11: Tomas Ostrak | NJ11: Tony Jantschke | NK11: Tuta | NL11: Tyler Adams | NM11: Vasilios Lampropoulos | NN11: Vincenzo Grifo | NO11: Vladimír Darida | NP11: Wahid Faghir | NQ11: Waldemar Anton | NR11: Wataru Endo | NS11: Willi Orbán | NT11: Woo-yeong Jeong | NU11: Wout Weghorst | NV11: Xaver Schlager | NW11: Yann Sommer | NX11: Yannick Gerhardt | NY11: Yannik Keitel | NZ11: Youssoufa Moukoko | OA11: Yussuf Poulsen
B12: =_xlfn.XLOOKUP(A12,Alle_Spieler[Spieler],Alle_Spieler[Position],"") ->  | C12: =_xlfn.XLOOKUP($A12,Alle_Spieler[Spieler],Alle_Spieler[Verein],"") ->  | D12: =_xlfn.XLOOKUP($A12,Alle_Spieler[Spieler],Alle_Spieler[Marktwert],"") ->  | E12: =_xlfn.XLOOKUP($A12,Alle_Spieler[Spieler],Alle_Spieler[Differenz],"") ->  | F12: =Tabelle4[[#This Row],[Marktwertentwicklung]] ->  | N12: =TRANSPOSE(_xlfn._xlws.SORT(_xlfn._xlws.FILTER(Alle_Spieler[Spieler],ISNUMBER((SEARCH(A12,Alle_Spieler[Spieler],1))),"not found"))) -> Aarón | O12: Ádám Szalai | P12: Admir Mehmedi | Q12: Ajdin Hrustić | R12: Alassane Pléa | S12: Alessandro Schöpf | T12: Alexander Hack | U12: Alexander Schwolow | V12: Alfreð Finnbogason | W12: Almamy Touré | X12: Alphonso Davies | Y12: Amadou Haidara | Z12: Amine Adli | AA12: Amos Pieper | AB12: Anderson Lucoqui | AC12: Andi Zeqiri | AD12: André Hahn | AE12: André Silva | AF12: Andreas Luthe | AG12: Andreas Voglsammer | AH12: Andrej Kramarić | AI12: Angeliño | AJ12: Angelo Stiller | AK12: Ansgar Knauff | AL12: Anthony Losilla | AM12: Anthony Modeste | AN12: Anton Stach | AO12: Armel Bella-Kotchap | AP12: Arne Maier | AQ12: Aster Vranckx | AR12: Atakan Karazor | AS12: Axel Witsel | AT12: Aymen Barkok | AU12: Benjamin Henrichs | AV12: Benjamin Hübner | AW12: Benjamin Pavard | AX12: Benno Schmitz | AY12: Borna Sosa | AZ12: Bouna Sarr | BA12: Branimir Hrgota | BB12: Breel Embolo | BC12: Brian Brobbey | BD12: Bryan Lasme | BE12: Carlos Gruezo | BF12: Cédric Brunner | BG12: Cedric Itten | BH12: Cedric Teuchert | BI12: Charles Aránguiz | BJ12: Chris Führich | BK12: Chris Richards | BL12: Christian Günter | BM12: Christoph Baumgartner | BN12: Christoph Kramer | BO12: Christopher Antwi-Adjei | BP12: Christopher Lenz | BQ12: Christopher Nkunku | BR12: Christopher Trimmel | BS12: Clinton Mola | BT12: Corentin Tolisso | BU12: Cristian Gamboa | BV12: Daichi Kamada | BW12: Daley Sinkgraven | BX12: Dan-Axel Zagadou | BY12: Dani Olmo | BZ12: Daniel Brosinski | CA12: Daniel Caligiuri | CB12: Daniel Didavi | CC12: Danilo Soares | CD12: Danny da Costa | CE12: David Raum | CF12: Davie Selke | CG12: Dayot Upamecano | CH12: Dedryck Boyata | CI12: Dejan Ljubičić | CJ12: Denis Zakaria | CK12: Dennis Geiger | CL12: Dennis Jastrzembski | CM12: Deyovaisio Zeefuik | CN12: Diadié Samassékou | CO12: Dickson Abiama | CP12: Djibril Sow | CQ12: Dodi Lukébakio | CR12: Dominik Kohr | CS12: Dominik Szoboszlai | CT12: Dominique Heintz | CU12: Donyell Malen | CV12: E. Choupo-Moting | CW12: Edimilson Fernandes | CX12: Edmond Tapsoba | CY12: Eduard Löwen | CZ12: Ellyes Skhiri | DA12: Elvis Rexhbeçaj | DB12: Emil Forsberg | DC12: Emre Can | DD12: Erhan Mašović | DE12: Erik Durm | DF12: Erik Thommy | DG12: Erling Braut Haaland | DH12: Ermedin Demirović | DI12: Evan N'Dicka | DJ12: Exequiel Palacios | DK12: Fabian Bredlow | DL12: Fabian Klos | DM12: Fabian Kunze | DN12: Felix Nmecha | DO12: Felix Passlack | DP12: Felix Uduokhai | DQ12: Filip Kostić | DR12: Florian Grillitsch | DS12: Florian Kainz | DT12: Florian Müller | DU12: Florian Neuhaus | DV12: Florian Niederlechner | DW12: Florian Schock | DX12: Florian Wirtz | DY12: Genki Haraguchi | DZ12: Georginio Rutter | EA12: Gerrit Holtmann | EB12: Giovanni Reyna | EC12: Gonçalo Paciência | ED12: Gregor Kobel | EE12: Grischa Prömel | EF12: Hamadi Al Ghaddioui | EG12: Hannes Wolf | EH12: Hans Nunoo Sarpei | EI12: Håvard Nielsen | EJ12: Hiroki Ito | EK12: Iago | EL12: Ihlas Bebou | EM12: Ilaix Moriba | EN12: Ishak Belfodil | EO12: Jacob Bruun Larsen | EP12: Jacob Laursen | EQ12: Jae-sung Lee | ER12: Jamal Musiala | ES12: Jan Thielmann | ET12: Janik Haberer | EU12: Janni Serra | EV12: Jean-Paul Boëtius | EW12: Jeffrey Gouweleeuw | EX12: Jens Petter Hauge | EY12: Jeremiah St. Juste | EZ12: Jeremie Frimpong | FA12: Jeremy Dudziak | FB12: Jérôme Roussillon | FC12: Jesper Lindstrøm | FD12: Jetro Willems | FE12: Joakim Nilsson | FF12: Joe Scally | FG12: John Anthony Brooks | FH12: Jonas Hector | FI12: Jonas Hofmann | FJ12: Jonathan Burkardt | FK12: Jonathan Schmid | FL12: Jonathan Tah | FM12: Jordan Beyer | FN12: Jordan Torunarigha | FO12: Jorge Meré | FP12: Joshua Kimmich | FQ12: Josip Stanišić | FR12: Joško Gvardiol | FS12: Josuha Guilavogui | FT12: Jude Bellingham | FU12: Julian Brandt | FV12: Julian Green | FW12: Julian Ryerson | FX12: Jurgen Ekkelenkamp | FY12: Justin Hoogma | FZ12: Karim Bellarabi | GA12: Karim Onisiwo | GB12: Kerem Demirbay | GC12: Keven Schlotterbeck | GD12: Kevin Akpoguma | GE12: Kevin Behrens | GF12: Kevin Kampl | GG12: Kevin Mbabu | GH12: Kevin Möhwald | GI12: Kevin Schade | GJ12: Kevin Stöger | GK12: Kevin Trapp | GL12: Kevin Vogt | GM12: Kevin-Prince Boateng | GN12: Kiliann Sildillia | GO12: Kingsley Coman | GP12: Kingsley Ehizibue | GQ12: Kingsley Schindler | GR12: Koen Casteels | GS12: Konrad Laimer | GT12: Konstantinos Mavropanos | GU12: Konstantinos Stafylidis | GV12: Kristijan Jakić | GW12: Krzysztof Piątek | GX12: Lars Stindl | GY12: László Bénes | GZ12: Leandro Barreiro | HA12: Lennart Czyborra | HB12: Leon Goretzka | HC12: Leroy Sané | HD12: Levin Öztunali | HE12: Linus Gechter | HF12: Louis Schaub | HG12: Luca Kilian | HH12: Luca Netz | HI12: Luca Waldschmidt | HJ12: Lucas Alario | HK12: Lucas Hernández | HL12: Lucas Höler | HM12: Lucas Tousart | HN12: Lukáš Hrádecký | HO12: Lukas Klostermann | HP12: Lukas Kübler | HQ12: Lukas Nmecha | HR12: Mads Pedersen | HS12: Mahmoud Dahoud | HT12: Makoto Hasebe | HU12: Manu Koné | HV12: Manuel Akanji | HW12: Manuel Gulde | HX12: Manuel Neuer | HY12: Manuel Prietl | HZ12: Manuel Riemann | IA12: Marc Oliver Kempf | IB12: Marcel Halstenberg | IC12: Marcel Sabitzer | ID12: Marco Meyerhöfer | IE12: Marco Reus | IF12: Marco Richter | IG12: Marcus Ingvartsen | IH12: Marcus Thuram | II12: Marin Pongračić | IJ12: Marius Funk | IK12: Marius Wolf | IL12: Mark Flekken | IM12: Mark Uth | IN12: Martin Hinteregger | IO12: Márton Dárdai | IP12: Marvin Friedrich | IQ12: Marvin Plattenhardt | IR12: Masaya Okugawa | IS12: Mateo Klimowicz | IT12: Mateu Morey | IU12: Mats Hummels | IV12: Matthias Ginter | IW12: Max Kruse | IX12: Maxence Lacroix | IY12: Maxim Leitsch | IZ12: Maximilian Arnold | JA12: Maximilian Bauer | JB12: Maximilian Eggestein | JC12: Maximilian Mittelstädt | JD12: Maximilian Philipp | JE12: Mijat Gaćinović | JF12: Miloš Pantović | JG12: Mitchel Bakker | JH12: Mohamed Simakan | JI12: Moussa Diaby | JJ12: Moussa Niakhaté | JK12: Munas Dabbur | JL12: Myziane Maolida | JM12: Nadiem Amiri | JN12: Nick Viergever | JO12: Nico Elvedi | JP12: Nico Schlotterbeck | JQ12: Nico Schulz | JR12: Nicolas Höfler | JS12: Niklas Dorsch | JT12: Niklas Stark | JU12: Niklas Süle | JV12: Niklas Tauer | JW12: Niko Gießelmann | JX12: Nikolas Nartey | JY12: Nils Petersen | JZ12: Noah Weißhaupt | KA12: Nordi Mukiele | KB12: Odilon Kossounou | KC12: Oliver Baumann | KD12: Omar Marmoush | KE12: Omar Richards | KF12: Ömer Faruk Beyaz | KG12: Ondrej Duda | KH12: Orel Mangala | KI12: Pascal Stenzel | KJ12: Patrick Herrmann | KK12: Patrick Wimmer | KL12: Patrik Schick | KM12: Paul Jaeckel | KN12: Paul Seguin | KO12: Paulinho | KP12: Paulo Otávio | KQ12: Pavel Kadeřábek | KR12: Péter Gulácsi | KS12: Peter Pekarík | KT12: Philipp Förster | KU12: Philipp Klement | KV12: Philipp Lienhart | KW12: Piero Hincapié | KX12: Rafael Czichos | KY12: Rafael Santos Borré | KZ12: Rafał Gikiewicz | LA12: Ragnar Ache | LB12: Ramy Bensebaini | LC12: Rani Khedira | LD12: Raphael Framberger | LE12: Raphaël Guerreiro | LF12: Reece Oxford | LG12: Reinier | LH12: Renato Steffen | LI12: Ridle Baku | LJ12: Robert Andrich | LK12: Robert Gumny | LL12: Robert Lewandowski | LM12: Robert Skov | LN12: Roberto Massimo | LO12: Robin Hack | LP12: Robin Knoche | LQ12: Robin Zentner | LR12: Roland Sallai | LS12: Ruben Vargas | LT12: Salih Özcan | LU12: Sam Lammers | LV12: Santiago Ascacibar | LW12: Sargis Adamyan | LX12: Saša Kalajdžić | LY12: Sascha Burchert | LZ12: Sebastiaan Bornauw | MA12: Sebastian Andersson | MB12: Sebastian Griesbeck | MC12: Sebastian Polter | MD12: Sebastian Rode | ME12: Sebastian Rudy | MF12: Sebastian Vasiliadis | MG12: Serge Gnabry | MH12: Sergio Córdova | MI12: Sheraldo Becker | MJ12: Silas | MK12: Silvan Widmer | ML12: Simon Zoller | MM12: Stefan Bell | MN12: Stefan Ilsanker | MO12: Stefan Lainer | MP12: Stefan Ortega Moreno | MQ12: Stefan Posch | MR12: Steffen Tigges | MS12: Stevan Jovetić | MT12: Suat Serdar | MU12: Taiwo Awoniyi | MV12: Tanguy Coulibaly | MW12: Tanguy Nianzou | MX12: Thomas Meunier | MY12: Thomas Müller | MZ12: Thorgan Hazard | NA12: Tim Lemperle | NB12: Timo Baumgartl | NC12: Timo Horn | ND12: Timo Hübers | NE12: Timothy Chandler | NF12: Timothy Fosu-Mensah | NG12: Timothy Tillman | NH12: Tobias Strobl | NI12: Tomas Ostrak | NJ12: Tony Jantschke | NK12: Tuta | NL12: Tyler Adams | NM12: Vasilios Lampropoulos | NN12: Vincenzo Grifo | NO12: Vladimír Darida | NP12: Wahid Faghir | NQ12: Waldemar Anton | NR12: Wataru Endo | NS12: Willi Orbán | NT12: Woo-yeong Jeong | NU12: Wout Weghorst | NV12: Xaver Schlager | NW12: Yann Sommer | NX12: Yannick Gerhardt | NY12: Yannik Keitel | NZ12: Youssoufa Moukoko | OA12: Yussuf Poulsen
A13: Lukas Nmecha | B13: =_xlfn.XLOOKUP(A13,Alle_Spieler[Spieler],Alle_Spieler[Position],"") -> Stürmer | C13: =_xlfn.XLOOKUP($A13,Alle_Spieler[Spieler],Alle_Spieler[Verein],"") -> VfL Wolfsburg | D13: =_xlfn.XLOOKUP($A13,Alle_Spieler[Spieler],Alle_Spieler[Marktwert],"") -> 12236517 | E13: =_xlfn.XLOOKUP($A13,Alle_Spieler[Spieler],Alle_Spieler[Differenz],"") -> 213489 | F13: =Tabelle4[[#This Row],[Marktwertentwicklung]] -> 213489 | N13: =TRANSPOSE(_xlfn._xlws.SORT(_xlfn._xlws.FILTER(Alle_Spieler[Spieler],ISNUMBER((SEARCH(A13,Alle_Spieler[Spieler],1))),"not found"))) -> Lukas Nmecha
A14: Christopher Nkunku | B14: =_xlfn.XLOOKUP(A14,Alle_Spieler[Spieler],Alle_Spieler[Position],"") -> Mittelfeldspieler | C14: =_xlfn.XLOOKUP($A14,Alle_Spieler[Spieler],Alle_Spieler[Verein],"") -> RB Leipzig | D14: =_xlfn.XLOOKUP($A14,Alle_Spieler[Spieler],Alle_Spieler[Marktwert],"") -> 33210081 | E14: =_xlfn.XLOOKUP($A14,Alle_Spieler[Spieler],Alle_Spieler[Differenz],"") -> 80233 | F14: =IFERROR(Tabelle4[[#This Row],[Marktwertentwicklung]],"") -> 80233 | N14: =TRANSPOSE(_xlfn._xlws.SORT(_xlfn._xlws.FILTER(Alle_Spieler[Spieler],ISNUMBER((SEARCH(A14,Alle_Spieler[Spieler],1))),"not found"))) -> Christopher Nkunku
A15: Florian Wirtz | B15: =_xlfn.XLOOKUP(A15,Alle_Spieler[Spieler],Alle_Spieler[Position],"") -> Mittelfeldspieler | C15: =_xlfn.XLOOKUP($A15,Alle_Spieler[Spieler],Alle_Spieler[Verein],"") -> Bayer 04 Leverkusen | D15: =_xlfn.XLOOKUP($A15,Alle_Spieler[Spieler],Alle_Spieler[Marktwert],"") -> 33402284 | E15: =_xlfn.XLOOKUP($A15,Alle_Spieler[Spieler],Alle_Spieler[Differenz],"") -> 51409 | F15: =Tabelle4[[#This Row],[Marktwertentwicklung]] -> 51409 | N15: =TRANSPOSE(_xlfn._xlws.SORT(_xlfn._xlws.FILTER(Alle_Spieler[Spieler],ISNUMBER((SEARCH(A15,Alle_Spieler[Spieler],1))),"not found"))) -> Florian Wirtz
A16: Robert Lewandowski | B16: =_xlfn.XLOOKUP(A16,Alle_Spieler[Spieler],Alle_Spieler[Position],"") -> Stürmer | C16: =_xlfn.XLOOKUP($A16,Alle_Spieler[Spieler],Alle_Spieler[Verein],"") -> FC Bayern München | D16: =_xlfn.XLOOKUP($A16,Alle_Spieler[Spieler],Alle_Spieler[Marktwert],"") -> 63069004 | E16: =_xlfn.XLOOKUP($A16,Alle_Spieler[Spieler],Alle_Spieler[Differenz],"") -> 14965 | F16: =Tabelle4[[#This Row],[Marktwertentwicklung]] -> 14965 | N16: =TRANSPOSE(_xlfn._xlws.SORT(_xlfn._xlws.FILTER(Alle_Spieler[Spieler],ISNUMBER((SEARCH(A16,Alle_Spieler[Spieler],1))),"not found"))) -> Robert Lewandowski
A17: Yannick Gerhardt | B17: =_xlfn.XLOOKUP(A17,Alle_Spieler[Spieler],Alle_Spieler[Position],"") -> Mittelfeldspieler | C17: =_xlfn.XLOOKUP($A17,Alle_Spieler[Spieler],Alle_Spieler[Verein],"") -> VfL Wolfsburg | D17: =_xlfn.XLOOKUP($A17,Alle_Spieler[Spieler],Alle_Spieler[Marktwert],"") -> 4445548 | E17: =_xlfn.XLOOKUP($A17,Alle_Spieler[Spieler],Alle_Spieler[Differenz],"") -> -55176 | F17: =Tabelle4[[#This Row],[Marktwertentwicklung]] -> -55176 | N17: =TRANSPOSE(_xlfn._xlws.SORT(_xlfn._xlws.FILTER(Alle_Spieler[Spieler],ISNUMBER((SEARCH(A17,Alle_Spieler[Spieler],1))),"not found"))) -> Yannick Gerhardt
B18: =_xlfn.XLOOKUP(A18,Alle_Spieler[Spieler],Alle_Spieler[Position],"") ->  | C18: =_xlfn.XLOOKUP($A18,Alle_Spieler[Spieler],Alle_Spieler[Verein],"") ->  | D18: =_xlfn.XLOOKUP($A18,Alle_Spieler[Spieler],Alle_Spieler[Marktwert],"") ->  | E18: =_xlfn.XLOOKUP($A18,Alle_Spieler[Spieler],Alle_Spieler[Differenz],"") ->  | F18: =IFERROR(Tabelle4[[#This Row],[Marktwertentwicklung]],"") ->  | N18: =TRANSPOSE(_xlfn._xlws.SORT(_xlfn._xlws.FILTER(Alle_Spieler[Spieler],ISNUMBER((SEARCH(A18,Alle_Spieler[Spieler],1))),"not found"))) -> Aarón | O18: Ádám Szalai | P18: Admir Mehmedi | Q18: Ajdin Hrustić | R18: Alassane Pléa | S18: Alessandro Schöpf | T18: Alexander Hack | U18: Alexander Schwolow | V18: Alfreð Finnbogason | W18: Almamy Touré | X18: Alphonso Davies | Y18: Amadou Haidara | Z18: Amine Adli | AA18: Amos Pieper | AB18: Anderson Lucoqui | AC18: Andi Zeqiri | AD18: André Hahn | AE18: André Silva | AF18: Andreas Luthe | AG18: Andreas Voglsammer | AH18: Andrej Kramarić | AI18: Angeliño | AJ18: Angelo Stiller | AK18: Ansgar Knauff | AL18: Anthony Losilla | AM18: Anthony Modeste | AN18: Anton Stach | AO18: Armel Bella-Kotchap | AP18: Arne Maier | AQ18: Aster Vranckx | AR18: Atakan Karazor | AS18: Axel Witsel | AT18: Aymen Barkok | AU18: Benjamin Henrichs | AV18: Benjamin Hübner | AW18: Benjamin Pavard | AX18: Benno Schmitz | AY18: Borna Sosa | AZ18: Bouna Sarr | BA18: Branimir Hrgota | BB18: Breel Embolo | BC18: Brian Brobbey | BD18: Bryan Lasme | BE18: Carlos Gruezo | BF18: Cédric Brunner | BG18: Cedric Itten | BH18: Cedric Teuchert | BI18: Charles Aránguiz | BJ18: Chris Führich | BK18: Chris Richards | BL18: Christian Günter | BM18: Christoph Baumgartner | BN18: Christoph Kramer | BO18: Christopher Antwi-Adjei | BP18: Christopher Lenz | BQ18: Christopher Nkunku | BR18: Christopher Trimmel | BS18: Clinton Mola | BT18: Corentin Tolisso | BU18: Cristian Gamboa | BV18: Daichi Kamada | BW18: Daley Sinkgraven | BX18: Dan-Axel Zagadou | BY18: Dani Olmo | BZ18: Daniel Brosinski | CA18: Daniel Caligiuri | CB18: Daniel Didavi | CC18: Danilo Soares | CD18: Danny da Costa | CE18: David Raum | CF18: Davie Selke | CG18: Dayot Upamecano | CH18: Dedryck Boyata | CI18: Dejan Ljubičić | CJ18: Denis Zakaria | CK18: Dennis Geiger | CL18: Dennis Jastrzembski | CM18: Deyovaisio Zeefuik | CN18: Diadié Samassékou | CO18: Dickson Abiama | CP18: Djibril Sow | CQ18: Dodi Lukébakio | CR18: Dominik Kohr | CS18: Dominik Szoboszlai | CT18: Dominique Heintz | CU18: Donyell Malen | CV18: E. Choupo-Moting | CW18: Edimilson Fernandes | CX18: Edmond Tapsoba | CY18: Eduard Löwen | CZ18: Ellyes Skhiri | DA18: Elvis Rexhbeçaj | DB18: Emil Forsberg | DC18: Emre Can | DD18: Erhan Mašović | DE18: Erik Durm | DF18: Erik Thommy | DG18: Erling Braut Haaland | DH18: Ermedin Demirović | DI18: Evan N'Dicka | DJ18: Exequiel Palacios | DK18: Fabian Bredlow | DL18: Fabian Klos | DM18: Fabian Kunze | DN18: Felix Nmecha | DO18: Felix Passlack | DP18: Felix Uduokhai | DQ18: Filip Kostić | DR18: Florian Grillitsch | DS18: Florian Kainz | DT18: Florian Müller | DU18: Florian Neuhaus | DV18: Florian Niederlechner | DW18: Florian Schock | DX18: Florian Wirtz | DY18: Genki Haraguchi | DZ18: Georginio Rutter | EA18: Gerrit Holtmann | EB18: Giovanni Reyna | EC18: Gonçalo Paciência | ED18: Gregor Kobel | EE18: Grischa Prömel | EF18: Hamadi Al Ghaddioui | EG18: Hannes Wolf | EH18: Hans Nunoo Sarpei | EI18: Håvard Nielsen | EJ18: Hiroki Ito | EK18: Iago | EL18: Ihlas Bebou | EM18: Ilaix Moriba | EN18: Ishak Belfodil | EO18: Jacob Bruun Larsen | EP18: Jacob Laursen | EQ18: Jae-sung Lee | ER18: Jamal Musiala | ES18: Jan Thielmann | ET18: Janik Haberer | EU18: Janni Serra | EV18: Jean-Paul Boëtius | EW18: Jeffrey Gouweleeuw | EX18: Jens Petter Hauge | EY18: Jeremiah St. Juste | EZ18: Jeremie Frimpong | FA18: Jeremy Dudziak | FB18: Jérôme Roussillon | FC18: Jesper Lindstrøm | FD18: Jetro Willems | FE18: Joakim Nilsson | FF18: Joe Scally | FG18: John Anthony Brooks | FH18: Jonas Hector | FI18: Jonas Hofmann | FJ18: Jonathan Burkardt | FK18: Jonathan Schmid | FL18: Jonathan Tah | FM18: Jordan Beyer | FN18: Jordan Torunarigha | FO18: Jorge Meré | FP18: Joshua Kimmich | FQ18: Josip Stanišić | FR18: Joško Gvardiol | FS18: Josuha Guilavogui | FT18: Jude Bellingham | FU18: Julian Brandt | FV18: Julian Green | FW18: Julian Ryerson | FX18: Jurgen Ekkelenkamp | FY18: Justin Hoogma | FZ18: Karim Bellarabi | GA18: Karim Onisiwo | GB18: Kerem Demirbay | GC18: Keven Schlotterbeck | GD18: Kevin Akpoguma | GE18: Kevin Behrens | GF18: Kevin Kampl | GG18: Kevin Mbabu | GH18: Kevin Möhwald | GI18: Kevin Schade | GJ18: Kevin Stöger | GK18: Kevin Trapp | GL18: Kevin Vogt | GM18: Kevin-Prince Boateng | GN18: Kiliann Sildillia | GO18: Kingsley Coman | GP18: Kingsley Ehizibue | GQ18: Kingsley Schindler | GR18: Koen Casteels | GS18: Konrad Laimer | GT18: Konstantinos Mavropanos | GU18: Konstantinos Stafylidis | GV18: Kristijan Jakić | GW18: Krzysztof Piątek | GX18: Lars Stindl | GY18: László Bénes | GZ18: Leandro Barreiro | HA18: Lennart Czyborra | HB18: Leon Goretzka | HC18: Leroy Sané | HD18: Levin Öztunali | HE18: Linus Gechter | HF18: Louis Schaub | HG18: Luca Kilian | HH18: Luca Netz | HI18: Luca Waldschmidt | HJ18: Lucas Alario | HK18: Lucas Hernández | HL18: Lucas Höler | HM18: Lucas Tousart | HN18: Lukáš Hrádecký | HO18: Lukas Klostermann | HP18: Lukas Kübler | HQ18: Lukas Nmecha | HR18: Mads Pedersen | HS18: Mahmoud Dahoud | HT18: Makoto Hasebe | HU18: Manu Koné | HV18: Manuel Akanji | HW18: Manuel Gulde | HX18: Manuel Neuer | HY18: Manuel Prietl | HZ18: Manuel Riemann | IA18: Marc Oliver Kempf | IB18: Marcel Halstenberg | IC18: Marcel Sabitzer | ID18: Marco Meyerhöfer | IE18: Marco Reus | IF18: Marco Richter | IG18: Marcus Ingvartsen | IH18: Marcus Thuram | II18: Marin Pongračić | IJ18: Marius Funk | IK18: Marius Wolf | IL18: Mark Flekken | IM18: Mark Uth | IN18: Martin Hinteregger | IO18: Márton Dárdai | IP18: Marvin Friedrich | IQ18: Marvin Plattenhardt | IR18: Masaya Okugawa | IS18: Mateo Klimowicz | IT18: Mateu Morey | IU18: Mats Hummels | IV18: Matthias Ginter | IW18: Max Kruse | IX18: Maxence Lacroix | IY18: Maxim Leitsch | IZ18: Maximilian Arnold | JA18: Maximilian Bauer | JB18: Maximilian Eggestein | JC18: Maximilian Mittelstädt | JD18: Maximilian Philipp | JE18: Mijat Gaćinović | JF18: Miloš Pantović | JG18: Mitchel Bakker | JH18: Mohamed Simakan | JI18: Moussa Diaby | JJ18: Moussa Niakhaté | JK18: Munas Dabbur | JL18: Myziane Maolida | JM18: Nadiem Amiri | JN18: Nick Viergever | JO18: Nico Elvedi | JP18: Nico Schlotterbeck | JQ18: Nico Schulz | JR18: Nicolas Höfler | JS18: Niklas Dorsch | JT18: Niklas Stark | JU18: Niklas Süle | JV18: Niklas Tauer | JW18: Niko Gießelmann | JX18: Nikolas Nartey | JY18: Nils Petersen | JZ18: Noah Weißhaupt | KA18: Nordi Mukiele | KB18: Odilon Kossounou | KC18: Oliver Baumann | KD18: Omar Marmoush | KE18: Omar Richards | KF18: Ömer Faruk Beyaz | KG18: Ondrej Duda | KH18: Orel Mangala | KI18: Pascal Stenzel | KJ18: Patrick Herrmann | KK18: Patrick Wimmer | KL18: Patrik Schick | KM18: Paul Jaeckel | KN18: Paul Seguin | KO18: Paulinho | KP18: Paulo Otávio | KQ18: Pavel Kadeřábek | KR18: Péter Gulácsi | KS18: Peter Pekarík | KT18: Philipp Förster | KU18: Philipp Klement | KV18: Philipp Lienhart | KW18: Piero Hincapié | KX18: Rafael Czichos | KY18: Rafael Santos Borré | KZ18: Rafał Gikiewicz | LA18: Ragnar Ache | LB18: Ramy Bensebaini | LC18: Rani Khedira | LD18: Raphael Framberger | LE18: Raphaël Guerreiro | LF18: Reece Oxford | LG18: Reinier | LH18: Renato Steffen | LI18: Ridle Baku | LJ18: Robert Andrich | LK18: Robert Gumny | LL18: Robert Lewandowski | LM18: Robert Skov | LN18: Roberto Massimo | LO18: Robin Hack | LP18: Robin Knoche | LQ18: Robin Zentner | LR18: Roland Sallai | LS18: Ruben Vargas | LT18: Salih Özcan | LU18: Sam Lammers | LV18: Santiago Ascacibar | LW18: Sargis Adamyan | LX18: Saša Kalajdžić | LY18: Sascha Burchert | LZ18: Sebastiaan Bornauw | MA18: Sebastian Andersson | MB18: Sebastian Griesbeck | MC18: Sebastian Polter | MD18: Sebastian Rode | ME18: Sebastian Rudy | MF18: Sebastian Vasiliadis | MG18: Serge Gnabry | MH18: Sergio Córdova | MI18: Sheraldo Becker | MJ18: Silas | MK18: Silvan Widmer | ML18: Simon Zoller | MM18: Stefan Bell | MN18: Stefan Ilsanker | MO18: Stefan Lainer | MP18: Stefan Ortega Moreno | MQ18: Stefan Posch | MR18: Steffen Tigges | MS18: Stevan Jovetić | MT18: Suat Serdar | MU18: Taiwo Awoniyi | MV18: Tanguy Coulibaly | MW18: Tanguy Nianzou | MX18: Thomas Meunier | MY18: Thomas Müller | MZ18: Thorgan Hazard | NA18: Tim Lemperle | NB18: Timo Baumgartl | NC18: Timo Horn | ND18: Timo Hübers | NE18: Timothy Chandler | NF18: Timothy Fosu-Mensah | NG18: Timothy Tillman | NH18: Tobias Strobl | NI18: Tomas Ostrak | NJ18: Tony Jantschke | NK18: Tuta | NL18: Tyler Adams | NM18: Vasilios Lampropoulos | NN18: Vincenzo Grifo | NO18: Vladimír Darida | NP18: Wahid Faghir | NQ18: Waldemar Anton | NR18: Wataru Endo | NS18: Willi Orbán | NT18: Woo-yeong Jeong | NU18: Wout Weghorst | NV18: Xaver Schlager | NW18: Yann Sommer | NX18: Yannick Gerhardt | NY18: Yannik Keitel | NZ18: Youssoufa Moukoko | OA18: Yussuf Poulsen
B19: =_xlfn.XLOOKUP(A19,Alle_Spieler[Spieler],Alle_Spieler[Position],"") ->  | C19: =_xlfn.XLOOKUP($A19,Alle_Spieler[Spieler],Alle_Spieler[Verein],"") ->  | D19: =_xlfn.XLOOKUP($A19,Alle_Spieler[Spieler],Alle_Spieler[Marktwert],"") ->  | E19: =_xlfn.XLOOKUP($A19,Alle_Spieler[Spieler],Alle_Spieler[Differenz],"") ->  | F19: =IFERROR(Tabelle4[[#This Row],[Marktwertentwicklung]],"") ->  | N19: =TRANSPOSE(_xlfn._xlws.SORT(_xlfn._xlws.FILTER(Alle_Spieler[Spieler],ISNUMBER((SEARCH(A19,Alle_Spieler[Spieler],1))),"not found"))) -> Aarón | O19: Ádám Szalai | P19: Admir Mehmedi | Q19: Ajdin Hrustić | R19: Alassane Pléa | S19: Alessandro Schöpf | T19: Alexander Hack | U19: Alexander Schwolow | V19: Alfreð Finnbogason | W19: Almamy Touré | X19: Alphonso Davies | Y19: Amadou Haidara | Z19: Amine Adli | AA19: Amos Pieper | AB19: Anderson Lucoqui | AC19: Andi Zeqiri | AD19: André Hahn | AE19: André Silva | AF19: Andreas Luthe | AG19: Andreas Voglsammer | AH19: Andrej Kramarić | AI19: Angeliño | AJ19: Angelo Stiller | AK19: Ansgar Knauff | AL19: Anthony Losilla | AM19: Anthony Modeste | AN19: Anton Stach | AO19: Armel Bella-Kotchap | AP19: Arne Maier | AQ19: Aster Vranckx | AR19: Atakan Karazor | AS19: Axel Witsel | AT19: Aymen Barkok | AU19: Benjamin Henrichs | AV19: Benjamin Hübner | AW19: Benjamin Pavard | AX19: Benno Schmitz | AY19: Borna Sosa | AZ19: Bouna Sarr | BA19: Branimir Hrgota | BB19: Breel Embolo | BC19: Brian Brobbey | BD19: Bryan Lasme | BE19: Carlos Gruezo | BF19: Cédric Brunner | BG19: Cedric Itten | BH19: Cedric Teuchert | BI19: Charles Aránguiz | BJ19: Chris Führich | BK19: Chris Richards | BL19: Christian Günter | BM19: Christoph Baumgartner | BN19: Christoph Kramer | BO19: Christopher Antwi-Adjei | BP19: Christopher Lenz | BQ19: Christopher Nkunku | BR19: Christopher Trimmel | BS19: Clinton Mola | BT19: Corentin Tolisso | BU19: Cristian Gamboa | BV19: Daichi Kamada | BW19: Daley Sinkgraven | BX19: Dan-Axel Zagadou | BY19: Dani Olmo | BZ19: Daniel Brosinski | CA19: Daniel Caligiuri | CB19: Daniel Didavi | CC19: Danilo Soares | CD19: Danny da Costa | CE19: David Raum | CF19: Davie Selke | CG19: Dayot Upamecano | CH19: Dedryck Boyata | CI19: Dejan Ljubičić | CJ19: Denis Zakaria | CK19: Dennis Geiger | CL19: Dennis Jastrzembski | CM19: Deyovaisio Zeefuik | CN19: Diadié Samassékou | CO19: Dickson Abiama | CP19: Djibril Sow | CQ19: Dodi Lukébakio | CR19: Dominik Kohr | CS19: Dominik Szoboszlai | CT19: Dominique Heintz | CU19: Donyell Malen | CV19: E. Choupo-Moting | CW19: Edimilson Fernandes | CX19: Edmond Tapsoba | CY19: Eduard Löwen | CZ19: Ellyes Skhiri | DA19: Elvis Rexhbeçaj | DB19: Emil Forsberg | DC19: Emre Can | DD19: Erhan Mašović | DE19: Erik Durm | DF19: Erik Thommy | DG19: Erling Braut Haaland | DH19: Ermedin Demirović | DI19: Evan N'Dicka | DJ19: Exequiel Palacios | DK19: Fabian Bredlow | DL19: Fabian Klos | DM19: Fabian Kunze | DN19: Felix Nmecha | DO19: Felix Passlack | DP19: Felix Uduokhai | DQ19: Filip Kostić | DR19: Florian Grillitsch | DS19: Florian Kainz | DT19: Florian Müller | DU19: Florian Neuhaus | DV19: Florian Niederlechner | DW19: Florian Schock | DX19: Florian Wirtz | DY19: Genki Haraguchi | DZ19: Georginio Rutter | EA19: Gerrit Holtmann | EB19: Giovanni Reyna | EC19: Gonçalo Paciência | ED19: Gregor Kobel | EE19: Grischa Prömel | EF19: Hamadi Al Ghaddioui | EG19: Hannes Wolf | EH19: Hans Nunoo Sarpei | EI19: Håvard Nielsen | EJ19: Hiroki Ito | EK19: Iago | EL19: Ihlas Bebou | EM19: Ilaix Moriba | EN19: Ishak Belfodil | EO19: Jacob Bruun Larsen | EP19: Jacob Laursen | EQ19: Jae-sung Lee | ER19: Jamal Musiala | ES19: Jan Thielmann | ET19: Janik Haberer | EU19: Janni Serra | EV19: Jean-Paul Boëtius | EW19: Jeffrey Gouweleeuw | EX19: Jens Petter Hauge | EY19: Jeremiah St. Juste | EZ19: Jeremie Frimpong | FA19: Jeremy Dudziak | FB19: Jérôme Roussillon | FC19: Jesper Lindstrøm | FD19: Jetro Willems | FE19: Joakim Nilsson | FF19: Joe Scally | FG19: John Anthony Brooks | FH19: Jonas Hector | FI19: Jonas Hofmann | FJ19: Jonathan Burkardt | FK19: Jonathan Schmid | FL19: Jonathan Tah | FM19: Jordan Beyer | FN19: Jordan Torunarigha | FO19: Jorge Meré | FP19: Joshua Kimmich | FQ19: Josip Stanišić | FR19: Joško Gvardiol | FS19: Josuha Guilavogui | FT19: Jude Bellingham | FU19: Julian Brandt | FV19: Julian Green | FW19: Julian Ryerson | FX19: Jurgen Ekkelenkamp | FY19: Justin Hoogma | FZ19: Karim Bellarabi | GA19: Karim Onisiwo | GB19: Kerem Demirbay | GC19: Keven Schlotterbeck | GD19: Kevin Akpoguma | GE19: Kevin Behrens | GF19: Kevin Kampl | GG19: Kevin Mbabu | GH19: Kevin Möhwald | GI19: Kevin Schade | GJ19: Kevin Stöger | GK19: Kevin Trapp | GL19: Kevin Vogt | GM19: Kevin-Prince Boateng | GN19: Kiliann Sildillia | GO19: Kingsley Coman | GP19: Kingsley Ehizibue | GQ19: Kingsley Schindler | GR19: Koen Casteels | GS19: Konrad Laimer | GT19: Konstantinos Mavropanos | GU19: Konstantinos Stafylidis | GV19: Kristijan Jakić | GW19: Krzysztof Piątek | GX19: Lars Stindl | GY19: László Bénes | GZ19: Leandro Barreiro | HA19: Lennart Czyborra | HB19: Leon Goretzka | HC19: Leroy Sané | HD19: Levin Öztunali | HE19: Linus Gechter | HF19: Louis Schaub | HG19: Luca Kilian | HH19: Luca Netz | HI19: Luca Waldschmidt | HJ19: Lucas Alario | HK19: Lucas Hernández | HL19: Lucas Höler | HM19: Lucas Tousart | HN19: Lukáš Hrádecký | HO19: Lukas Klostermann | HP19: Lukas Kübler | HQ19: Lukas Nmecha | HR19: Mads Pedersen | HS19: Mahmoud Dahoud | HT19: Makoto Hasebe | HU19: Manu Koné | HV19: Manuel Akanji | HW19: Manuel Gulde | HX19: Manuel Neuer | HY19: Manuel Prietl | HZ19: Manuel Riemann | IA19: Marc Oliver Kempf | IB19: Marcel Halstenberg | IC19: Marcel Sabitzer | ID19: Marco Meyerhöfer | IE19: Marco Reus | IF19: Marco Richter | IG19: Marcus Ingvartsen | IH19: Marcus Thuram | II19: Marin Pongračić | IJ19: Marius Funk | IK19: Marius Wolf | IL19: Mark Flekken | IM19: Mark Uth | IN19: Martin Hinteregger | IO19: Márton Dárdai | IP19: Marvin Friedrich | IQ19: Marvin Plattenhardt | IR19: Masaya Okugawa | IS19: Mateo Klimowicz | IT19: Mateu Morey | IU19: Mats Hummels | IV19: Matthias Ginter | IW19: Max Kruse | IX19: Maxence Lacroix | IY19: Maxim Leitsch | IZ19: Maximilian Arnold | JA19: Maximilian Bauer | JB19: Maximilian Eggestein | JC19: Maximilian Mittelstädt | JD19: Maximilian Philipp | JE19: Mijat Gaćinović | JF19: Miloš Pantović | JG19: Mitchel Bakker | JH19: Mohamed Simakan | JI19: Moussa Diaby | JJ19: Moussa Niakhaté | JK19: Munas Dabbur | JL19: Myziane Maolida | JM19: Nadiem Amiri | JN19: Nick Viergever | JO19: Nico Elvedi | JP19: Nico Schlotterbeck | JQ19: Nico Schulz | JR19: Nicolas Höfler | JS19: Niklas Dorsch | JT19: Niklas Stark | JU19: Niklas Süle | JV19: Niklas Tauer | JW19: Niko Gießelmann | JX19: Nikolas Nartey | JY19: Nils Petersen | JZ19: Noah Weißhaupt | KA19: Nordi Mukiele | KB19: Odilon Kossounou | KC19: Oliver Baumann | KD19: Omar Marmoush | KE19: Omar Richards | KF19: Ömer Faruk Beyaz | KG19: Ondrej Duda | KH19: Orel Mangala | KI19: Pascal Stenzel | KJ19: Patrick Herrmann | KK19: Patrick Wimmer | KL19: Patrik Schick | KM19: Paul Jaeckel | KN19: Paul Seguin | KO19: Paulinho | KP19: Paulo Otávio | KQ19: Pavel Kadeřábek | KR19: Péter Gulácsi | KS19: Peter Pekarík | KT19: Philipp Förster | KU19: Philipp Klement | KV19: Philipp Lienhart | KW19: Piero Hincapié | KX19: Rafael Czichos | KY19: Rafael Santos Borré | KZ19: Rafał Gikiewicz | LA19: Ragnar Ache | LB19: Ramy Bensebaini | LC19: Rani Khedira | LD19: Raphael Framberger | LE19: Raphaël Guerreiro | LF19: Reece Oxford | LG19: Reinier | LH19: Renato Steffen | LI19: Ridle Baku | LJ19: Robert Andrich | LK19: Robert Gumny | LL19: Robert Lewandowski | LM19: Robert Skov | LN19: Roberto Massimo | LO19: Robin Hack | LP19: Robin Knoche | LQ19: Robin Zentner | LR19: Roland Sallai | LS19: Ruben Vargas | LT19: Salih Özcan | LU19: Sam Lammers | LV19: Santiago Ascacibar | LW19: Sargis Adamyan | LX19: Saša Kalajdžić | LY19: Sascha Burchert | LZ19: Sebastiaan Bornauw | MA19: Sebastian Andersson | MB19: Sebastian Griesbeck | MC19: Sebastian Polter | MD19: Sebastian Rode | ME19: Sebastian Rudy | MF19: Sebastian Vasiliadis | MG19: Serge Gnabry | MH19: Sergio Córdova | MI19: Sheraldo Becker | MJ19: Silas | MK19: Silvan Widmer | ML19: Simon Zoller | MM19: Stefan Bell | MN19: Stefan Ilsanker | MO19: Stefan Lainer | MP19: Stefan Ortega Moreno | MQ19: Stefan Posch | MR19: Steffen Tigges | MS19: Stevan Jovetić | MT19: Suat Serdar | MU19: Taiwo Awoniyi | MV19: Tanguy Coulibaly | MW19: Tanguy Nianzou | MX19: Thomas Meunier | MY19: Thomas Müller | MZ19: Thorgan Hazard | NA19: Tim Lemperle | NB19: Timo Baumgartl | NC19: Timo Horn | ND19: Timo Hübers | NE19: Timothy Chandler | NF19: Timothy Fosu-Mensah | NG19: Timothy Tillman | NH19: Tobias Strobl | NI19: Tomas Ostrak | NJ19: Tony Jantschke | NK19: Tuta | NL19: Tyler Adams | NM19: Vasilios Lampropoulos | NN19: Vincenzo Grifo | NO19: Vladimír Darida | NP19: Wahid Faghir | NQ19: Waldemar Anton | NR19: Wataru Endo | NS19: Willi Orbán | NT19: Woo-yeong Jeong | NU19: Wout Weghorst | NV19: Xaver Schlager | NW19: Yann Sommer | NX19: Yannick Gerhardt | NY19: Yannik Keitel | NZ19: Youssoufa Moukoko | OA19: Yussuf Poulsen
B20: =_xlfn.XLOOKUP(A20,Alle_Spieler[Spieler],Alle_Spieler[Position],"") ->  | C20: =_xlfn.XLOOKUP($A20,Alle_Spieler[Spieler],Alle_Spieler[Verein],"") ->  | D20: =_xlfn.XLOOKUP($A20,Alle_Spieler[Spieler],Alle_Spieler[Marktwert],"") ->  | E20: =_xlfn.XLOOKUP($A20,Alle_Spieler[Spieler],Alle_Spieler[Differenz],"") ->  | F20: =IFERROR(Tabelle4[[#This Row],[Marktwertentwicklung]],"") ->  | N20: =TRANSPOSE(_xlfn._xlws.SORT(_xlfn._xlws.FILTER(Alle_Spieler[Spieler],ISNUMBER((SEARCH(A20,Alle_Spieler[Spieler],1))),"not found"))) -> Aarón | O20: Ádám Szalai | P20: Admir Mehmedi | Q20: Ajdin Hrustić | R20: Alassane Pléa | S20: Alessandro Schöpf | T20: Alexander Hack | U20: Alexander Schwolow | V20: Alfreð Finnbogason | W20: Almamy Touré | X20: Alphonso Davies | Y20: Amadou Haidara | Z20: Amine Adli | AA20: Amos Pieper | AB20: Anderson Lucoqui | AC20: Andi Zeqiri | AD20: André Hahn | AE20: André Silva | AF20: Andreas Luthe | AG20: Andreas Voglsammer | AH20: Andrej Kramarić | AI20: Angeliño | AJ20: Angelo Stiller | AK20: Ansgar Knauff | AL20: Anthony Losilla | AM20: Anthony Modeste | AN20: Anton Stach | AO20: Armel Bella-Kotchap | AP20: Arne Maier | AQ20: Aster Vranckx | AR20: Atakan Karazor | AS20: Axel Witsel | AT20: Aymen Barkok | AU20: Benjamin Henrichs | AV20: Benjamin Hübner | AW20: Benjamin Pavard | AX20: Benno Schmitz | AY20: Borna Sosa | AZ20: Bouna Sarr | BA20: Branimir Hrgota | BB20: Breel Embolo | BC20: Brian Brobbey | BD20: Bryan Lasme | BE20: Carlos Gruezo | BF20: Cédric Brunner | BG20: Cedric Itten | BH20: Cedric Teuchert | BI20: Charles Aránguiz | BJ20: Chris Führich | BK20: Chris Richards | BL20: Christian Günter | BM20: Christoph Baumgartner | BN20: Christoph Kramer | BO20: Christopher Antwi-Adjei | BP20: Christopher Lenz | BQ20: Christopher Nkunku | BR20: Christopher Trimmel | BS20: Clinton Mola | BT20: Corentin Tolisso | BU20: Cristian Gamboa | BV20: Daichi Kamada | BW20: Daley Sinkgraven | BX20: Dan-Axel Zagadou | BY20: Dani Olmo | BZ20: Daniel Brosinski | CA20: Daniel Caligiuri | CB20: Daniel Didavi | CC20: Danilo Soares | CD20: Danny da Costa | CE20: David Raum | CF20: Davie Selke | CG20: Dayot Upamecano | CH20: Dedryck Boyata | CI20: Dejan Ljubičić | CJ20: Denis Zakaria | CK20: Dennis Geiger | CL20: Dennis Jastrzembski | CM20: Deyovaisio Zeefuik | CN20: Diadié Samassékou | CO20: Dickson Abiama | CP20: Djibril Sow | CQ20: Dodi Lukébakio | CR20: Dominik Kohr | CS20: Dominik Szoboszlai | CT20: Dominique Heintz | CU20: Donyell Malen | CV20: E. Choupo-Moting | CW20: Edimilson Fernandes | CX20: Edmond Tapsoba | CY20: Eduard Löwen | CZ20: Ellyes Skhiri | DA20: Elvis Rexhbeçaj | DB20: Emil Forsberg | DC20: Emre Can | DD20: Erhan Mašović | DE20: Erik Durm | DF20: Erik Thommy | DG20: Erling Braut Haaland | DH20: Ermedin Demirović | DI20: Evan N'Dicka | DJ20: Exequiel Palacios | DK20: Fabian Bredlow | DL20: Fabian Klos | DM20: Fabian Kunze | DN20: Felix Nmecha | DO20: Felix Passlack | DP20: Felix Uduokhai | DQ20: Filip Kostić | DR20: Florian Grillitsch | DS20: Florian Kainz | DT20: Florian Müller | DU20: Florian Neuhaus | DV20: Florian Niederlechner | DW20: Florian Schock | DX20: Florian Wirtz | DY20: Genki Haraguchi | DZ20: Georginio Rutter | EA20: Gerrit Holtmann | EB20: Giovanni Reyna | EC20: Gonçalo Paciência | ED20: Gregor Kobel | EE20: Grischa Prömel | EF20: Hamadi Al Ghaddioui | EG20: Hannes Wolf | EH20: Hans Nunoo Sarpei | EI20: Håvard Nielsen | EJ20: Hiroki Ito | EK20: Iago | EL20: Ihlas Bebou | EM20: Ilaix Moriba | EN20: Ishak Belfodil | EO20: Jacob Bruun Larsen | EP20: Jacob Laursen | EQ20: Jae-sung Lee | ER20: Jamal Musiala | ES20: Jan Thielmann | ET20: Janik Haberer | EU20: Janni Serra | EV20: Jean-Paul Boëtius | EW20: Jeffrey Gouweleeuw | EX20: Jens Petter Hauge | EY20: Jeremiah St. Juste | EZ20: Jeremie Frimpong | FA20: Jeremy Dudziak | FB20: Jérôme Roussillon | FC20: Jesper Lindstrøm | FD20: Jetro Willems | FE20: Joakim Nilsson | FF20: Joe Scally | FG20: John Anthony Brooks | FH20: Jonas Hector | FI20: Jonas Hofmann | FJ20: Jonathan Burkardt | FK20: Jonathan Schmid | FL20: Jonathan Tah | FM20: Jordan Beyer | FN20: Jordan Torunarigha | FO20: Jorge Meré | FP20: Joshua Kimmich | FQ20: Josip Stanišić | FR20: Joško Gvardiol | FS20: Josuha Guilavogui | FT20: Jude Bellingham | FU20: Julian Brandt | FV20: Julian Green | FW20: Julian Ryerson | FX20: Jurgen Ekkelenkamp | FY20: Justin Hoogma | FZ20: Karim Bellarabi | GA20: Karim Onisiwo | GB20: Kerem Demirbay | GC20: Keven Schlotterbeck | GD20: Kevin Akpoguma | GE20: Kevin Behrens | GF20: Kevin Kampl | GG20: Kevin Mbabu | GH20: Kevin Möhwald | GI20: Kevin Schade | GJ20: Kevin Stöger | GK20: Kevin Trapp | GL20: Kevin Vogt | GM20: Kevin-Prince Boateng | GN20: Kiliann Sildillia | GO20: Kingsley Coman | GP20: Kingsley Ehizibue | GQ20: Kingsley Schindler | GR20: Koen Casteels | GS20: Konrad Laimer | GT20: Konstantinos Mavropanos | GU20: Konstantinos Stafylidis | GV20: Kristijan Jakić | GW20: Krzysztof Piątek | GX20: Lars Stindl | GY20: László Bénes | GZ20: Leandro Barreiro | HA20: Lennart Czyborra | HB20: Leon Goretzka | HC20: Leroy Sané | HD20: Levin Öztunali | HE20: Linus Gechter | HF20: Louis Schaub | HG20: Luca Kilian | HH20: Luca Netz | HI20: Luca Waldschmidt | HJ20: Lucas Alario | HK20: Lucas Hernández | HL20: Lucas Höler | HM20: Lucas Tousart | HN20: Lukáš Hrádecký | HO20: Lukas Klostermann | HP20: Lukas Kübler | HQ20: Lukas Nmecha | HR20: Mads Pedersen | HS20: Mahmoud Dahoud | HT20: Makoto Hasebe | HU20: Manu Koné | HV20: Manuel Akanji | HW20: Manuel Gulde | HX20: Manuel Neuer | HY20: Manuel Prietl | HZ20: Manuel Riemann | IA20: Marc Oliver Kempf | IB20: Marcel Halstenberg | IC20: Marcel Sabitzer | ID20: Marco Meyerhöfer | IE20: Marco Reus | IF20: Marco Richter | IG20: Marcus Ingvartsen | IH20: Marcus Thuram | II20: Marin Pongračić | IJ20: Marius Funk | IK20: Marius Wolf | IL20: Mark Flekken | IM20: Mark Uth | IN20: Martin Hinteregger | IO20: Márton Dárdai | IP20: Marvin Friedrich | IQ20: Marvin Plattenhardt | IR20: Masaya Okugawa | IS20: Mateo Klimowicz | IT20: Mateu Morey | IU20: Mats Hummels | IV20: Matthias Ginter | IW20: Max Kruse | IX20: Maxence Lacroix | IY20: Maxim Leitsch | IZ20: Maximilian Arnold | JA20: Maximilian Bauer | JB20: Maximilian Eggestein | JC20: Maximilian Mittelstädt | JD20: Maximilian Philipp | JE20: Mijat Gaćinović | JF20: Miloš Pantović | JG20: Mitchel Bakker | JH20: Mohamed Simakan | JI20: Moussa Diaby | JJ20: Moussa Niakhaté | JK20: Munas Dabbur | JL20: Myziane Maolida | JM20: Nadiem Amiri | JN20: Nick Viergever | JO20: Nico Elvedi | JP20: Nico Schlotterbeck | JQ20: Nico Schulz | JR20: Nicolas Höfler | JS20: Niklas Dorsch | JT20: Niklas Stark | JU20: Niklas Süle | JV20: Niklas Tauer | JW20: Niko Gießelmann | JX20: Nikolas Nartey | JY20: Nils Petersen | JZ20: Noah Weißhaupt | KA20: Nordi Mukiele | KB20: Odilon Kossounou | KC20: Oliver Baumann | KD20: Omar Marmoush | KE20: Omar Richards | KF20: Ömer Faruk Beyaz | KG20: Ondrej Duda | KH20: Orel Mangala | KI20: Pascal Stenzel | KJ20: Patrick Herrmann | KK20: Patrick Wimmer | KL20: Patrik Schick | KM20: Paul Jaeckel | KN20: Paul Seguin | KO20: Paulinho | KP20: Paulo Otávio | KQ20: Pavel Kadeřábek | KR20: Péter Gulácsi | KS20: Peter Pekarík | KT20: Philipp Förster | KU20: Philipp Klement | KV20: Philipp Lienhart | KW20: Piero Hincapié | KX20: Rafael Czichos | KY20: Rafael Santos Borré | KZ20: Rafał Gikiewicz | LA20: Ragnar Ache | LB20: Ramy Bensebaini | LC20: Rani Khedira | LD20: Raphael Framberger | LE20: Raphaël Guerreiro | LF20: Reece Oxford | LG20: Reinier | LH20: Renato Steffen | LI20: Ridle Baku | LJ20: Robert Andrich | LK20: Robert Gumny | LL20: Robert Lewandowski | LM20: Robert Skov | LN20: Roberto Massimo | LO20: Robin Hack | LP20: Robin Knoche | LQ20: Robin Zentner | LR20: Roland Sallai | LS20: Ruben Vargas | LT20: Salih Özcan | LU20: Sam Lammers | LV20: Santiago Ascacibar | LW20: Sargis Adamyan | LX20: Saša Kalajdžić | LY20: Sascha Burchert | LZ20: Sebastiaan Bornauw | MA20: Sebastian Andersson | MB20: Sebastian Griesbeck | MC20: Sebastian Polter | MD20: Sebastian Rode | ME20: Sebastian Rudy | MF20: Sebastian Vasiliadis | MG20: Serge Gnabry | MH20: Sergio Córdova | MI20: Sheraldo Becker | MJ20: Silas | MK20: Silvan Widmer | ML20: Simon Zoller | MM20: Stefan Bell | MN20: Stefan Ilsanker | MO20: Stefan Lainer | MP20: Stefan Ortega Moreno | MQ20: Stefan Posch | MR20: Steffen Tigges | MS20: Stevan Jovetić | MT20: Suat Serdar | MU20: Taiwo Awoniyi | MV20: Tanguy Coulibaly | MW20: Tanguy Nianzou | MX20: Thomas Meunier | MY20: Thomas Müller | MZ20: Thorgan Hazard | NA20: Tim Lemperle | NB20: Timo Baumgartl | NC20: Timo Horn | ND20: Timo Hübers | NE20: Timothy Chandler | NF20: Timothy Fosu-Mensah | NG20: Timothy Tillman | NH20: Tobias Strobl | NI20: Tomas Ostrak | NJ20: Tony Jantschke | NK20: Tuta | NL20: Tyler Adams | NM20: Vasilios Lampropoulos | NN20: Vincenzo Grifo | NO20: Vladimír Darida | NP20: Wahid Faghir | NQ20: Waldemar Anton | NR20: Wataru Endo | NS20: Willi Orbán | NT20: Woo-yeong Jeong | NU20: Wout Weghorst | NV20: Xaver Schlager | NW20: Yann Sommer | NX20: Yannick Gerhardt | NY20: Yannik Keitel | NZ20: Youssoufa Moukoko | OA20: Yussuf Poulsen
B21: =_xlfn.XLOOKUP(A21,Alle_Spieler[Spieler],Alle_Spieler[Position],"") ->  | C21: =_xlfn.XLOOKUP($A21,Alle_Spieler[Spieler],Alle_Spieler[Verein],"") ->  | D21: =_xlfn.XLOOKUP($A21,Alle_Spieler[Spieler],Alle_Spieler[Marktwert],"") ->  | E21: =_xlfn.XLOOKUP($A21,Alle_Spieler[Spieler],Alle_Spieler[Differenz],"") ->  | F21: =IFERROR(Tabelle4[[#This Row],[Marktwertentwicklung]],"") ->  | N21: =TRANSPOSE(_xlfn._xlws.SORT(_xlfn._xlws.FILTER(Alle_Spieler[Spieler],ISNUMBER((SEARCH(A21,Alle_Spieler[Spieler],1))),"not found"))) -> Aarón | O21: Ádám Szalai | P21: Admir Mehmedi | Q21: Ajdin Hrustić | R21: Alassane Pléa | S21: Alessandro Schöpf | T21: Alexander Hack | U21: Alexander Schwolow | V21: Alfreð Finnbogason | W21: Almamy Touré | X21: Alphonso Davies | Y21: Amadou Haidara | Z21: Amine Adli | AA21: Amos Pieper | AB21: Anderson Lucoqui | AC21: Andi Zeqiri | AD21: André Hahn | AE21: André Silva | AF21: Andreas Luthe | AG21: Andreas Voglsammer | AH21: Andrej Kramarić | AI21: Angeliño | AJ21: Angelo Stiller | AK21: Ansgar Knauff | AL21: Anthony Losilla | AM21: Anthony Modeste | AN21: Anton Stach | AO21: Armel Bella-Kotchap | AP21: Arne Maier | AQ21: Aster Vranckx | AR21: Atakan Karazor | AS21: Axel Witsel | AT21: Aymen Barkok | AU21: Benjamin Henrichs | AV21: Benjamin Hübner | AW21: Benjamin Pavard | AX21: Benno Schmitz | AY21: Borna Sosa | AZ21: Bouna Sarr | BA21: Branimir Hrgota | BB21: Breel Embolo | BC21: Brian Brobbey | BD21: Bryan Lasme | BE21: Carlos Gruezo | BF21: Cédric Brunner | BG21: Cedric Itten | BH21: Cedric Teuchert | BI21: Charles Aránguiz | BJ21: Chris Führich | BK21: Chris Richards | BL21: Christian Günter | BM21: Christoph Baumgartner | BN21: Christoph Kramer | BO21: Christopher Antwi-Adjei | BP21: Christopher Lenz | BQ21: Christopher Nkunku | BR21: Christopher Trimmel | BS21: Clinton Mola | BT21: Corentin Tolisso | BU21: Cristian Gamboa | BV21: Daichi Kamada | BW21: Daley Sinkgraven | BX21: Dan-Axel Zagadou | BY21: Dani Olmo | BZ21: Daniel Brosinski | CA21: Daniel Caligiuri | CB21: Daniel Didavi | CC21: Danilo Soares | CD21: Danny da Costa | CE21: David Raum | CF21: Davie Selke | CG21: Dayot Upamecano | CH21: Dedryck Boyata | CI21: Dejan Ljubičić | CJ21: Denis Zakaria | CK21: Dennis Geiger | CL21: Dennis Jastrzembski | CM21: Deyovaisio Zeefuik | CN21: Diadié Samassékou | CO21: Dickson Abiama | CP21: Djibril Sow | CQ21: Dodi Lukébakio | CR21: Dominik Kohr | CS21: Dominik Szoboszlai | CT21: Dominique Heintz | CU21: Donyell Malen | CV21: E. Choupo-Moting | CW21: Edimilson Fernandes | CX21: Edmond Tapsoba | CY21: Eduard Löwen | CZ21: Ellyes Skhiri | DA21: Elvis Rexhbeçaj | DB21: Emil Forsberg | DC21: Emre Can | DD21: Erhan Mašović | DE21: Erik Durm | DF21: Erik Thommy | DG21: Erling Braut Haaland | DH21: Ermedin Demirović | DI21: Evan N'Dicka | DJ21: Exequiel Palacios | DK21: Fabian Bredlow | DL21: Fabian Klos | DM21: Fabian Kunze | DN21: Felix Nmecha | DO21: Felix Passlack | DP21: Felix Uduokhai | DQ21: Filip Kostić | DR21: Florian Grillitsch | DS21: Florian Kainz | DT21: Florian Müller | DU21: Florian Neuhaus | DV21: Florian Niederlechner | DW21: Florian Schock | DX21: Florian Wirtz | DY21: Genki Haraguchi | DZ21: Georginio Rutter | EA21: Gerrit Holtmann | EB21: Giovanni Reyna | EC21: Gonçalo Paciência | ED21: Gregor Kobel | EE21: Grischa Prömel | EF21: Hamadi Al Ghaddioui | EG21: Hannes Wolf | EH21: Hans Nunoo Sarpei | EI21: Håvard Nielsen | EJ21: Hiroki Ito | EK21: Iago | EL21: Ihlas Bebou | EM21: Ilaix Moriba | EN21: Ishak Belfodil | EO21: Jacob Bruun Larsen | EP21: Jacob Laursen | EQ21: Jae-sung Lee | ER21: Jamal Musiala | ES21: Jan Thielmann | ET21: Janik Haberer | EU21: Janni Serra | EV21: Jean-Paul Boëtius | EW21: Jeffrey Gouweleeuw | EX21: Jens Petter Hauge | EY21: Jeremiah St. Juste | EZ21: Jeremie Frimpong | FA21: Jeremy Dudziak | FB21: Jérôme Roussillon | FC21: Jesper Lindstrøm | FD21: Jetro Willems | FE21: Joakim Nilsson | FF21: Joe Scally | FG21: John Anthony Brooks | FH21: Jonas Hector | FI21: Jonas Hofmann | FJ21: Jonathan Burkardt | FK21: Jonathan Schmid | FL21: Jonathan Tah | FM21: Jordan Beyer | FN21: Jordan Torunarigha | FO21: Jorge Meré | FP21: Joshua Kimmich | FQ21: Josip Stanišić | FR21: Joško Gvardiol | FS21: Josuha Guilavogui | FT21: Jude Bellingham | FU21: Julian Brandt | FV21: Julian Green | FW21: Julian Ryerson | FX21: Jurgen Ekkelenkamp | FY21: Justin Hoogma | FZ21: Karim Bellarabi | GA21: Karim Onisiwo | GB21: Kerem Demirbay | GC21: Keven Schlotterbeck | GD21: Kevin Akpoguma | GE21: Kevin Behrens | GF21: Kevin Kampl | GG21: Kevin Mbabu | GH21: Kevin Möhwald | GI21: Kevin Schade | GJ21: Kevin Stöger | GK21: Kevin Trapp | GL21: Kevin Vogt | GM21: Kevin-Prince Boateng | GN21: Kiliann Sildillia | GO21: Kingsley Coman | GP21: Kingsley Ehizibue | GQ21: Kingsley Schindler | GR21: Koen Casteels | GS21: Konrad Laimer | GT21: Konstantinos Mavropanos | GU21: Konstantinos Stafylidis | GV21: Kristijan Jakić | GW21: Krzysztof Piątek | GX21: Lars Stindl | GY21: László Bénes | GZ21: Leandro Barreiro | HA21: Lennart Czyborra | HB21: Leon Goretzka | HC21: Leroy Sané | HD21: Levin Öztunali | HE21: Linus Gechter | HF21: Louis Schaub | HG21: Luca Kilian | HH21: Luca Netz | HI21: Luca Waldschmidt | HJ21: Lucas Alario | HK21: Lucas Hernández | HL21: Lucas Höler | HM21: Lucas Tousart | HN21: Lukáš Hrádecký | HO21: Lukas Klostermann | HP21: Lukas Kübler | HQ21: Lukas Nmecha | HR21: Mads Pedersen | HS21: Mahmoud Dahoud | HT21: Makoto Hasebe | HU21: Manu Koné | HV21: Manuel Akanji | HW21: Manuel Gulde | HX21: Manuel Neuer | HY21: Manuel Prietl | HZ21: Manuel Riemann | IA21: Marc Oliver Kempf | IB21: Marcel Halstenberg | IC21: Marcel Sabitzer | ID21: Marco Meyerhöfer | IE21: Marco Reus | IF21: Marco Richter | IG21: Marcus Ingvartsen | IH21: Marcus Thuram | II21: Marin Pongračić | IJ21: Marius Funk | IK21: Marius Wolf | IL21: Mark Flekken | IM21: Mark Uth | IN21: Martin Hinteregger | IO21: Márton Dárdai | IP21: Marvin Friedrich | IQ21: Marvin Plattenhardt | IR21: Masaya Okugawa | IS21: Mateo Klimowicz | IT21: Mateu Morey | IU21: Mats Hummels | IV21: Matthias Ginter | IW21: Max Kruse | IX21: Maxence Lacroix | IY21: Maxim Leitsch | IZ21: Maximilian Arnold | JA21: Maximilian Bauer | JB21: Maximilian Eggestein | JC21: Maximilian Mittelstädt | JD21: Maximilian Philipp | JE21: Mijat Gaćinović | JF21: Miloš Pantović | JG21: Mitchel Bakker | JH21: Mohamed Simakan | JI21: Moussa Diaby | JJ21: Moussa Niakhaté | JK21: Munas Dabbur | JL21: Myziane Maolida | JM21: Nadiem Amiri | JN21: Nick Viergever | JO21: Nico Elvedi | JP21: Nico Schlotterbeck | JQ21: Nico Schulz | JR21: Nicolas Höfler | JS21: Niklas Dorsch | JT21: Niklas Stark | JU21: Niklas Süle | JV21: Niklas Tauer | JW21: Niko Gießelmann | JX21: Nikolas Nartey | JY21: Nils Petersen | JZ21: Noah Weißhaupt | KA21: Nordi Mukiele | KB21: Odilon Kossounou | KC21: Oliver Baumann | KD21: Omar Marmoush | KE21: Omar Richards | KF21: Ömer Faruk Beyaz | KG21: Ondrej Duda | KH21: Orel Mangala | KI21: Pascal Stenzel | KJ21: Patrick Herrmann | KK21: Patrick Wimmer | KL21: Patrik Schick | KM21: Paul Jaeckel | KN21: Paul Seguin | KO21: Paulinho | KP21: Paulo Otávio | KQ21: Pavel Kadeřábek | KR21: Péter Gulácsi | KS21: Peter Pekarík | KT21: Philipp Förster | KU21: Philipp Klement | KV21: Philipp Lienhart | KW21: Piero Hincapié | KX21: Rafael Czichos | KY21: Rafael Santos Borré | KZ21: Rafał Gikiewicz | LA21: Ragnar Ache | LB21: Ramy Bensebaini | LC21: Rani Khedira | LD21: Raphael Framberger | LE21: Raphaël Guerreiro | LF21: Reece Oxford | LG21: Reinier | LH21: Renato Steffen | LI21: Ridle Baku | LJ21: Robert Andrich | LK21: Robert Gumny | LL21: Robert Lewandowski | LM21: Robert Skov | LN21: Roberto Massimo | LO21: Robin Hack | LP21: Robin Knoche | LQ21: Robin Zentner | LR21: Roland Sallai | LS21: Ruben Vargas | LT21: Salih Özcan | LU21: Sam Lammers | LV21: Santiago Ascacibar | LW21: Sargis Adamyan | LX21: Saša Kalajdžić | LY21: Sascha Burchert | LZ21: Sebastiaan Bornauw | MA21: Sebastian Andersson | MB21: Sebastian Griesbeck | MC21: Sebastian Polter | MD21: Sebastian Rode | ME21: Sebastian Rudy | MF21: Sebastian Vasiliadis | MG21: Serge Gnabry | MH21: Sergio Córdova | MI21: Sheraldo Becker | MJ21: Silas | MK21: Silvan Widmer | ML21: Simon Zoller | MM21: Stefan Bell | MN21: Stefan Ilsanker | MO21: Stefan Lainer | MP21: Stefan Ortega Moreno | MQ21: Stefan Posch | MR21: Steffen Tigges | MS21: Stevan Jovetić | MT21: Suat Serdar | MU21: Taiwo Awoniyi | MV21: Tanguy Coulibaly | MW21: Tanguy Nianzou | MX21: Thomas Meunier | MY21: Thomas Müller | MZ21: Thorgan Hazard | NA21: Tim Lemperle | NB21: Timo Baumgartl | NC21: Timo Horn | ND21: Timo Hübers | NE21: Timothy Chandler | NF21: Timothy Fosu-Mensah | NG21: Timothy Tillman | NH21: Tobias Strobl | NI21: Tomas Ostrak | NJ21: Tony Jantschke | NK21: Tuta | NL21: Tyler Adams | NM21: Vasilios Lampropoulos | NN21: Vincenzo Grifo | NO21: Vladimír Darida | NP21: Wahid Faghir | NQ21: Waldemar Anton | NR21: Wataru Endo | NS21: Willi Orbán | NT21: Woo-yeong Jeong | NU21: Wout Weghorst | NV21: Xaver Schlager | NW21: Yann Sommer | NX21: Yannick Gerhardt | NY21: Yannik Keitel | NZ21: Youssoufa Moukoko | OA21: Yussuf Poulsen

Sheet Alle Spieler
A1: Spieler | B1: Verein | C1: Position | D1: Punkte Gesamt | E1: Marktwert | F1: Wachstum | G1: Differenz
A2: Linus Gechter | B2: Hertha BSC | C2: Abwehrspieler | D2: 141 | E2: 1914204 | F2: 0.343 | G2: 489079
A3: Kiliann Sildillia | B3: SC Freiburg | C3: Abwehrspieler | D3: 63 | E3: 3557765 | F3: 0.154 | G3: 474279
A4: Jonathan Burkardt | B4: 1. FSV Mainz 05 | C4: Stürmer | D4: 758 | E4: 8882540 | F4: 0.051 | G4: 432177
A5: Karim Onisiwo | B5: 1. FSV Mainz 05 | C5: Stürmer | D5: 566 | E5: 5214397 | F5: 0.088 | G5: 422748
A6: Kevin Möhwald | B6: 1. FC Union Berlin | C6: Mittelfeldspieler | D6: 39 | E6: 3648974 | F6: 0.117 | G6: 382002
A7: Janni Serra | B7: Arminia Bielefeld | C7: Stürmer | D7: 37 | E7: 1617862 | F7: 0.301 | G7: 374176
A8: Peter Pekarík | B8: Hertha BSC | C8: Abwehrspieler | D8: 273 | E8: 3774008 | F8: 0.109 | G8: 369917
A9: Dominik Kohr | B9: 1. FSV Mainz 05 | C9: Mittelfeldspieler | D9: 425 | E9: 5299574 | F9: 0.075 | G9: 369009
A10: Vasilios Lampropoulos | B10: VfL Bochum | C10: Abwehrspieler | D10: 329 | E10: 4706076 | F10: 0.083 | G10: 361358
A11: Aarón | B11: 1. FSV Mainz 05 | C11: Abwehrspieler | D11: 332 | E11: 1643103 | F11: 0.269 | G11: 348344
A12: Kevin Akpoguma | B12: TSG 1899 Hoffenheim | C12: Abwehrspieler | D12: 487 | E12: 9833929 | F12: 0.036 | G12: 342051
A13: Jacob Laursen | B13: Arminia Bielefeld | C13: Abwehrspieler | D13: 495 | E13: 4975382 | F13: 0.074 | G13: 340719
A14: Miloš Pantović | B14: VfL Bochum | C14: Mittelfeldspieler | D14: 167 | E14: 3180080 | F14: 0.115 | G14: 327943
A15: Alfreð Finnbogason | B15: FC Augsburg | C15: Stürmer | D15: 5 | E15: 3034885 | F15: 0.12 | G15: 326016
A16: Genki Haraguchi | B16: 1. FC Union Berlin | C16: Mittelfeldspieler | D16: 408 | E16: 5123997 | F16: 0.068 | G16: 325722
A17: Andi Zeqiri | B17: FC Augsburg | C17: Stürmer | D17: 249 | E17: 6338510 | F17: 0.053 | G17: 317253
A18: Alexander Hack | B18: 1. FSV Mainz 05 | C18: Abwehrspieler | D18: 434 | E18: 4839556 | F18: 0.07 | G18: 315548
A19: Makoto Hasebe | B19: Eintracht Frankfurt | C19: Abwehrspieler | D19: 36 | E19: 3961354 | F19: 0.086 | G19: 314028
A20: Timo Baumgartl | B20: 1. FC Union Berlin | C20: Abwehrspieler | D20: 301 | E20: 6606108 | F20: 0.049 | G20: 308027
A21: Jurgen Ekkelenkamp | B21: Hertha BSC | C21: Mittelfeldspieler | D21: 294 | E21: 6838503 | F21: 0.047 | G21: 304044
A22: Stefan Posch | B22: TSG 1899 Hoffenheim | C22: Abwehrspieler | D22: 487 | E22: 6971887 | F22: 0.045 | G22: 302827
A23: Robert Andrich | B23: Bayer 04 Leverkusen | C23: Mittelfeldspieler | D23: 230 | E23: 6760398 | F23: 0.046 | G23: 298587
A24: Daniel Caligiuri | B24: FC Augsburg | C24: Mittelfeldspieler | D24: 565 | E24: 8201403 | F24: 0.038 | G24: 298501
A25: Exequiel Palacios | B25: Bayer 04 Leverkusen | C25: Mittelfeldspieler | D25: 254 | E25: 8474100 | F25: 0.036 | G25: 293874
A26: Daichi Kamada | B26: Eintracht Frankfurt | C26: Mittelfeldspieler | D26: 250 | E26: 9271216 | F26: 0.033 | G26: 292453
A27: Fabian Kunze | B27: Arminia Bielefeld | C27: Mittelfeldspieler | D27: 248 | E27: 1656749 | F27: 0.214 | G27: 291539
A28: Tobias Strobl | B28: FC Augsburg | C28: Mittelfeldspieler | D28: 90 | E28: 1399635 | F28: 0.261 | G28: 289456
A29: Konrad Laimer | B29: RB Leipzig | C29: Mittelfeldspieler | D29: 242 | E29: 6684428 | F29: 0.043 | G29: 275875
A30: Niklas Stark | B30: Hertha BSC | C30: Abwehrspieler | D30: 430 | E30: 7434155 | F30: 0.038 | G30: 272822
A31: Josip Stanišić | B31: FC Bayern München | C31: Abwehrspieler | D31: 460 | E31: 8801824 | F31: 0.032 | G31: 270676
A32: Taiwo Awoniyi | B32: 1. FC Union Berlin | C32: Stürmer | D32: 928 | E32: 18597989 | F32: 0.014 | G32: 260855
A33: Cristian Gamboa | B33: VfL Bochum | C33: Abwehrspieler | D33: 187 | E33: 3378759 | F33: 0.083 | G33: 260002
A34: Mohamed Simakan | B34: RB Leipzig | C34: Abwehrspieler | D34: 789 | E34: 16797573 | F34: 0.015 | G34: 256035
A35: Benjamin Pavard | B35: FC Bayern München | C35: Abwehrspieler | D35: 186 | E35: 15963508 | F35: 0.016 | G35: 251855
A36: Maximilian Mittelstädt | B36: Hertha BSC | C36: Abwehrspieler | D36: 314 | E36: 5399355 | F36: 0.049 | G36: 251100
A37: Vladimír Darida | B37: Hertha BSC | C37: Mittelfeldspieler | D37: 323 | E37: 6046474 | F37: 0.043 | G37: 249808
A38: Gonçalo Paciência | B38: Eintracht Frankfurt | C38: Stürmer | D38: 152 | E38: 5234475 | F38: 0.05 | G38: 249685
A39: Santiago Ascacibar | B39: Hertha BSC | C39: Mittelfeldspieler | D39: 281 | E39: 2557883 | F39: 0.108 | G39: 249261
A40: Jean-Paul Boëtius | B40: 1. FSV Mainz 05 | C40: Mittelfeldspieler | D40: 476 | E40: 5822484 | F40: 0.045 | G40: 248562
A41: Ihlas Bebou | B41: TSG 1899 Hoffenheim | C41: Stürmer | D41: 367 | E41: 11383859 | F41: 0.022 | G41: 245009
A42: Kristijan Jakić | B42: Eintracht Frankfurt | C42: Mittelfeldspieler | D42: 257 | E42: 6571091 | F42: 0.038 | G42: 240773
A43: Jeffrey Gouweleeuw | B43: FC Augsburg | C43: Abwehrspieler | D43: 364 | E43: 6256055 | F43: 0.04 | G43: 239886
A44: André Hahn | B44: FC Augsburg | C44: Stürmer | D44: 341 | E44: 4622339 | F44: 0.054 | G44: 238256
A45: Fabian Bredlow | B45: VfB Stuttgart | C45: Torhüter | D45: 92 | E45: 4428107 | F45: 0.056 | G45: 233806
A46: Kingsley Coman | B46: FC Bayern München | C46: Mittelfeldspieler | D46: 270 | E46: 23291574 | F46: 0.01 | G46: 231769
A47: Woo-yeong Jeong | B47: SC Freiburg | C47: Mittelfeldspieler | D47: 734 | E47: 9642592 | F47: 0.024 | G47: 228449
A48: Orel Mangala | B48: VfB Stuttgart | C48: Mittelfeldspieler | D48: 226 | E48: 7427768 | F48: 0.031 | G48: 226373
A49: Silas | B49: VfB Stuttgart | C49: Mittelfeldspieler | D49: 0 | E49: 9932247 | F49: 0.023 | G49: 223897
A50: Jonathan Schmid | B50: SC Freiburg | C50: Abwehrspieler | D50: 162 | E50: 6209881 | F50: 0.037 | G50: 223643
A51: Nadiem Amiri | B51: Bayer 04 Leverkusen | C51: Mittelfeldspieler | D51: 326 | E51: 7816757 | F51: 0.029 | G51: 218801
A52: Corentin Tolisso | B52: FC Bayern München | C52: Mittelfeldspieler | D52: 49 | E52: 2548458 | F52: 0.093 | G52: 217659
A53: Daniel Didavi | B53: VfB Stuttgart | C53: Mittelfeldspieler | D53: 91 | E53: 988683 | F53: 0.278 | G53: 215346
A54: Stefan Bell | B54: 1. FSV Mainz 05 | C54: Abwehrspieler | D54: 829 | E54: 8685513 | F54: 0.025 | G54: 213566
A55: Lukas Nmecha | B55: VfL Wolfsburg | C55: Stürmer | D55: 415 | E55: 12236517 | F55: 0.018 | G55: 213489
A56: Sebastian Vasiliadis | B56: Arminia Bielefeld | C56: Mittelfeldspieler | D56: 0 | E56: 3451305 | F56: 0.066 | G56: 212867
A57: Mateu Morey | B57: Borussia Dortmund | C57: Abwehrspieler | D57: 0 | E57: 3446225 | F57: 0.063 | G57: 202819
A58: Steffen Tigges | B58: Borussia Dortmund | C58: Stürmer | D58: 51 | E58: 705930 | F58: 0.401 | G58: 202225
A59: Marvin Plattenhardt | B59: Hertha BSC | C59: Abwehrspieler | D59: 358 | E59: 5189597 | F59: 0.04 | G59: 199137
A60: Mahmoud Dahoud | B60: Borussia Dortmund | C60: Mittelfeldspieler | D60: 411 | E60: 14018572 | F60: 0.014 | G60: 192837
A61: Alassane Pléa | B61: Borussia Mönchengladbach | C61: Stürmer | D61: 436 | E61: 15734342 | F61: 0.012 | G61: 191624
A62: Jordan Beyer | B62: Borussia Mönchengladbach | C62: Abwehrspieler | D62: 486 | E62: 11846667 | F62: 0.016 | G62: 187865
A63: Keven Schlotterbeck | B63: SC Freiburg | C63: Abwehrspieler | D63: 0 | E63: 3130465 | F63: 0.063 | G63: 186477
A64: Marin Pongračić | B64: Borussia Dortmund | C64: Abwehrspieler | D64: 274 | E64: 6172476 | F64: 0.031 | G64: 185535
A65: Maxence Lacroix | B65: VfL Wolfsburg | C65: Abwehrspieler | D65: 699 | E65: 23552924 | F65: 0.008 | G65: 182927
A66: Dominik Szoboszlai | B66: RB Leipzig | C66: Mittelfeldspieler | D66: 999 | E66: 21312088 | F66: 0.009 | G66: 182546
A67: Dennis Geiger | B67: TSG 1899 Hoffenheim | C67: Mittelfeldspieler | D67: 367 | E67: 6470370 | F67: 0.029 | G67: 180120
A68: Myziane Maolida | B68: Hertha BSC | C68: Stürmer | D68: 200 | E68: 6776587 | F68: 0.027 | G68: 175889
A69: Aster Vranckx | B69: VfL Wolfsburg | C69: Mittelfeldspieler | D69: 46 | E69: 803174 | F69: 0.278 | G69: 174777
A70: Rani Khedira | B70: 1. FC Union Berlin | C70: Mittelfeldspieler | D70: 522 | E70: 6765661 | F70: 0.026 | G70: 170403
A71: Atakan Karazor | B71: VfB Stuttgart | C71: Mittelfeldspieler | D71: 388 | E71: 8987092 | F71: 0.019 | G71: 169069
A72: Marcel Sabitzer | B72: FC Bayern München | C72: Mittelfeldspieler | D72: 393 | E72: 21464183 | F72: 0.008 | G72: 168678
A73: Marco Richter | B73: Hertha BSC | C73: Mittelfeldspieler | D73: 421 | E73: 5244009 | F73: 0.033 | G73: 166085
A74: Sergio Córdova | B74: FC Augsburg | C74: Stürmer | D74: -30 | E74: 2807324 | F74: 0.063 | G74: 165218
A75: Breel Embolo | B75: Borussia Mönchengladbach | C75: Stürmer | D75: 450 | E75: 15579169 | F75: 0.011 | G75: 164625
A76: Edmond Tapsoba | B76: Bayer 04 Leverkusen | C76: Abwehrspieler | D76: 1 | E76: 12438615 | F76: 0.013 | G76: 164228
A77: Stefan Lainer | B77: Borussia Mönchengladbach | C77: Abwehrspieler | D77: 103 | E77: 3014786 | F77: 0.057 | G77: 162409
A78: Ramy Bensebaini | B78: Borussia Mönchengladbach | C78: Abwehrspieler | D78: 162 | E78: 8278771 | F78: 0.02 | G78: 161817
A79: Suat Serdar | B79: Hertha BSC | C79: Mittelfeldspieler | D79: 672 | E79: 10285997 | F79: 0.015 | G79: 156455
A80: Rafael Santos Borré | B80: Eintracht Frankfurt | C80: Stürmer | D80: 295 | E80: 9430375 | F80: 0.017 | G80: 154602
A81: Wahid Faghir | B81: VfB Stuttgart | C81: Stürmer | D81: -2 | E81: 972774 | F81: 0.189 | G81: 154600
A82: Paulinho | B82: Bayer 04 Leverkusen | C82: Mittelfeldspieler | D82: 307 | E82: 7480398 | F82: 0.021 | G82: 151394
A83: Emre Can | B83: Borussia Dortmund | C83: Abwehrspieler | D83: 403 | E83: 13567962 | F83: 0.011 | G83: 147987
A84: Marc Oliver Kempf | B84: VfB Stuttgart | C84: Abwehrspieler | D84: 922 | E84: 21559430 | F84: 0.007 | G84: 143643
A85: Sebastian Rode | B85: Eintracht Frankfurt | C85: Mittelfeldspieler | D85: 0 | E85: 5819771 | F85: 0.025 | G85: 143089
A86: Andreas Luthe | B86: 1. FC Union Berlin | C86: Torhüter | D86: 724 | E86: 8880564 | F86: 0.016 | G86: 142516
A87: Julian Brandt | B87: Borussia Dortmund | C87: Mittelfeldspieler | D87: 734 | E87: 16990163 | F87: 0.008 | G87: 142202
A88: Denis Zakaria | B88: Borussia Mönchengladbach | C88: Mittelfeldspieler | D88: 787 | E88: 18728951 | F88: 0.008 | G88: 139911
A89: Silvan Widmer | B89: 1. FSV Mainz 05 | C89: Abwehrspieler | D89: 672 | E89: 7955301 | F89: 0.018 | G89: 138427
A90: Moussa Niakhaté | B90: 1. FSV Mainz 05 | C90: Abwehrspieler | D90: 569 | E90: 12206123 | F90: 0.011 | G90: 136189
A91: Dedryck Boyata | B91: Hertha BSC | C91: Abwehrspieler | D91: 466 | E91: 10080500 | F91: 0.014 | G91: 136091
A92: Carlos Gruezo | B92: FC Augsburg | C92: Mittelfeldspieler | D92: 81 | E92: 4014049 | F92: 0.035 | G92: 136008
A93: Leandro Barreiro | B93: 1. FSV Mainz 05 | C93: Mittelfeldspieler | D93: 526 | E93: 7208538 | F93: 0.019 | G93: 135576
A94: Anthony Losilla | B94: VfL Bochum | C94: Mittelfeldspieler | D94: 625 | E94: 7896151 | F94: 0.017 | G94: 133832
A95: Jesper Lindstrøm | B95: Eintracht Frankfurt | C95: Mittelfeldspieler | D95: 324 | E95: 8371594 | F95: 0.016 | G95: 133724
A96: Matthias Ginter | B96: Borussia Mönchengladbach | C96: Abwehrspieler | D96: 638 | E96: 24146789 | F96: 0.005 | G96: 128909
A97: Dayot Upamecano | B97: FC Bayern München | C97: Abwehrspieler | D97: 1056 | E97: 31589233 | F97: 0.004 | G97: 128869
A98: Konstantinos Mavropanos | B98: VfB Stuttgart | C98: Abwehrspieler | D98: 1141 | E98: 19997030 | F98: 0.006 | G98: 128151
A99: Tomas Ostrak | B99: 1. FC Köln | C99: Mittelfeldspieler | D99: 88 | E99: 624969 | F99: 0.248 | G99: 124039
A100: Eduard Löwen | B100: VfL Bochum | C100: Mittelfeldspieler | D100: 338 | E100: 5406879 | F100: 0.023 | G100: 123963
A101: Martin Hinteregger | B101: Eintracht Frankfurt | C101: Abwehrspieler | D101: 665 | E101: 20452522 | F101: 0.006 | G101: 122846
A102: Stefan Ortega Moreno | B102: Arminia Bielefeld | C102: Torhüter | D102: 745 | E102: 10633072 | F102: 0.011 | G102: 116961
A103: Lars Stindl | B103: Borussia Mönchengladbach | C103: Mittelfeldspieler | D103: 536 | E103: 21872541 | F103: 0.005 | G103: 116931
A104: Niklas Tauer | B104: 1. FSV Mainz 05 | C104: Stürmer | D104: 108 | E104: 667518 | F104: 0.21 | G104: 115800
A105: Nicolas Höfler | B105: SC Freiburg | C105: Mittelfeldspieler | D105: 668 | E105: 12767695 | F105: 0.009 | G105: 115499
A106: Manuel Akanji | B106: Borussia Dortmund | C106: Abwehrspieler | D106: 898 | E106: 24689538 | F106: 0.005 | G106: 115068
A107: Alexander Schwolow | B107: Hertha BSC | C107: Torhüter | D107: 444 | E107: 5478068 | F107: 0.021 | G107: 114068
A108: Elvis Rexhbeçaj | B108: VfL Bochum | C108: Mittelfeldspieler | D108: 414 | E108: 6110811 | F108: 0.018 | G108: 109567
A109: Thorgan Hazard | B109: Borussia Dortmund | C109: Mittelfeldspieler | D109: 415 | E109: 14637615 | F109: 0.007 | G109: 106880
A110: Evan N'Dicka | B110: Eintracht Frankfurt | C110: Abwehrspieler | D110: 490 | E110: 13463530 | F110: 0.008 | G110: 105463
A111: Serge Gnabry | B111: FC Bayern München | C111: Mittelfeldspieler | D111: 1387 | E111: 45052522 | F111: 0.002 | G111: 103577
A112: Kerem Demirbay | B112: Bayer 04 Leverkusen | C112: Mittelfeldspieler | D112: 979 | E112: 23263078 | F112: 0.004 | G112: 102991
A113: Willi Orbán | B113: RB Leipzig | C113: Abwehrspieler | D113: 897 | E113: 24500238 | F113: 0.004 | G113: 102334
A114: Danilo Soares | B114: VfL Bochum | C114: Abwehrspieler | D114: 610 | E114: 7846476 | F114: 0.013 | G114: 102050
A115: Jude Bellingham | B115: Borussia Dortmund | C115: Mittelfeldspieler | D115: 1134 | E115: 31290931 | F115: 0.003 | G115: 97502
A116: Manu Koné | B116: Borussia Mönchengladbach | C116: Mittelfeldspieler | D116: 296 | E116: 11665945 | F116: 0.008 | G116: 96988
A117: André Silva | B117: RB Leipzig | C117: Stürmer | D117: 527 | E117: 38128115 | F117: 0.003 | G117: 96919
A118: Reece Oxford | B118: FC Augsburg | C118: Abwehrspieler | D118: 795 | E118: 10323533 | F118: 0.009 | G118: 95634
A119: Donyell Malen | B119: Borussia Dortmund | C119: Stürmer | D119: 581 | E119: 26064377 | F119: 0.004 | G119: 94234
A120: Leroy Sané | B120: FC Bayern München | C120: Mittelfeldspieler | D120: 1230 | E120: 35684784 | F120: 0.003 | G120: 93704
A121: Marco Reus | B121: Borussia Dortmund | C121: Mittelfeldspieler | D121: 1244 | E121: 39913612 | F121: 0.002 | G121: 93414
A122: Filip Kostić | B122: Eintracht Frankfurt | C122: Mittelfeldspieler | D122: 763 | E122: 29931632 | F122: 0.003 | G122: 92301
A123: Jérôme Roussillon | B123: VfL Wolfsburg | C123: Abwehrspieler | D123: 423 | E123: 10668703 | F123: 0.009 | G123: 91817
A124: Erik Durm | B124: Eintracht Frankfurt | C124: Abwehrspieler | D124: 316 | E124: 6337041 | F124: 0.015 | G124: 91559
A125: Marcus Thuram | B125: Borussia Mönchengladbach | C125: Stürmer | D125: 3 | E125: 12864312 | F125: 0.007 | G125: 90934
A126: Manuel Riemann | B126: VfL Bochum | C126: Torhüter | D126: 814 | E126: 9728327 | F126: 0.009 | G126: 90006
A127: Hans Nunoo Sarpei | B127: SpVgg Greuther Fürth | C127: Mittelfeldspieler | D127: 66 | E127: 590801 | F127: 0.175 | G127: 87947
A128: Luca Netz | B128: Borussia Mönchengladbach | C128: Abwehrspieler | D128: 285 | E128: 9607396 | F128: 0.009 | G128: 87284
A129: Jonas Hofmann | B129: Borussia Mönchengladbach | C129: Mittelfeldspieler | D129: 950 | E129: 25491937 | F129: 0.003 | G129: 83271
A130: Joe Scally | B130: Borussia Mönchengladbach | C130: Abwehrspieler | D130: 740 | E130: 15472201 | F130: 0.005 | G130: 82451
A131: Lucas Höler | B131: SC Freiburg | C131: Stürmer | D131: 976 | E131: 15257750 | F131: 0.005 | G131: 81849
A132: Patrik Schick | B132: Bayer 04 Leverkusen | C132: Stürmer | D132: 1054 | E132: 32502376 | F132: 0.003 | G132: 81667
A133: Christopher Nkunku | B133: RB Leipzig | C133: Mittelfeldspieler | D133: 1293 | E133: 33210081 | F133: 0.002 | G133: 80233
A134: Jae-sung Lee | B134: 1. FSV Mainz 05 | C134: Mittelfeldspieler | D134: 213 | E134: 2175052 | F134: 0.037 | G134: 76714
A135: Salih Özcan | B135: 1. FC Köln | C135: Mittelfeldspieler | D135: 192 | E135: 5253729 | F135: 0.014 | G135: 74601
A136: Lucas Hernández | B136: FC Bayern München | C136: Abwehrspieler | D136: 660 | E136: 22631764 | F136: 0.003 | G136: 74394
A137: Jamal Musiala | B137: FC Bayern München | C137: Mittelfeldspieler | D137: 853 | E137: 25150634 | F137: 0.003 | G137: 74282
A138: Nico Schlotterbeck | B138: SC Freiburg | C138: Abwehrspieler | D138: 1148 | E138: 20600371 | F138: 0.004 | G138: 71850
A139: Robin Knoche | B139: 1. FC Union Berlin | C139: Abwehrspieler | D139: 756 | E139: 15830094 | F139: 0.004 | G139: 70257
A140: Thomas Müller | B140: FC Bayern München | C140: Mittelfeldspieler | D140: 1447 | E140: 49160948 | F140: 0.001 | G140: 69274
A141: Manuel Neuer | B141: FC Bayern München | C141: Torhüter | D141: 945 | E141: 23325409 | F141: 0.003 | G141: 68483
A142: Andrej Kramarić | B142: TSG 1899 Hoffenheim | C142: Stürmer | D142: 1291 | E142: 40437231 | F142: 0.002 | G142: 67510
A143: Florian Neuhaus | B143: Borussia Mönchengladbach | C143: Mittelfeldspieler | D143: 314 | E143: 18877922 | F143: 0.004 | G143: 66623
A144: Nico Elvedi | B144: Borussia Mönchengladbach | C144: Abwehrspieler | D144: 665 | E144: 19623955 | F144: 0.003 | G144: 64036
A145: Robert Gumny | B145: FC Augsburg | C145: Abwehrspieler | D145: 300 | E145: 3821680 | F145: 0.017 | G145: 63632
A146: Amine Adli | B146: Bayer 04 Leverkusen | C146: Stürmer | D146: 223 | E146: 10225188 | F146: 0.006 | G146: 63165
A147: Emil Forsberg | B147: RB Leipzig | C147: Mittelfeldspieler | D147: 993 | E147: 26053407 | F147: 0.002 | G147: 62813
A148: Jeremie Frimpong | B148: Bayer 04 Leverkusen | C148: Abwehrspieler | D148: 864 | E148: 17836181 | F148: 0.003 | G148: 62173
A149: Dani Olmo | B149: RB Leipzig | C149: Mittelfeldspieler | D149: 63 | E149: 23574269 | F149: 0.003 | G149: 61483
A150: Oliver Baumann | B150: TSG 1899 Hoffenheim | C150: Torhüter | D150: 763 | E150: 10080792 | F150: 0.006 | G150: 61361
A151: Niklas Süle | B151: FC Bayern München | C151: Abwehrspieler | D151: 1081 | E151: 25727064 | F151: 0.002 | G151: 61127
A152: David Raum | B152: TSG 1899 Hoffenheim | C152: Abwehrspieler | D152: 819 | E152: 14967434 | F152: 0.004 | G152: 59828
A153: Jonathan Tah | B153: Bayer 04 Leverkusen | C153: Abwehrspieler | D153: 876 | E153: 20705634 | F153: 0.003 | G153: 58711
A154: Diadié Samassékou | B154: TSG 1899 Hoffenheim | C154: Mittelfeldspieler | D154: 341 | E154: 8437118 | F154: 0.007 | G154: 58173
A155: Mats Hummels | B155: Borussia Dortmund | C155: Abwehrspieler | D155: 695 | E155: 28963544 | F155: 0.002 | G155: 56966
A156: Tyler Adams | B156: RB Leipzig | C156: Mittelfeldspieler | D156: 322 | E156: 10963869 | F156: 0.005 | G156: 56888
A157: Philipp Lienhart | B157: SC Freiburg | C157: Abwehrspieler | D157: 1148 | E157: 19134450 | F157: 0.003 | G157: 55910
A158: Gregor Kobel | B158: Borussia Dortmund | C158: Torhüter | D158: 686 | E158: 14356603 | F158: 0.004 | G158: 55498
A159: Kevin Kampl | B159: RB Leipzig | C159: Mittelfeldspieler | D159: 570 | E159: 15103206 | F159: 0.004 | G159: 55270
A160: Paulo Otávio | B160: VfL Wolfsburg | C160: Abwehrspieler | D160: 22 | E160: 6895953 | F160: 0.008 | G160: 53688
A161: Florian Wirtz | B161: Bayer 04 Leverkusen | C161: Mittelfeldspieler | D161: 1243 | E161: 33402284 | F161: 0.002 | G161: 51409
A162: Max Kruse | B162: 1. FC Union Berlin | C162: Stürmer | D162: 864 | E162: 29793652 | F162: 0.002 | G162: 51339
A163: Kevin Mbabu | B163: VfL Wolfsburg | C163: Abwehrspieler | D163: 650 | E163: 14943535 | F163: 0.003 | G163: 50664
A164: Lukáš Hrádecký | B164: Bayer 04 Leverkusen | C164: Torhüter | D164: 952 | E164: 18003670 | F164: 0.003 | G164: 50606
A165: Julian Ryerson | B165: 1. FC Union Berlin | C165: Abwehrspieler | D165: 318 | E165: 5801484 | F165: 0.009 | G165: 50499
A166: Christian Günter | B166: SC Freiburg | C166: Abwehrspieler | D166: 886 | E166: 19564412 | F166: 0.003 | G166: 50383
A167: Josuha Guilavogui | B167: VfL Wolfsburg | C167: Mittelfeldspieler | D167: 498 | E167: 6974077 | F167: 0.007 | G167: 49390
A168: Felix Passlack | B168: Borussia Dortmund | C168: Abwehrspieler | D168: 124 | E168: 1004835 | F168: 0.051 | G168: 48932
A169: Marius Wolf | B169: Borussia Dortmund | C169: Mittelfeldspieler | D169: 272 | E169: 4620154 | F169: 0.01 | G169: 44812
A170: Joško Gvardiol | B170: RB Leipzig | C170: Abwehrspieler | D170: 772 | E170: 15738823 | F170: 0.003 | G170: 44678
A171: Timothy Fosu-Mensah | B171: Bayer 04 Leverkusen | C171: Abwehrspieler | D171: 0 | E171: 910472 | F171: 0.051 | G171: 44327
A172: Florian Grillitsch | B172: TSG 1899 Hoffenheim | C172: Mittelfeldspieler | D172: 437 | E172: 11327462 | F172: 0.004 | G172: 43743
A173: Djibril Sow | B173: Eintracht Frankfurt | C173: Mittelfeldspieler | D173: 614 | E173: 13527397 | F173: 0.003 | G173: 43230
A174: Márton Dárdai | B174: Hertha BSC | C174: Abwehrspieler | D174: 372 | E174: 4046172 | F174: 0.01 | G174: 40427
A175: Cédric Brunner | B175: Arminia Bielefeld | C175: Abwehrspieler | D175: 473 | E175: 6288703 | F175: 0.006 | G175: 37223
A176: Sheraldo Becker | B176: 1. FC Union Berlin | C176: Stürmer | D176: 192 | E176: 5426175 | F176: 0.007 | G176: 35869
A177: Chris Richards | B177: TSG 1899 Hoffenheim | C177: Abwehrspieler | D177: 583 | E177: 12035317 | F177: 0.003 | G177: 34814
A178: Omar Richards | B178: FC Bayern München | C178: Abwehrspieler | D178: 279 | E178: 3496588 | F178: 0.01 | G178: 33125
A179: Vincenzo Grifo | B179: SC Freiburg | C179: Mittelfeldspieler | D179: 987 | E179: 25954661 | F179: 0.001 | G179: 28415
A180: Odilon Kossounou | B180: Bayer 04 Leverkusen | C180: Abwehrspieler | D180: 649 | E180: 16418070 | F180: 0.002 | G180: 27728
A181: Tanguy Coulibaly | B181: VfB Stuttgart | C181: Mittelfeldspieler | D181: 232 | E181: 7929806 | F181: 0.003 | G181: 23536
A182: Benno Schmitz | B182: 1. FC Köln | C182: Abwehrspieler | D182: 678 | E182: 12727451 | F182: 0.002 | G182: 22336
A183: Moussa Diaby | B183: Bayer 04 Leverkusen | C183: Stürmer | D183: 998 | E183: 33616513 | F183: 0.001 | G183: 20414
A184: Joshua Kimmich | B184: FC Bayern München | C184: Mittelfeldspieler | D184: 1845 | E184: 54129912 | F184: 0 | G184: 20181
A185: Kevin Trapp | B185: Eintracht Frankfurt | C185: Torhüter | D185: 557 | E185: 11459674 | F185: 0.002 | G185: 19204
A186: Borna Sosa | B186: VfB Stuttgart | C186: Abwehrspieler | D186: 689 | E186: 17573762 | F186: 0.001 | G186: 16516
A187: Nordi Mukiele | B187: RB Leipzig | C187: Abwehrspieler | D187: 455 | E187: 12154778 | F187: 0.001 | G187: 15328
A188: Robert Lewandowski | B188: FC Bayern München | C188: Stürmer | D188: 1802 | E188: 63069004 | F188: 0 | G188: 14965
A189: Maximilian Arnold | B189: VfL Wolfsburg | C189: Mittelfeldspieler | D189: 831 | E189: 26899679 | F189: 0.001 | G189: 14335
A190: Yann Sommer | B190: Borussia Mönchengladbach | C190: Torhüter | D190: 596 | E190: 12949659 | F190: 0.001 | G190: 13972
A191: Marius Funk | B191: SpVgg Greuther Fürth | C191: Torhüter | D191: 180 | E191: 6350756 | F191: 0.002 | G191: 12189
A192: Armel Bella-Kotchap | B192: VfL Bochum | C192: Abwehrspieler | D192: 342 | E192: 6848242 | F192: 0.001 | G192: 8628
A193: Chris Führich | B193: VfB Stuttgart | C193: Mittelfeldspieler | D193: 198 | E193: 7244634 | F193: 0.001 | G193: 5142
A194: Youssoufa Moukoko | B194: Borussia Dortmund | C194: Stürmer | D194: 38 | E194: 5543609 | F194: 0.001 | G194: 3157
A195: Leon Goretzka | B195: FC Bayern München | C195: Mittelfeldspieler | D195: 1194 | E195: 43274279 | F195: 0 | G195: 2018
A196: Robert Skov | B196: TSG 1899 Hoffenheim | C196: Mittelfeldspieler | D196: 50 | E196: 662520 | F196: -0.001 | G196: -922
A197: Julian Green | B197: SpVgg Greuther Fürth | C197: Mittelfeldspieler | D197: 120 | E197: 500000 | F197: -0.003 | G197: -1589
A198: Jordan Torunarigha | B198: Hertha BSC | C198: Abwehrspieler | D198: 47 | E198: 2704661 | F198: -0.001 | G198: -3502
A199: Iago | B199: FC Augsburg | C199: Abwehrspieler | D199: 218 | E199: 5087977 | F199: -0.001 | G199: -7089
A200: Joakim Nilsson | B200: Arminia Bielefeld | C200: Abwehrspieler | D200: 541 | E200: 4611517 | F200: -0.002 | G200: -8655
... 179 more rows

Sheet Marktwertgewinner
A1: Spieler | B1: Verein | C1: Position | D1: Punkte Gesamt | E1: Marktwert | F1: Wachstum | G1: Differenz
A2: Linus Gechter | B2: Hertha BSC | C2: Abwehrspieler | D2: 141 | E2: 1914204 | F2: 0.343 | G2: 489079
A3: Kiliann Sildillia | B3: SC Freiburg | C3: Abwehrspieler | D3: 63 | E3: 3557765 | F3: 0.154 | G3: 474279
A4: Jonathan Burkardt | B4: 1. FSV Mainz 05 | C4: Stürmer | D4: 758 | E4: 8882540 | F4: 0.051 | G4: 432177
A5: Karim Onisiwo | B5: 1. FSV Mainz 05 | C5: Stürmer | D5: 566 | E5: 5214397 | F5: 0.088 | G5: 422748
A6: Kevin Möhwald | B6: 1. FC Union Berlin | C6: Mittelfeldspieler | D6: 39 | E6: 3648974 | F6: 0.117 | G6: 382002
A7: Janni Serra | B7: Arminia Bielefeld | C7: Stürmer | D7: 37 | E7: 1617862 | F7: 0.301 | G7: 374176
A8: Peter Pekarík | B8: Hertha BSC | C8: Abwehrspieler | D8: 273 | E8: 3774008 | F8: 0.109 | G8: 369917
A9: Dominik Kohr | B9: 1. FSV Mainz 05 | C9: Mittelfeldspieler | D9: 425 | E9: 5299574 | F9: 0.075 | G9: 369009
A10: Vasilios Lampropoulos | B10: VfL Bochum | C10: Abwehrspieler | D10: 329 | E10: 4706076 | F10: 0.083 | G10: 361358
A11: Aarón | B11: 1. FSV Mainz 05 | C11: Abwehrspieler | D11: 332 | E11: 1643103 | F11: 0.269 | G11: 348344
A12: Kevin Akpoguma | B12: TSG 1899 Hoffenheim | C12: Abwehrspieler | D12: 487 | E12: 9833929 | F12: 0.036 | G12: 342051
A13: Jacob Laursen | B13: Arminia Bielefeld | C13: Abwehrspieler | D13: 495 | E13: 4975382 | F13: 0.074 | G13: 340719
A14: Miloš Pantović | B14: VfL Bochum | C14: Mittelfeldspieler | D14: 167 | E14: 3180080 | F14: 0.115 | G14: 327943
A15: Alfreð Finnbogason | B15: FC Augsburg | C15: Stürmer | D15: 5 | E15: 3034885 | F15: 0.12 | G15: 326016
A16: Genki Haraguchi | B16: 1. FC Union Berlin | C16: Mittelfeldspieler | D16: 408 | E16: 5123997 | F16: 0.068 | G16: 325722
A17: Andi Zeqiri | B17: FC Augsburg | C17: Stürmer | D17: 249 | E17: 6338510 | F17: 0.053 | G17: 317253
A18: Alexander Hack | B18: 1. FSV Mainz 05 | C18: Abwehrspieler | D18: 434 | E18: 4839556 | F18: 0.07 | G18: 315548
A19: Makoto Hasebe | B19: Eintracht Frankfurt | C19: Abwehrspieler | D19: 36 | E19: 3961354 | F19: 0.086 | G19: 314028
A20: Timo Baumgartl | B20: 1. FC Union Berlin | C20: Abwehrspieler | D20: 301 | E20: 6606108 | F20: 0.049 | G20: 308027
A21: Jurgen Ekkelenkamp | B21: Hertha BSC | C21: Mittelfeldspieler | D21: 294 | E21: 6838503 | F21: 0.047 | G21: 304044
A22: Stefan Posch | B22: TSG 1899 Hoffenheim | C22: Abwehrspieler | D22: 487 | E22: 6971887 | F22: 0.045 | G22: 302827
A23: Robert Andrich | B23: Bayer 04 Leverkusen | C23: Mittelfeldspieler | D23: 230 | E23: 6760398 | F23: 0.046 | G23: 298587
A24: Daniel Caligiuri | B24: FC Augsburg | C24: Mittelfeldspieler | D24: 565 | E24: 8201403 | F24: 0.038 | G24: 298501
A25: Exequiel Palacios | B25: Bayer 04 Leverkusen | C25: Mittelfeldspieler | D25: 254 | E25: 8474100 | F25: 0.036 | G25: 293874
A26: Daichi Kamada | B26: Eintracht Frankfurt | C26: Mittelfeldspieler | D26: 250 | E26: 9271216 | F26: 0.033 | G26: 292453
A27: Fabian Kunze | B27: Arminia Bielefeld | C27: Mittelfeldspieler | D27: 248 | E27: 1656749 | F27: 0.214 | G27: 291539
A28: Tobias Strobl | B28: FC Augsburg | C28: Mittelfeldspieler | D28: 90 | E28: 1399635 | F28: 0.261 | G28: 289456
A29: Konrad Laimer | B29: RB Leipzig | C29: Mittelfeldspieler | D29: 242 | E29: 6684428 | F29: 0.043 | G29: 275875
A30: Niklas Stark | B30: Hertha BSC | C30: Abwehrspieler | D30: 430 | E30: 7434155 | F30: 0.038 | G30: 272822
A31: Josip Stanišić | B31: FC Bayern München | C31: Abwehrspieler | D31: 460 | E31: 8801824 | F31: 0.032 | G31: 270676
A32: Taiwo Awoniyi | B32: 1. FC Union Berlin | C32: Stürmer | D32: 928 | E32: 18597989 | F32: 0.014 | G32: 260855
A33: Cristian Gamboa | B33: VfL Bochum | C33: Abwehrspieler | D33: 187 | E33: 3378759 | F33: 0.083 | G33: 260002
A34: Mohamed Simakan | B34: RB Leipzig | C34: Abwehrspieler | D34: 789 | E34: 16797573 | F34: 0.015 | G34: 256035
A35: Benjamin Pavard | B35: FC Bayern München | C35: Abwehrspieler | D35: 186 | E35: 15963508 | F35: 0.016 | G35: 251855
A36: Maximilian Mittelstädt | B36: Hertha BSC | C36: Abwehrspieler | D36: 314 | E36: 5399355 | F36: 0.049 | G36: 251100
A37: Vladimír Darida | B37: Hertha BSC | C37: Mittelfeldspieler | D37: 323 | E37: 6046474 | F37: 0.043 | G37: 249808
A38: Gonçalo Paciência | B38: Eintracht Frankfurt | C38: Stürmer | D38: 152 | E38: 5234475 | F38: 0.05 | G38: 249685
A39: Santiago Ascacibar | B39: Hertha BSC | C39: Mittelfeldspieler | D39: 281 | E39: 2557883 | F39: 0.108 | G39: 249261
A40: Jean-Paul Boëtius | B40: 1. FSV Mainz 05 | C40: Mittelfeldspieler | D40: 476 | E40: 5822484 | F40: 0.045 | G40: 248562
A41: Ihlas Bebou | B41: TSG 1899 Hoffenheim | C41: Stürmer | D41: 367 | E41: 11383859 | F41: 0.022 | G41: 245009
A42: Kristijan Jakić | B42: Eintracht Frankfurt | C42: Mittelfeldspieler | D42: 257 | E42: 6571091 | F42: 0.038 | G42: 240773
A43: Jeffrey Gouweleeuw | B43: FC Augsburg | C43: Abwehrspieler | D43: 364 | E43: 6256055 | F43: 0.04 | G43: 239886
A44: André Hahn | B44: FC Augsburg | C44: Stürmer | D44: 341 | E44: 4622339 | F44: 0.054 | G44: 238256
A45: Fabian Bredlow | B45: VfB Stuttgart | C45: Torhüter | D45: 92 | E45: 4428107 | F45: 0.056 | G45: 233806
A46: Kingsley Coman | B46: FC Bayern München | C46: Mittelfeldspieler | D46: 270 | E46: 23291574 | F46: 0.01 | G46: 231769
A47: Woo-yeong Jeong | B47: SC Freiburg | C47: Mittelfeldspieler | D47: 734 | E47: 9642592 | F47: 0.024 | G47: 228449
A48: Orel Mangala | B48: VfB Stuttgart | C48: Mittelfeldspieler | D48: 226 | E48: 7427768 | F48: 0.031 | G48: 226373
A49: Silas | B49: VfB Stuttgart | C49: Mittelfeldspieler | D49: 0 | E49: 9932247 | F49: 0.023 | G49: 223897
A50: Jonathan Schmid | B50: SC Freiburg | C50: Abwehrspieler | D50: 162 | E50: 6209881 | F50: 0.037 | G50: 223643
A51: Nadiem Amiri | B51: Bayer 04 Leverkusen | C51: Mittelfeldspieler | D51: 326 | E51: 7816757 | F51: 0.029 | G51: 218801
A52: Corentin Tolisso | B52: FC Bayern München | C52: Mittelfeldspieler | D52: 49 | E52: 2548458 | F52: 0.093 | G52: 217659
A53: Daniel Didavi | B53: VfB Stuttgart | C53: Mittelfeldspieler | D53: 91 | E53: 988683 | F53: 0.278 | G53: 215346
A54: Stefan Bell | B54: 1. FSV Mainz 05 | C54: Abwehrspieler | D54: 829 | E54: 8685513 | F54: 0.025 | G54: 213566
A55: Lukas Nmecha | B55: VfL Wolfsburg | C55: Stürmer | D55: 415 | E55: 12236517 | F55: 0.018 | G55: 213489
A56: Sebastian Vasiliadis | B56: Arminia Bielefeld | C56: Mittelfeldspieler | D56: 0 | E56: 3451305 | F56: 0.066 | G56: 212867
A57: Mateu Morey | B57: Borussia Dortmund | C57: Abwehrspieler | D57: 0 | E57: 3446225 | F57: 0.063 | G57: 202819
A58: Steffen Tigges | B58: Borussia Dortmund | C58: Stürmer | D58: 51 | E58: 705930 | F58: 0.401 | G58: 202225
A59: Marvin Plattenhardt | B59: Hertha BSC | C59: Abwehrspieler | D59: 358 | E59: 5189597 | F59: 0.04 | G59: 199137
A60: Mahmoud Dahoud | B60: Borussia Dortmund | C60: Mittelfeldspieler | D60: 411 | E60: 14018572 | F60: 0.014 | G60: 192837
A61: Alassane Pléa | B61: Borussia Mönchengladbach | C61: Stürmer | D61: 436 | E61: 15734342 | F61: 0.012 | G61: 191624
A62: Jordan Beyer | B62: Borussia Mönchengladbach | C62: Abwehrspieler | D62: 486 | E62: 11846667 | F62: 0.016 | G62: 187865
A63: Keven Schlotterbeck | B63: SC Freiburg | C63: Abwehrspieler | D63: 0 | E63: 3130465 | F63: 0.063 | G63: 186477
A64: Marin Pongračić | B64: Borussia Dortmund | C64: Abwehrspieler | D64: 274 | E64: 6172476 | F64: 0.031 | G64: 185535
A65: Maxence Lacroix | B65: VfL Wolfsburg | C65: Abwehrspieler | D65: 699 | E65: 23552924 | F65: 0.008 | G65: 182927
A66: Dominik Szoboszlai | B66: RB Leipzig | C66: Mittelfeldspieler | D66: 999 | E66: 21312088 | F66: 0.009 | G66: 182546
A67: Dennis Geiger | B67: TSG 1899 Hoffenheim | C67: Mittelfeldspieler | D67: 367 | E67: 6470370 | F67: 0.029 | G67: 180120
A68: Myziane Maolida | B68: Hertha BSC | C68: Stürmer | D68: 200 | E68: 6776587 | F68: 0.027 | G68: 175889
A69: Aster Vranckx | B69: VfL Wolfsburg | C69: Mittelfeldspieler | D69: 46 | E69: 803174 | F69: 0.278 | G69: 174777
A70: Rani Khedira | B70: 1. FC Union Berlin | C70: Mittelfeldspieler | D70: 522 | E70: 6765661 | F70: 0.026 | G70: 170403
A71: Atakan Karazor | B71: VfB Stuttgart | C71: Mittelfeldspieler | D71: 388 | E71: 8987092 | F71: 0.019 | G71: 169069
A72: Marcel Sabitzer | B72: FC Bayern München | C72: Mittelfeldspieler | D72: 393 | E72: 21464183 | F72: 0.008 | G72: 168678
A73: Marco Richter | B73: Hertha BSC | C73: Mittelfeldspieler | D73: 421 | E73: 5244009 | F73: 0.033 | G73: 166085
A74: Sergio Córdova | B74: FC Augsburg | C74: Stürmer | D74: -30 | E74: 2807324 | F74: 0.063 | G74: 165218
A75: Breel Embolo | B75: Borussia Mönchengladbach | C75: Stürmer | D75: 450 | E75: 15579169 | F75: 0.011 | G75: 164625
A76: Edmond Tapsoba | B76: Bayer 04 Leverkusen | C76: Abwehrspieler | D76: 1 | E76: 12438615 | F76: 0.013 | G76: 164228
A77: Stefan Lainer | B77: Borussia Mönchengladbach | C77: Abwehrspieler | D77: 103 | E77: 3014786 | F77: 0.057 | G77: 162409
A78: Ramy Bensebaini | B78: Borussia Mönchengladbach | C78: Abwehrspieler | D78: 162 | E78: 8278771 | F78: 0.02 | G78: 161817
A79: Suat Serdar | B79: Hertha BSC | C79: Mittelfeldspieler | D79: 672 | E79: 10285997 | F79: 0.015 | G79: 156455
A80: Rafael Santos Borré | B80: Eintracht Frankfurt | C80: Stürmer | D80: 295 | E80: 9430375 | F80: 0.017 | G80: 154602
A81: Wahid Faghir | B81: VfB Stuttgart | C81: Stürmer | D81: -2 | E81: 972774 | F81: 0.189 | G81: 154600
A82: Paulinho | B82: Bayer 04 Leverkusen | C82: Mittelfeldspieler | D82: 307 | E82: 7480398 | F82: 0.021 | G82: 151394
A83: Emre Can | B83: Borussia Dortmund | C83: Abwehrspieler | D83: 403 | E83: 13567962 | F83: 0.011 | G83: 147987
A84: Marc Oliver Kempf | B84: VfB Stuttgart | C84: Abwehrspieler | D84: 922 | E84: 21559430 | F84: 0.007 | G84: 143643
A85: Sebastian Rode | B85: Eintracht Frankfurt | C85: Mittelfeldspieler | D85: 0 | E85: 5819771 | F85: 0.025 | G85: 143089
A86: Andreas Luthe | B86: 1. FC Union Berlin | C86: Torhüter | D86: 724 | E86: 8880564 | F86: 0.016 | G86: 142516
A87: Julian Brandt | B87: Borussia Dortmund | C87: Mittelfeldspieler | D87: 734 | E87: 16990163 | F87: 0.008 | G87: 142202
A88: Denis Zakaria | B88: Borussia Mönchengladbach | C88: Mittelfeldspieler | D88: 787 | E88: 18728951 | F88: 0.008 | G88: 139911
A89: Silvan Widmer | B89: 1. FSV Mainz 05 | C89: Abwehrspieler | D89: 672 | E89: 7955301 | F89: 0.018 | G89: 138427
A90: Moussa Niakhaté | B90: 1. FSV Mainz 05 | C90: Abwehrspieler | D90: 569 | E90: 12206123 | F90: 0.011 | G90: 136189
A91: Dedryck Boyata | B91: Hertha BSC | C91: Abwehrspieler | D91: 466 | E91: 10080500 | F91: 0.014 | G91: 136091
A92: Carlos Gruezo | B92: FC Augsburg | C92: Mittelfeldspieler | D92: 81 | E92: 4014049 | F92: 0.035 | G92: 136008
A93: Leandro Barreiro | B93: 1. FSV Mainz 05 | C93: Mittelfeldspieler | D93: 526 | E93: 7208538 | F93: 0.019 | G93: 135576
A94: Anthony Losilla | B94: VfL Bochum | C94: Mittelfeldspieler | D94: 625 | E94: 7896151 | F94: 0.017 | G94: 133832
A95: Jesper Lindstrøm | B95: Eintracht Frankfurt | C95: Mittelfeldspieler | D95: 324 | E95: 8371594 | F95: 0.016 | G95: 133724
A96: Matthias Ginter | B96: Borussia Mönchengladbach | C96: Abwehrspieler | D96: 638 | E96: 24146789 | F96: 0.005 | G96: 128909
A97: Dayot Upamecano | B97: FC Bayern München | C97: Abwehrspieler | D97: 1056 | E97: 31589233 | F97: 0.004 | G97: 128869
A98: Konstantinos Mavropanos | B98: VfB Stuttgart | C98: Abwehrspieler | D98: 1141 | E98: 19997030 | F98: 0.006 | G98: 128151
A99: Tomas Ostrak | B99: 1. FC Köln | C99: Mittelfeldspieler | D99: 88 | E99: 624969 | F99: 0.248 | G99: 124039
A100: Eduard Löwen | B100: VfL Bochum | C100: Mittelfeldspieler | D100: 338 | E100: 5406879 | F100: 0.023 | G100: 123963
A101: Martin Hinteregger | B101: Eintracht Frankfurt | C101: Abwehrspieler | D101: 665 | E101: 20452522 | F101: 0.006 | G101: 122846
A102: Stefan Ortega Moreno | B102: Arminia Bielefeld | C102: Torhüter | D102: 745 | E102: 10633072 | F102: 0.011 | G102: 116961
A103: Lars Stindl | B103: Borussia Mönchengladbach | C103: Mittelfeldspieler | D103: 536 | E103: 21872541 | F103: 0.005 | G103: 116931
A104: Niklas Tauer | B104: 1. FSV Mainz 05 | C104: Stürmer | D104: 108 | E104: 667518 | F104: 0.21 | G104: 115800
A105: Nicolas Höfler | B105: SC Freiburg | C105: Mittelfeldspieler | D105: 668 | E105: 12767695 | F105: 0.009 | G105: 115499
A106: Manuel Akanji | B106: Borussia Dortmund | C106: Abwehrspieler | D106: 898 | E106: 24689538 | F106: 0.005 | G106: 115068
A107: Alexander Schwolow | B107: Hertha BSC | C107: Torhüter | D107: 444 | E107: 5478068 | F107: 0.021 | G107: 114068
A108: Elvis Rexhbeçaj | B108: VfL Bochum | C108: Mittelfeldspieler | D108: 414 | E108: 6110811 | F108: 0.018 | G108: 109567
A109: Thorgan Hazard | B109: Borussia Dortmund | C109: Mittelfeldspieler | D109: 415 | E109: 14637615 | F109: 0.007 | G109: 106880
A110: Evan N'Dicka | B110: Eintracht Frankfurt | C110: Abwehrspieler | D110: 490 | E110: 13463530 | F110: 0.008 | G110: 105463
A111: Serge Gnabry | B111: FC Bayern München | C111: Mittelfeldspieler | D111: 1387 | E111: 45052522 | F111: 0.002 | G111: 103577
A112: Kerem Demirbay | B112: Bayer 04 Leverkusen | C112: Mittelfeldspieler | D112: 979 | E112: 23263078 | F112: 0.004 | G112: 102991
A113: Willi Orbán | B113: RB Leipzig | C113: Abwehrspieler | D113: 897 | E113: 24500238 | F113: 0.004 | G113: 102334
A114: Danilo Soares | B114: VfL Bochum | C114: Abwehrspieler | D114: 610 | E114: 7846476 | F114: 0.013 | G114: 102050
A115: Jude Bellingham | B115: Borussia Dortmund | C115: Mittelfeldspieler | D115: 1134 | E115: 31290931 | F115: 0.003 | G115: 97502
A116: Manu Koné | B116: Borussia Mönchengladbach | C116: Mittelfeldspieler | D116: 296 | E116: 11665945 | F116: 0.008 | G116: 96988
A117: André Silva | B117: RB Leipzig | C117: Stürmer | D117: 527 | E117: 38128115 | F117: 0.003 | G117: 96919
A118: Reece Oxford | B118: FC Augsburg | C118: Abwehrspieler | D118: 795 | E118: 10323533 | F118: 0.009 | G118: 95634
A119: Donyell Malen | B119: Borussia Dortmund | C119: Stürmer | D119: 581 | E119: 26064377 | F119: 0.004 | G119: 94234
A120: Leroy Sané | B120: FC Bayern München | C120: Mittelfeldspieler | D120: 1230 | E120: 35684784 | F120: 0.003 | G120: 93704
A121: Marco Reus | B121: Borussia Dortmund | C121: Mittelfeldspieler | D121: 1244 | E121: 39913612 | F121: 0.002 | G121: 93414
A122: Filip Kostić | B122: Eintracht Frankfurt | C122: Mittelfeldspieler | D122: 763 | E122: 29931632 | F122: 0.003 | G122: 92301
A123: Jérôme Roussillon | B123: VfL Wolfsburg | C123: Abwehrspieler | D123: 423 | E123: 10668703 | F123: 0.009 | G123: 91817
A124: Erik Durm | B124: Eintracht Frankfurt | C124: Abwehrspieler | D124: 316 | E124: 6337041 | F124: 0.015 | G124: 91559
A125: Marcus Thuram | B125: Borussia Mönchengladbach | C125: Stürmer | D125: 3 | E125: 12864312 | F125: 0.007 | G125: 90934
A126: Manuel Riemann | B126: VfL Bochum | C126: Torhüter | D126: 814 | E126: 9728327 | F126: 0.009 | G126: 90006
A127: Hans Nunoo Sarpei | B127: SpVgg Greuther Fürth | C127: Mittelfeldspieler | D127: 66 | E127: 590801 | F127: 0.175 | G127: 87947
A128: Luca Netz | B128: Borussia Mönchengladbach | C128: Abwehrspieler | D128: 285 | E128: 9607396 | F128: 0.009 | G128: 87284
A129: Jonas Hofmann | B129: Borussia Mönchengladbach | C129: Mittelfeldspieler | D129: 950 | E129: 25491937 | F129: 0.003 | G129: 83271
A130: Joe Scally | B130: Borussia Mönchengladbach | C130: Abwehrspieler | D130: 740 | E130: 15472201 | F130: 0.005 | G130: 82451
A131: Lucas Höler | B131: SC Freiburg | C131: Stürmer | D131: 976 | E131: 15257750 | F131: 0.005 | G131: 81849
A132: Patrik Schick | B132: Bayer 04 Leverkusen | C132: Stürmer | D132: 1054 | E132: 32502376 | F132: 0.003 | G132: 81667
A133: Christopher Nkunku | B133: RB Leipzig | C133: Mittelfeldspieler | D133: 1293 | E133: 33210081 | F133: 0.002 | G133: 80233
A134: Jae-sung Lee | B134: 1. FSV Mainz 05 | C134: Mittelfeldspieler | D134: 213 | E134: 2175052 | F134: 0.037 | G134: 76714
A135: Salih Özcan | B135: 1. FC Köln | C135: Mittelfeldspieler | D135: 192 | E135: 5253729 | F135: 0.014 | G135: 74601
A136: Lucas Hernández | B136: FC Bayern München | C136: Abwehrspieler | D136: 660 | E136: 22631764 | F136: 0.003 | G136: 74394
A137: Jamal Musiala | B137: FC Bayern München | C137: Mittelfeldspieler | D137: 853 | E137: 25150634 | F137: 0.003 | G137: 74282
A138: Nico Schlotterbeck | B138: SC Freiburg | C138: Abwehrspieler | D138: 1148 | E138: 20600371 | F138: 0.004 | G138: 71850
A139: Robin Knoche | B139: 1. FC Union Berlin | C139: Abwehrspieler | D139: 756 | E139: 15830094 | F139: 0.004 | G139: 70257
A140: Thomas Müller | B140: FC Bayern München | C140: Mittelfeldspieler | D140: 1447 | E140: 49160948 | F140: 0.001 | G140: 69274
A141: Manuel Neuer | B141: FC Bayern München | C141: Torhüter | D141: 945 | E141: 23325409 | F141: 0.003 | G141: 68483
A142: Andrej Kramarić | B142: TSG 1899 Hoffenheim | C142: Stürmer | D142: 1291 | E142: 40437231 | F142: 0.002 | G142: 67510
A143: Florian Neuhaus | B143: Borussia Mönchengladbach | C143: Mittelfeldspieler | D143: 314 | E143: 18877922 | F143: 0.004 | G143: 66623
A144: Nico Elvedi | B144: Borussia Mönchengladbach | C144: Abwehrspieler | D144: 665 | E144: 19623955 | F144: 0.003 | G144: 64036
A145: Robert Gumny | B145: FC Augsburg | C145: Abwehrspieler | D145: 300 | E145: 3821680 | F145: 0.017 | G145: 63632
A146: Amine Adli | B146: Bayer 04 Leverkusen | C146: Stürmer | D146: 223 | E146: 10225188 | F146: 0.006 | G146: 63165
A147: Emil Forsberg | B147: RB Leipzig | C147: Mittelfeldspieler | D147: 993 | E147: 26053407 | F147: 0.002 | G147: 62813
A148: Jeremie Frimpong | B148: Bayer 04 Leverkusen | C148: Abwehrspieler | D148: 864 | E148: 17836181 | F148: 0.003 | G148: 62173
A149: Dani Olmo | B149: RB Leipzig | C149: Mittelfeldspieler | D149: 63 | E149: 23574269 | F149: 0.003 | G149: 61483
A150: Oliver Baumann | B150: TSG 1899 Hoffenheim | C150: Torhüter | D150: 763 | E150: 10080792 | F150: 0.006 | G150: 61361
A151: Niklas Süle | B151: FC Bayern München | C151: Abwehrspieler | D151: 1081 | E151: 25727064 | F151: 0.002 | G151: 61127
A152: David Raum | B152: TSG 1899 Hoffenheim | C152: Abwehrspieler | D152: 819 | E152: 14967434 | F152: 0.004 | G152: 59828
A153: Jonathan Tah | B153: Bayer 04 Leverkusen | C153: Abwehrspieler | D153: 876 | E153: 20705634 | F153: 0.003 | G153: 58711
A154: Diadié Samassékou | B154: TSG 1899 Hoffenheim | C154: Mittelfeldspieler | D154: 341 | E154: 8437118 | F154: 0.007 | G154: 58173
A155: Mats Hummels | B155: Borussia Dortmund | C155: Abwehrspieler | D155: 695 | E155: 28963544 | F155: 0.002 | G155: 56966
A156: Tyler Adams | B156: RB Leipzig | C156: Mittelfeldspieler | D156: 322 | E156: 10963869 | F156: 0.005 | G156: 56888
A157: Philipp Lienhart | B157: SC Freiburg | C157: Abwehrspieler | D157: 1148 | E157: 19134450 | F157: 0.003 | G157: 55910
A158: Gregor Kobel | B158: Borussia Dortmund | C158: Torhüter | D158: 686 | E158: 14356603 | F158: 0.004 | G158: 55498
A159: Kevin Kampl | B159: RB Leipzig | C159: Mittelfeldspieler | D159: 570 | E159: 15103206 | F159: 0.004 | G159: 55270
A160: Paulo Otávio | B160: VfL Wolfsburg | C160: Abwehrspieler | D160: 22 | E160: 6895953 | F160: 0.008 | G160: 53688
A161: Florian Wirtz | B161: Bayer 04 Leverkusen | C161: Mittelfeldspieler | D161: 1243 | E161: 33402284 | F161: 0.002 | G161: 51409
A162: Max Kruse | B162: 1. FC Union Berlin | C162: Stürmer | D162: 864 | E162: 29793652 | F162: 0.002 | G162: 51339
A163: Kevin Mbabu | B163: VfL Wolfsburg | C163: Abwehrspieler | D163: 650 | E163: 14943535 | F163: 0.003 | G163: 50664
A164: Lukáš Hrádecký | B164: Bayer 04 Leverkusen | C164: Torhüter | D164: 952 | E164: 18003670 | F164: 0.003 | G164: 50606
A165: Julian Ryerson | B165: 1. FC Union Berlin | C165: Abwehrspieler | D165: 318 | E165: 5801484 | F165: 0.009 | G165: 50499
A166: Christian Günter | B166: SC Freiburg | C166: Abwehrspieler | D166: 886 | E166: 19564412 | F166: 0.003 | G166: 50383
A167: Josuha Guilavogui | B167: VfL Wolfsburg | C167: Mittelfeldspieler | D167: 498 | E167: 6974077 | F167: 0.007 | G167: 49390
A168: Felix Passlack | B168: Borussia Dortmund | C168: Abwehrspieler | D168: 124 | E168: 1004835 | F168: 0.051 | G168: 48932
A169: Marius Wolf | B169: Borussia Dortmund | C169: Mittelfeldspieler | D169: 272 | E169: 4620154 | F169: 0.01 | G169: 44812
A170: Joško Gvardiol | B170: RB Leipzig | C170: Abwehrspieler | D170: 772 | E170: 15738823 | F170: 0.003 | G170: 44678
A171: Timothy Fosu-Mensah | B171: Bayer 04 Leverkusen | C171: Abwehrspieler | D171: 0 | E171: 910472 | F171: 0.051 | G171: 44327
A172: Florian Grillitsch | B172: TSG 1899 Hoffenheim | C172: Mittelfeldspieler | D172: 437 | E172: 11327462 | F172: 0.004 | G172: 43743
A173: Djibril Sow | B173: Eintracht Frankfurt | C173: Mittelfeldspieler | D173: 614 | E173: 13527397 | F173: 0.003 | G173: 43230
A174: Márton Dárdai | B174: Hertha BSC | C174: Abwehrspieler | D174: 372 | E174: 4046172 | F174: 0.01 | G174: 40427
A175: Cédric Brunner | B175: Arminia Bielefeld | C175: Abwehrspieler | D175: 473 | E175: 6288703 | F175: 0.006 | G175: 37223
A176: Sheraldo Becker | B176: 1. FC Union Berlin | C176: Stürmer | D176: 192 | E176: 5426175 | F176: 0.007 | G176: 35869
A177: Chris Richards | B177: TSG 1899 Hoffenheim | C177: Abwehrspieler | D177: 583 | E177: 12035317 | F177: 0.003 | G177: 34814
A178: Omar Richards | B178: FC Bayern München | C178: Abwehrspieler | D178: 279 | E178: 3496588 | F178: 0.01 | G178: 33125
A179: Vincenzo Grifo | B179: SC Freiburg | C179: Mittelfeldspieler | D179: 987 | E179: 25954661 | F179: 0.001 | G179: 28415
A180: Odilon Kossounou | B180: Bayer 04 Leverkusen | C180: Abwehrspieler | D180: 649 | E180: 16418070 | F180: 0.002 | G180: 27728
A181: Tanguy Coulibaly | B181: VfB Stuttgart | C181: Mittelfeldspieler | D181: 232 | E181: 7929806 | F181: 0.003 | G181: 23536
A182: Benno Schmitz | B182: 1. FC Köln | C182: Abwehrspieler | D182: 678 | E182: 12727451 | F182: 0.002 | G182: 22336
A183: Moussa Diaby | B183: Bayer 04 Leverkusen | C183: Stürmer | D183: 998 | E183: 33616513 | F183: 0.001 | G183: 20414
A184: Joshua Kimmich | B184: FC Bayern München | C184: Mittelfeldspieler | D184: 1845 | E184: 54129912 | F184: 0 | G184: 20181
A185: Kevin Trapp | B185: Eintracht Frankfurt | C185: Torhüter | D185: 557 | E185: 11459674 | F185: 0.002 | G185: 19204
A186: Borna Sosa | B186: VfB Stuttgart | C186: Abwehrspieler | D186: 689 | E186: 17573762 | F186: 0.001 | G186: 16516
A187: Nordi Mukiele | B187: RB Leipzig | C187: Abwehrspieler | D187: 455 | E187: 12154778 | F187: 0.001 | G187: 15328
A188: Robert Lewandowski | B188: FC Bayern München | C188: Stürmer | D188: 1802 | E188: 63069004 | F188: 0 | G188: 14965
A189: Maximilian Arnold | B189: VfL Wolfsburg | C189: Mittelfeldspieler | D189: 831 | E189: 26899679 | F189: 0.001 | G189: 14335
A190: Yann Sommer | B190: Borussia Mönchengladbach | C190: Torhüter | D190: 596 | E190: 12949659 | F190: 0.001 | G190: 13972
A191: Marius Funk | B191: SpVgg Greuther Fürth | C191: Torhüter | D191: 180 | E191: 6350756 | F191: 0.002 | G191: 12189
A192: Armel Bella-Kotchap | B192: VfL Bochum | C192: Abwehrspieler | D192: 342 | E192: 6848242 | F192: 0.001 | G192: 8628
A193: Chris Führich | B193: VfB Stuttgart | C193: Mittelfeldspieler | D193: 198 | E193: 7244634 | F193: 0.001 | G193: 5142
A194: Youssoufa Moukoko | B194: Borussia Dortmund | C194: Stürmer | D194: 38 | E194: 5543609 | F194: 0.001 | G194: 3157
A195: Leon Goretzka | B195: FC Bayern München | C195: Mittelfeldspieler | D195: 1194 | E195: 43274279 | F195: 0 | G195: 2018

Sheet Marktwertverlierer
A1: Spieler | B1: Verein | C1: Position | D1: Punkte Gesamt | E1: Marktwert | F1: Wachstum | G1: Differenz
A2: Erling Braut Haaland | B2: Borussia Dortmund | C2: Stürmer | D2: 1606 | E2: 58371229 | F2: -0.012 | G2: -683376
A3: Lukas Klostermann | B3: RB Leipzig | C3: Abwehrspieler | D3: 698 | E3: 16637130 | F3: -0.033 | G3: -569424
A4: Charles Aránguiz | B4: Bayer 04 Leverkusen | C4: Mittelfeldspieler | D4: 568 | E4: 12177996 | F4: -0.044 | G4: -561452
A5: Ellyes Skhiri | B5: 1. FC Köln | C5: Mittelfeldspieler | D5: 958 | E5: 11741340 | F5: -0.038 | G5: -460203
A6: Amadou Haidara | B6: RB Leipzig | C6: Mittelfeldspieler | D6: 864 | E6: 16590297 | F6: -0.026 | G6: -442758
A7: Anthony Modeste | B7: 1. FC Köln | C7: Stürmer | D7: 752 | E7: 14171053 | F7: -0.029 | G7: -424564
A8: Florian Kainz | B8: 1. FC Köln | C8: Mittelfeldspieler | D8: 844 | E8: 13094149 | F8: -0.03 | G8: -398795
A9: Raphaël Guerreiro | B9: Borussia Dortmund | C9: Abwehrspieler | D9: 966 | E9: 31131240 | F9: -0.012 | G9: -394055
A10: Pavel Kadeřábek | B10: TSG 1899 Hoffenheim | C10: Abwehrspieler | D10: 351 | E10: 8026856 | F10: -0.041 | G10: -345626
A11: Jacob Bruun Larsen | B11: TSG 1899 Hoffenheim | C11: Mittelfeldspieler | D11: 523 | E11: 10350385 | F11: -0.032 | G11: -336950
A12: Alphonso Davies | B12: FC Bayern München | C12: Abwehrspieler | D12: 1184 | E12: 31875876 | F12: -0.01 | G12: -330181
A13: Christopher Trimmel | B13: 1. FC Union Berlin | C13: Abwehrspieler | D13: 393 | E13: 11735566 | F13: -0.027 | G13: -327412
A14: Marvin Friedrich | B14: 1. FC Union Berlin | C14: Abwehrspieler | D14: 524 | E14: 14858534 | F14: -0.021 | G14: -320051
A15: Sebastian Andersson | B15: 1. FC Köln | C15: Stürmer | D15: 326 | E15: 8916695 | F15: -0.034 | G15: -315781
A16: Rafael Czichos | B16: 1. FC Köln | C16: Abwehrspieler | D16: 480 | E16: 7891546 | F16: -0.038 | G16: -312037
A17: Luca Waldschmidt | B17: VfL Wolfsburg | C17: Stürmer | D17: 308 | E17: 10280849 | F17: -0.029 | G17: -306866
A18: Lukas Kübler | B18: SC Freiburg | C18: Abwehrspieler | D18: 664 | E18: 8028252 | F18: -0.037 | G18: -306542
A19: Nils Petersen | B19: SC Freiburg | C19: Stürmer | D19: 194 | E19: 4872415 | F19: -0.059 | G19: -306508
A20: Wout Weghorst | B20: VfL Wolfsburg | C20: Stürmer | D20: 739 | E20: 32896826 | F20: -0.009 | G20: -298634
A21: Christopher Lenz | B21: Eintracht Frankfurt | C21: Abwehrspieler | D21: 342 | E21: 4933533 | F21: -0.057 | G21: -298093
A22: Mark Flekken | B22: SC Freiburg | C22: Torhüter | D22: 893 | E22: 10243302 | F22: -0.028 | G22: -296821
A23: Nico Schulz | B23: Borussia Dortmund | C23: Abwehrspieler | D23: 187 | E23: 7267447 | F23: -0.038 | G23: -286658
A24: Piero Hincapié | B24: Bayer 04 Leverkusen | C24: Abwehrspieler | D24: 146 | E24: 6078788 | F24: -0.044 | G24: -278341
A25: Ondrej Duda | B25: 1. FC Köln | C25: Mittelfeldspieler | D25: 373 | E25: 6913145 | F25: -0.039 | G25: -277313
A26: Almamy Touré | B26: Eintracht Frankfurt | C26: Abwehrspieler | D26: 50 | E26: 5181316 | F26: -0.05 | G26: -275137
A27: Manuel Gulde | B27: SC Freiburg | C27: Abwehrspieler | D27: 445 | E27: 6216088 | F27: -0.042 | G27: -274143
A28: Ridle Baku | B28: VfL Wolfsburg | C28: Mittelfeldspieler | D28: 695 | E28: 24882972 | F28: -0.01 | G28: -260557
A29: Anderson Lucoqui | B29: 1. FSV Mainz 05 | C29: Abwehrspieler | D29: 398 | E29: 6469782 | F29: -0.038 | G29: -253349
A30: Niko Gießelmann | B30: 1. FC Union Berlin | C30: Abwehrspieler | D30: 791 | E30: 11605163 | F30: -0.021 | G30: -249383
A31: Xaver Schlager | B31: VfL Wolfsburg | C31: Mittelfeldspieler | D31: 321 | E31: 7955793 | F31: -0.03 | G31: -242028
A32: Jeremiah St. Juste | B32: 1. FSV Mainz 05 | C32: Abwehrspieler | D32: 486 | E32: 7418270 | F32: -0.029 | G32: -221968
A33: Sebastian Rudy | B33: TSG 1899 Hoffenheim | C33: Mittelfeldspieler | D33: 389 | E33: 6860866 | F33: -0.031 | G33: -219505
A34: Maximilian Eggestein | B34: SC Freiburg | C34: Mittelfeldspieler | D34: 473 | E34: 8031876 | F34: -0.026 | G34: -210298
A35: Axel Witsel | B35: Borussia Dortmund | C35: Mittelfeldspieler | D35: 577 | E35: 19375031 | F35: -0.011 | G35: -209206
A36: Kevin Vogt | B36: TSG 1899 Hoffenheim | C36: Abwehrspieler | D36: 500 | E36: 7891136 | F36: -0.025 | G36: -203977
A37: Tuta | B37: Eintracht Frankfurt | C37: Abwehrspieler | D37: 67 | E37: 5279204 | F37: -0.037 | G37: -200495
A38: Krzysztof Piątek | B38: Hertha BSC | C38: Stürmer | D38: 215 | E38: 6130316 | F38: -0.031 | G38: -197101
A39: Niklas Dorsch | B39: FC Augsburg | C39: Mittelfeldspieler | D39: 267 | E39: 4957206 | F39: -0.038 | G39: -193282
A40: Jens Petter Hauge | B40: Eintracht Frankfurt | C40: Mittelfeldspieler | D40: 417 | E40: 7246798 | F40: -0.025 | G40: -187564
A41: Robin Zentner | B41: 1. FSV Mainz 05 | C41: Torhüter | D41: 796 | E41: 8722050 | F41: -0.021 | G41: -184200
A42: Roland Sallai | B42: SC Freiburg | C42: Mittelfeldspieler | D42: 463 | E42: 6252376 | F42: -0.028 | G42: -182937
A43: Dodi Lukébakio | B43: VfL Wolfsburg | C43: Stürmer | D43: 272 | E43: 9451564 | F43: -0.019 | G43: -181454
A44: Timo Horn | B44: 1. FC Köln | C44: Torhüter | D44: 662 | E44: 7759476 | F44: -0.022 | G44: -172912
A45: Fabian Klos | B45: Arminia Bielefeld | C45: Stürmer | D45: 635 | E45: 8748882 | F45: -0.018 | G45: -163160
A46: Mark Uth | B46: 1. FC Köln | C46: Stürmer | D46: 479 | E46: 9172748 | F46: -0.017 | G46: -162576
A47: Alessandro Schöpf | B47: Arminia Bielefeld | C47: Mittelfeldspieler | D47: 481 | E47: 4962847 | F47: -0.03 | G47: -154545
A48: Renato Steffen | B48: VfL Wolfsburg | C48: Mittelfeldspieler | D48: 366 | E48: 9758675 | F48: -0.016 | G48: -154451
A49: Dejan Ljubičić | B49: 1. FC Köln | C49: Mittelfeldspieler | D49: 307 | E49: 5307769 | F49: -0.028 | G49: -150901
A50: Thomas Meunier | B50: Borussia Dortmund | C50: Abwehrspieler | D50: 577 | E50: 11405102 | F50: -0.013 | G50: -150056
A51: Andreas Voglsammer | B51: 1. FC Union Berlin | C51: Stürmer | D51: 448 | E51: 5083122 | F51: -0.028 | G51: -147737
A52: Florian Schock | B52: VfB Stuttgart | C52: Torhüter | D52: 0 | E52: 536630 | F52: -0.209 | G52: -141582
A53: Maxim Leitsch | B53: VfL Bochum | C53: Abwehrspieler | D53: 29 | E53: 2283678 | F53: -0.055 | G53: -133675
A54: Sebastiaan Bornauw | B54: VfL Wolfsburg | C54: Abwehrspieler | D54: 211 | E54: 7096950 | F54: -0.018 | G54: -131841
A55: Christopher Antwi-Adjei | B55: VfL Bochum | C55: Mittelfeldspieler | D55: 88 | E55: 3886543 | F55: -0.033 | G55: -131203
A56: Jeremy Dudziak | B56: SpVgg Greuther Fürth | C56: Mittelfeldspieler | D56: 123 | E56: 3214651 | F56: -0.038 | G56: -126669
A57: Kingsley Schindler | B57: 1. FC Köln | C57: Mittelfeldspieler | D57: 25 | E57: 3370759 | F57: -0.036 | G57: -125078
A58: Nick Viergever | B58: SpVgg Greuther Fürth | C58: Abwehrspieler | D58: 189 | E58: 4617608 | F58: -0.026 | G58: -124593
A59: Dennis Jastrzembski | B59: Hertha BSC | C59: Stürmer | D59: 48 | E59: 1196922 | F59: -0.094 | G59: -123868
A60: Jonas Hector | B60: 1. FC Köln | C60: Mittelfeldspieler | D60: 845 | E60: 17697278 | F60: -0.007 | G60: -122386
A61: Aymen Barkok | B61: Eintracht Frankfurt | C61: Mittelfeldspieler | D61: 28 | E61: 3267990 | F61: -0.036 | G61: -122282
A62: Felix Nmecha | B62: VfL Wolfsburg | C62: Mittelfeldspieler | D62: -35 | E62: 4074700 | F62: -0.029 | G62: -120512
A63: Angeliño | B63: RB Leipzig | C63: Mittelfeldspieler | D63: 563 | E63: 27323168 | F63: -0.004 | G63: -120028
A64: Håvard Nielsen | B64: SpVgg Greuther Fürth | C64: Stürmer | D64: 162 | E64: 1227510 | F64: -0.089 | G64: -119258
A65: Admir Mehmedi | B65: VfL Wolfsburg | C65: Stürmer | D65: 17 | E65: 632585 | F65: -0.158 | G65: -118258
A66: Timothy Chandler | B66: Eintracht Frankfurt | C66: Abwehrspieler | D66: 66 | E66: 4311573 | F66: -0.027 | G66: -118141
A67: Dan-Axel Zagadou | B67: Borussia Dortmund | C67: Abwehrspieler | D67: 0 | E67: 5032915 | F67: -0.023 | G67: -117266
A68: Timothy Tillman | B68: SpVgg Greuther Fürth | C68: Mittelfeldspieler | D68: 216 | E68: 4801325 | F68: -0.024 | G68: -116767
A69: Ragnar Ache | B69: Eintracht Frankfurt | C69: Stürmer | D69: 45 | E69: 2159164 | F69: -0.051 | G69: -116001
A70: Daniel Brosinski | B70: 1. FSV Mainz 05 | C70: Abwehrspieler | D70: 80 | E70: 3575110 | F70: -0.031 | G70: -113884
A71: Pascal Stenzel | B71: VfB Stuttgart | C71: Abwehrspieler | D71: 6 | E71: 2272982 | F71: -0.048 | G71: -113843
A72: John Anthony Brooks | B72: VfL Wolfsburg | C72: Abwehrspieler | D72: 546 | E72: 17442059 | F72: -0.006 | G72: -113303
A73: Brian Brobbey | B73: RB Leipzig | C73: Stürmer | D73: 47 | E73: 3555841 | F73: -0.031 | G73: -113152
A74: Daley Sinkgraven | B74: Bayer 04 Leverkusen | C74: Abwehrspieler | D74: 61 | E74: 4218230 | F74: -0.026 | G74: -112813
A75: Edimilson Fernandes | B75: Arminia Bielefeld | C75: Mittelfeldspieler | D75: 74 | E75: 2778591 | F75: -0.039 | G75: -111929
A76: Ilaix Moriba | B76: RB Leipzig | C76: Mittelfeldspieler | D76: 23 | E76: 5547471 | F76: -0.02 | G76: -111604
A77: Erik Thommy | B77: VfB Stuttgart | C77: Mittelfeldspieler | D77: 85 | E77: 3050104 | F77: -0.035 | G77: -111322
A78: Konstantinos Stafylidis | B78: VfL Bochum | C78: Abwehrspieler | D78: 102 | E78: 1982596 | F78: -0.053 | G78: -111186
A79: Levin Öztunali | B79: 1. FC Union Berlin | C79: Mittelfeldspieler | D79: 175 | E79: 1891006 | F79: -0.055 | G79: -109399
A80: Roberto Massimo | B80: VfB Stuttgart | C80: Mittelfeldspieler | D80: 341 | E80: 4296278 | F80: -0.025 | G80: -109350
A81: Justin Hoogma | B81: SpVgg Greuther Fürth | C81: Abwehrspieler | D81: 151 | E81: 823246 | F81: -0.116 | G81: -108289
A82: Marco Meyerhöfer | B82: SpVgg Greuther Fürth | C82: Abwehrspieler | D82: 425 | E82: 7072878 | F82: -0.015 | G82: -106990
A83: Reinier | B83: Borussia Dortmund | C83: Mittelfeldspieler | D83: 61 | E83: 4100741 | F83: -0.025 | G83: -106985
A84: Janik Haberer | B84: SC Freiburg | C84: Mittelfeldspieler | D84: 167 | E84: 2086259 | F84: -0.048 | G84: -106119
A85: Felix Uduokhai | B85: FC Augsburg | C85: Abwehrspieler | D85: 190 | E85: 4467430 | F85: -0.023 | G85: -105507
A86: Stefan Ilsanker | B86: Eintracht Frankfurt | C86: Mittelfeldspieler | D86: 72 | E86: 3205049 | F86: -0.032 | G86: -105317
A87: Kingsley Ehizibue | B87: 1. FC Köln | C87: Abwehrspieler | D87: 287 | E87: 2478707 | F87: -0.04 | G87: -104415
A88: Sargis Adamyan | B88: TSG 1899 Hoffenheim | C88: Stürmer | D88: 175 | E88: 4331555 | F88: -0.024 | G88: -104411
A89: Dickson Abiama | B89: SpVgg Greuther Fürth | C89: Stürmer | D89: 135 | E89: 727947 | F89: -0.125 | G89: -104133
A90: Ömer Faruk Beyaz | B90: VfB Stuttgart | C90: Mittelfeldspieler | D90: 25 | E90: 1310287 | F90: -0.073 | G90: -103804
A91: Cedric Teuchert | B91: 1. FC Union Berlin | C91: Stürmer | D91: 45 | E91: 1687324 | F91: -0.057 | G91: -102830
A92: Tim Lemperle | B92: 1. FC Köln | C92: Stürmer | D92: 111 | E92: 1391704 | F92: -0.068 | G92: -102246
A93: Anton Stach | B93: 1. FSV Mainz 05 | C93: Mittelfeldspieler | D93: 186 | E93: 2660388 | F93: -0.037 | G93: -101916
A94: Raphael Framberger | B94: FC Augsburg | C94: Abwehrspieler | D94: 96 | E94: 2605821 | F94: -0.038 | G94: -101703
A95: Nikolas Nartey | B95: VfB Stuttgart | C95: Mittelfeldspieler | D95: 80 | E95: 4685402 | F95: -0.021 | G95: -100495
A96: Bryan Lasme | B96: Arminia Bielefeld | C96: Stürmer | D96: 82 | E96: 667571 | F96: -0.13 | G96: -100109
A97: Maximilian Philipp | B97: VfL Wolfsburg | C97: Stürmer | D97: 423 | E97: 9697141 | F97: -0.01 | G97: -99887
A98: Amos Pieper | B98: Arminia Bielefeld | C98: Abwehrspieler | D98: 591 | E98: 8943069 | F98: -0.011 | G98: -99750
A99: Patrick Wimmer | B99: Arminia Bielefeld | C99: Mittelfeldspieler | D99: 300 | E99: 3055839 | F99: -0.032 | G99: -99453
A100: Arne Maier | B100: FC Augsburg | C100: Mittelfeldspieler | D100: 130 | E100: 3353379 | F100: -0.029 | G100: -99155
A101: Robin Hack | B101: Arminia Bielefeld | C101: Mittelfeldspieler | D101: 302 | E101: 4695631 | F101: -0.021 | G101: -98519
A102: Tony Jantschke | B102: Borussia Mönchengladbach | C102: Abwehrspieler | D102: 123 | E102: 4201871 | F102: -0.023 | G102: -98011
A103: Timo Hübers | B103: 1. FC Köln | C103: Abwehrspieler | D103: 62 | E103: 1867379 | F103: -0.05 | G103: -97863
A104: Danny da Costa | B104: Eintracht Frankfurt | C104: Abwehrspieler | D104: 117 | E104: 4212986 | F104: -0.023 | G104: -97686
A105: Benjamin Hübner | B105: TSG 1899 Hoffenheim | C105: Abwehrspieler | D105: 0 | E105: 3043757 | F105: -0.031 | G105: -97435
A106: Giovanni Reyna | B106: Borussia Dortmund | C106: Mittelfeldspieler | D106: 435 | E106: 23188136 | F106: -0.004 | G106: -96606
A107: Kevin-Prince Boateng | B107: Hertha BSC | C107: Mittelfeldspieler | D107: 158 | E107: 2843351 | F107: -0.033 | G107: -95568
A108: Marcel Halstenberg | B108: RB Leipzig | C108: Abwehrspieler | D108: 0 | E108: 3282556 | F108: -0.028 | G108: -95061
A109: Davie Selke | B109: Hertha BSC | C109: Stürmer | D109: 44 | E109: 2882922 | F109: -0.032 | G109: -94964
A110: Louis Schaub | B110: 1. FC Köln | C110: Mittelfeldspieler | D110: 240 | E110: 945719 | F110: -0.09 | G110: -93200
A111: Mitchel Bakker | B111: Bayer 04 Leverkusen | C111: Abwehrspieler | D111: 685 | E111: 14739206 | F111: -0.006 | G111: -92361
A112: Kevin Stöger | B112: 1. FSV Mainz 05 | C112: Mittelfeldspieler | D112: 156 | E112: 794460 | F112: -0.104 | G112: -92194
A113: Paul Seguin | B113: SpVgg Greuther Fürth | C113: Mittelfeldspieler | D113: 332 | E113: 3166306 | F113: -0.028 | G113: -91782
A114: Hannes Wolf | B114: Borussia Mönchengladbach | C114: Mittelfeldspieler | D114: 193 | E114: 2798754 | F114: -0.032 | G114: -91582
A115: Noah Weißhaupt | B115: SC Freiburg | C115: Stürmer | D115: 35 | E115: 2528758 | F115: -0.035 | G115: -91561
A116: Luca Kilian | B116: 1. FC Köln | C116: Abwehrspieler | D116: 209 | E116: 4160455 | F116: -0.021 | G116: -91046
A117: Paul Jaeckel | B117: 1. FC Union Berlin | C117: Abwehrspieler | D117: 404 | E117: 6443056 | F117: -0.014 | G117: -90070
A118: Simon Zoller | B118: VfL Bochum | C118: Stürmer | D118: 431 | E118: 3474602 | F118: -0.025 | G118: -90004
A119: Masaya Okugawa | B119: Arminia Bielefeld | C119: Mittelfeldspieler | D119: 223 | E119: 2961338 | F119: -0.029 | G119: -89614
A120: Lucas Alario | B120: Bayer 04 Leverkusen | C120: Stürmer | D120: -5 | E120: 4028242 | F120: -0.022 | G120: -89371
A121: Florian Niederlechner | B121: FC Augsburg | C121: Stürmer | D121: 243 | E121: 4144112 | F121: -0.021 | G121: -88927
A122: Munas Dabbur | B122: TSG 1899 Hoffenheim | C122: Stürmer | D122: 140 | E122: 2041947 | F122: -0.042 | G122: -88463
A123: Jorge Meré | B123: 1. FC Köln | C123: Abwehrspieler | D123: 354 | E123: 4731255 | F123: -0.018 | G123: -88301
A124: Sebastian Polter | B124: VfL Bochum | C124: Stürmer | D124: 284 | E124: 4613150 | F124: -0.019 | G124: -88000
A125: Saša Kalajdžić | B125: VfB Stuttgart | C125: Stürmer | D125: -23 | E125: 5658210 | F125: -0.015 | G125: -87119
A126: Maximilian Bauer | B126: SpVgg Greuther Fürth | C126: Abwehrspieler | D126: 274 | E126: 2241772 | F126: -0.037 | G126: -86655
A127: Christoph Kramer | B127: Borussia Mönchengladbach | C127: Mittelfeldspieler | D127: 134 | E127: 2745181 | F127: -0.031 | G127: -86629
A128: Yannik Keitel | B128: SC Freiburg | C128: Mittelfeldspieler | D128: 225 | E128: 3175517 | F128: -0.027 | G128: -86534
A129: Cedric Itten | B129: SpVgg Greuther Fürth | C129: Stürmer | D129: 88 | E129: 2003588 | F129: -0.041 | G129: -85762
A130: Benjamin Henrichs | B130: RB Leipzig | C130: Abwehrspieler | D130: 95 | E130: 3868297 | F130: -0.022 | G130: -85687
A131: László Bénes | B131: Borussia Mönchengladbach | C131: Mittelfeldspieler | D131: 58 | E131: 3128887 | F131: -0.027 | G131: -85405
A132: Florian Müller | B132: VfB Stuttgart | C132: Torhüter | D132: 528 | E132: 6230907 | F132: -0.013 | G132: -84882
A133: Sascha Burchert | B133: SpVgg Greuther Fürth | C133: Torhüter | D133: 361 | E133: 2872127 | F133: -0.028 | G133: -83803
A134: Kevin Behrens | B134: 1. FC Union Berlin | C134: Stürmer | D134: 361 | E134: 4788760 | F134: -0.017 | G134: -82181
A135: Deyovaisio Zeefuik | B135: Hertha BSC | C135: Abwehrspieler | D135: 124 | E135: 1323730 | F135: -0.058 | G135: -80850
A136: Grischa Prömel | B136: 1. FC Union Berlin | C136: Mittelfeldspieler | D136: 226 | E136: 4492804 | F136: -0.017 | G136: -76279
A137: Koen Casteels | B137: VfL Wolfsburg | C137: Torhüter | D137: 777 | E137: 17646694 | F137: -0.004 | G137: -75055
A138: Ishak Belfodil | B138: Hertha BSC | C138: Stürmer | D138: 135 | E138: 1638753 | F138: -0.044 | G138: -74557
A139: Wataru Endo | B139: VfB Stuttgart | C139: Mittelfeldspieler | D139: 858 | E139: 22223617 | F139: -0.003 | G139: -74302
A140: Jetro Willems | B140: SpVgg Greuther Fürth | C140: Abwehrspieler | D140: 175 | E140: 2863238 | F140: -0.025 | G140: -73652
A141: Mateo Klimowicz | B141: VfB Stuttgart | C141: Mittelfeldspieler | D141: 272 | E141: 3427963 | F141: -0.021 | G141: -72831
A142: Bouna Sarr | B142: FC Bayern München | C142: Abwehrspieler | D142: 115 | E142: 3436031 | F142: -0.021 | G142: -72650
A143: Stevan Jovetić | B143: Hertha BSC | C143: Stürmer | D143: 140 | E143: 4427929 | F143: -0.016 | G143: -71547
A144: Waldemar Anton | B144: VfB Stuttgart | C144: Abwehrspieler | D144: 356 | E144: 6579575 | F144: -0.011 | G144: -70645
A145: Lucas Tousart | B145: Hertha BSC | C145: Mittelfeldspieler | D145: 361 | E145: 4015629 | F145: -0.017 | G145: -68292
A146: Mads Pedersen | B146: FC Augsburg | C146: Abwehrspieler | D146: 171 | E146: 1743168 | F146: -0.037 | G146: -66722
A147: Ajdin Hrustić | B147: Eintracht Frankfurt | C147: Mittelfeldspieler | D147: 299 | E147: 3442436 | F147: -0.018 | G147: -64865
A148: Hiroki Ito | B148: VfB Stuttgart | C148: Abwehrspieler | D148: 95 | E148: 2970875 | F148: -0.021 | G148: -63628
A149: Philipp Klement | B149: VfB Stuttgart | C149: Mittelfeldspieler | D149: 458 | E149: 4598386 | F149: -0.013 | G149: -62666
A150: Angelo Stiller | B150: TSG 1899 Hoffenheim | C150: Mittelfeldspieler | D150: 236 | E150: 4134932 | F150: -0.015 | G150: -61783
A151: Georginio Rutter | B151: TSG 1899 Hoffenheim | C151: Stürmer | D151: 302 | E151: 3069363 | F151: -0.019 | G151: -60632
A152: Patrick Herrmann | B152: Borussia Mönchengladbach | C152: Mittelfeldspieler | D152: 370 | E152: 4797947 | F152: -0.012 | G152: -57457
A153: Sam Lammers | B153: Eintracht Frankfurt | C153: Stürmer | D153: 243 | E153: 7703391 | F153: -0.007 | G153: -55712
A154: Yannick Gerhardt | B154: VfL Wolfsburg | C154: Mittelfeldspieler | D154: 258 | E154: 4445548 | F154: -0.012 | G154: -55176
A155: Sebastian Griesbeck | B155: SpVgg Greuther Fürth | C155: Mittelfeldspieler | D155: 19 | E155: 2182273 | F155: -0.024 | G155: -54779
A156: Erhan Mašović | B156: VfL Bochum | C156: Abwehrspieler | D156: 250 | E156: 3984206 | F156: -0.014 | G156: -54574
A157: Tanguy Nianzou | B157: FC Bayern München | C157: Abwehrspieler | D157: 232 | E157: 4092044 | F157: -0.013 | G157: -54325
A158: Lennart Czyborra | B158: Arminia Bielefeld | C158: Abwehrspieler | D158: -53 | E158: 1850056 | F158: -0.028 | G158: -52939
A159: Ádám Szalai | B159: 1. FSV Mainz 05 | C159: Stürmer | D159: 240 | E159: 2200367 | F159: -0.023 | G159: -50876
A160: Kevin Schade | B160: SC Freiburg | C160: Stürmer | D160: 133 | E160: 2848199 | F160: -0.017 | G160: -50362
A161: Gerrit Holtmann | B161: VfL Bochum | C161: Mittelfeldspieler | D161: 360 | E161: 3867418 | F161: -0.013 | G161: -49789
A162: Yussuf Poulsen | B162: RB Leipzig | C162: Stürmer | D162: 563 | E162: 11952800 | F162: -0.004 | G162: -49625
A163: Karim Bellarabi | B163: Bayer 04 Leverkusen | C163: Mittelfeldspieler | D163: 176 | E163: 4568384 | F163: -0.01 | G163: -47959
A164: Rafał Gikiewicz | B164: FC Augsburg | C164: Torhüter | D164: 731 | E164: 7905238 | F164: -0.006 | G164: -47452
A165: Philipp Förster | B165: VfB Stuttgart | C165: Mittelfeldspieler | D165: 288 | E165: 4150974 | F165: -0.011 | G165: -47373
A166: Marcus Ingvartsen | B166: 1. FSV Mainz 05 | C166: Mittelfeldspieler | D166: 315 | E166: 7445980 | F166: -0.006 | G166: -45509
A167: Péter Gulácsi | B167: RB Leipzig | C167: Torhüter | D167: 841 | E167: 16654980 | F167: -0.003 | G167: -43210
A168: Branimir Hrgota | B168: SpVgg Greuther Fürth | C168: Stürmer | D168: 401 | E168: 4561172 | F168: -0.009 | G168: -42971
A169: Clinton Mola | B169: VfB Stuttgart | C169: Mittelfeldspieler | D169: 20 | E169: 3923651 | F169: -0.011 | G169: -41938
A170: Manuel Prietl | B170: Arminia Bielefeld | C170: Mittelfeldspieler | D170: 495 | E170: 4142955 | F170: -0.01 | G170: -41667
A171: Christoph Baumgartner | B171: TSG 1899 Hoffenheim | C171: Mittelfeldspieler | D171: 699 | E171: 15269110 | F171: -0.003 | G171: -39193
A172: Ansgar Knauff | B172: Borussia Dortmund | C172: Mittelfeldspieler | D172: -15 | E172: 1445002 | F172: -0.024 | G172: -35789
A173: Ermedin Demirović | B173: SC Freiburg | C173: Stürmer | D173: 96 | E173: 1402098 | F173: -0.023 | G173: -33005
A174: Dominique Heintz | B174: SC Freiburg | C174: Abwehrspieler | D174: 15 | E174: 4175215 | F174: -0.008 | G174: -32924
A175: E. Choupo-Moting | B175: FC Bayern München | C175: Stürmer | D175: 438 | E175: 6811391 | F175: -0.005 | G175: -31027
A176: Jan Thielmann | B176: 1. FC Köln | C176: Mittelfeldspieler | D176: 256 | E176: 3948072 | F176: -0.007 | G176: -27715
A177: Hamadi Al Ghaddioui | B177: VfB Stuttgart | C177: Stürmer | D177: 356 | E177: 4456968 | F177: -0.006 | G177: -24867
A178: Ruben Vargas | B178: FC Augsburg | C178: Mittelfeldspieler | D178: 374 | E178: 6117069 | F178: -0.003 | G178: -16725
A179: Mijat Gaćinović | B179: TSG 1899 Hoffenheim | C179: Mittelfeldspieler | D179: 67 | E179: 3490592 | F179: -0.004 | G179: -12337
A180: Omar Marmoush | B180: VfB Stuttgart | C180: Stürmer | D180: 505 | E180: 11383022 | F180: -0.001 | G180: -10923
A181: Joakim Nilsson | B181: Arminia Bielefeld | C181: Abwehrspieler | D181: 541 | E181: 4611517 | F181: -0.002 | G181: -8655
A182: Iago | B182: FC Augsburg | C182: Abwehrspieler | D182: 218 | E182: 5087977 | F182: -0.001 | G182: -7089
A183: Jordan Torunarigha | B183: Hertha BSC | C183: Abwehrspieler | D183: 47 | E183: 2704661 | F183: -0.001 | G183: -3502
A184: Julian Green | B184: SpVgg Greuther Fürth | C184: Mittelfeldspieler | D184: 120 | E184: 500000 | F184: -0.003 | G184: -1589
A185: Robert Skov | B185: TSG 1899 Hoffenheim | C185: Mittelfeldspieler | D185: 50 | E185: 662520 | F185: -0.001 | G185: -922
